Workbook

Sheet AER CF (hidden)
B1: AER CONDITIONAL FORMATTING
B3: CELLS FLAGED "Y" and greyed out will be greyed out in the worksheets.
B4: CONDITIONAL FORMATTING MAP
F5: =INDEX(dms_CF_3.6.1, MATCH(dms_TradingName,dms_CF_TradingName))="Y" | G5: =INDEX(dms_CF_3.6.5, MATCH(dms_TradingName,dms_CF_TradingName))="Y" | H5: =INDEX(dms_CF_3.6.6.1, MATCH(dms_TradingName,dms_CF_TradingName))="Y" | I5: =INDEX(dms_CF_3.6.6.2, MATCH(dms_TradingName,dms_CF_TradingName))="Y" | J5: =INDEX(dms_CF_3.6.6.3, MATCH(dms_TradingName,dms_CF_TradingName))="Y" | K5: =INDEX(dms_CF_3.6.7.1, MATCH(dms_TradingName,dms_CF_TradingName))="Y" | L5: =INDEX(dms_CF_3.6.7.2, MATCH(dms_TradingName,dms_CF_TradingName))="Y" | M5: =INDEX(dms_CF_3.6.7.3, MATCH(dms_TradingName,dms_CF_TradingName))="Y" | N5: =INDEX(dms_CF_3.6.7.4, MATCH(dms_TradingName,dms_CF_TradingName))="Y" | O5: =INDEX(dms_CF_3.6.8, MATCH(dms_TradingName,dms_CF_TradingName))="Y" | P5: =INDEX(dms_CF_4.1, MATCH(dms_TradingName,dms_CF_TradingName))="Y" | Q5: =INDEX(dms_CF_6.8, MATCH(dms_TradingName,dms_CF_TradingName))="Y" | R5: =INDEX(dms_CF_7.12, MATCH(dms_TradingName,dms_CF_TradingName))="Y" | S5: =INDEX(dms_CF_8.1_A, MATCH(dms_TradingName,dms_CF_TradingName))="Y" | T5: =INDEX(dms_CF_8.1_B, MATCH(dms_TradingName,dms_CF_TradingName))="Y" | U5: =INDEX(dms_CF_8.1_Neg, MATCH(dms_TradingName,dms_CF_TradingName))="Y" -> TRUE | V5: =INDEX(dms_CF_4.4.1_Neg, MATCH(dms_TradingName,dms_CF_TradingName))="Y" | Y5: =INDEX(dms_CF_F10, MATCH(dms_TradingName,dms_CF_TradingName))="Y"
B6: dms_CF_TradingName | C6: JurisdictionList | D6: Sector | E6: Segment | F6: dms_CF_3.6.1 | G6: dms_CF_3.6.5 | H6: dms_CF_3.6.6.1 | I6: dms_CF_3.6.6.2 | J6: dms_CF_3.6.6.3 | K6: dms_CF_3.6.7.1 | L6: dms_CF_3.6.7.2 | M6: dms_CF_3.6.7.3 | N6: dms_CF_3.6.7.4 | O6: dms_CF_3.6.8 | P6: dms_CF_4.1 | Q6: dms_CF_6.8 (set from dms_MAIFI_flag) | R6: dms_CF_7.12 | S6: dms_CF_8.1_A (and 8.4) | T6: dms_CF_8.1_B (and 8.4) | U6: dms_CF_8.1_Neg (and 8.4) | V6: dms_CF_4.4.1 | W6: dms_CF_MAIFI_flag (set from dms_MAIFI_flag) | X6: 9.5 TUOS (set from Jurisdiction) | Y6: dms_CF_F10
B7: Ausgrid | C7: NSW | D7: Electricity | E7: Distribution | G7: Y | H7: N | I7: Y | J7: Y | K7: N | L7: N | M7: N | N7: Y | O7: N | P7: N | Q7: =IFERROR(IF(dms_MAIFI_flag="Yes","N","Y"),"Y") -> Y | R7: Y | S7: N | T7: Y | U7: Y | V7: N | W7: =IFERROR(LEFT(dms_MAIFI_flag),"N") -> N | X7: =IF('AER CF'!$C7="Vic","Y","N") -> N
B8: Ausgrid (Tx Assets) | C8: NSW | D8: Electricity | E8: Distribution | G8: Y | H8: N | I8: Y | J8: Y | K8: N | L8: N | M8: N | N8: Y | O8: N | P8: N | Q8: Y | R8: Y | S8: N | T8: Y | U8: Y | V8: N | W8: =IFERROR(LEFT(dms_MAIFI_flag),"N") -> N | X8: =IF('AER CF'!$C8="Vic","Y","N") -> N
B9: AusNet (D) | C9: Vic | D9: Electricity | E9: Distribution | G9: N | H9: N | K9: N | L9: N | M9: N | N9: N | O9: N | P9: N | Q9: Y | R9: N | S9: N | T9: N | U9: Y | V9: N | W9: =IFERROR(LEFT(dms_MAIFI_flag),"N") -> N | X9: =IF('AER CF'!$C9="Vic","Y","N") -> Y
B10: AusNet (T) | C10: Vic | D10: Electricity | E10: Transmission | G10: N | K10: N | L10: N | M10: N | N10: N | O10: N | P10: Y | Q10: Y | R10: N | S10: N | T10: N | U10: Y | V10: N | W10: N | X10: =IF('AER CF'!$C10="Vic","Y","N") -> Y
B11: Amadeus | C11: NT | D11: Gas | E11: Transmission | G11: N | K11: N | L11: N | M11: N | N11: N | O11: N | P11: Y | Q11: Y | R11: N | S11: N | T11: N | U11: Y | V11: N | W11: N | X11: =IF('AER CF'!$C11="Vic","Y","N") -> N | Y11: N
B12: APA GasNet | C12: Vic | D12: Gas | E12: Transmission | G12: N | K12: N | L12: N | M12: N | N12: N | O12: N | P12: Y | Q12: Y | R12: N | S12: N | T12: N | U12: Y | V12: N | W12: N | X12: =IF('AER CF'!$C12="Vic","Y","N") -> Y | Y12: Y
B13: Australian Distribution Co. | C13: NSW | D13: Electricity | E13: Distribution | F13: N | G13: N | H13: N | I13: N | K13: N | L13: N | M13: N | N13: N | O13: N | P13: N | Q13: Y | R13: N | S13: N | T13: N | U13: N | V13: N | W13: N | X13: =IF('AER CF'!$C13="Vic","Y","N") -> N
B14: Australian Distribution Co. (Vic) | C14: Vic | D14: Electricity | E14: Distribution | F14: N | G14: N | H14: N | I14: N | K14: N | L14: N | M14: N | N14: N | O14: N | P14: N | Q14: Y | R14: N | S14: N | T14: N | U14: N | V14: N | W14: N | X14: =IF('AER CF'!$C14="Vic","Y","N") -> Y
B15: CitiPower | C15: Vic | D15: Electricity | E15: Distribution | G15: N | H15: N | K15: N | L15: N | M15: N | N15: N | O15: N | P15: N | Q15: Y | R15: N | S15: N | T15: N | U15: Y | V15: N | W15: N | X15: =IF('AER CF'!$C15="Vic","Y","N") -> Y
B16: Directlink | C16: Qld | D16: Electricity | E16: Transmission | G16: N | K16: N | L16: N | M16: N | N16: N | O16: N | P16: Y | Q16: Y | R16: N | S16: N | T16: Y | U16: Y | V16: N | W16: N | X16: =IF('AER CF'!$C16="Vic","Y","N") -> N
B17: ElectraNet | C17: SA | D17: Electricity | E17: Transmission | G17: N | K17: N | L17: N | M17: N | N17: N | O17: N | P17: Y | Q17: Y | R17: N | S17: N | T17: Y | U17: Y | V17: N | W17: N | X17: =IF('AER CF'!$C17="Vic","Y","N") -> N
B18: Endeavour Energy | C18: NSW | D18: Electricity | E18: Distribution | G18: Y | H18: N | I18: Y | J18: Y | K18: N | L18: N | M18: N | N18: Y | O18: N | P18: N | Q18: Y | R18: Y | S18: N | T18: Y | U18: Y | V18: Y | W18: N | X18: =IF('AER CF'!$C18="Vic","Y","N") -> N
B19: Energex | C19: Qld | D19: Electricity | E19: Distribution | G19: Y | H19: N | K19: N | L19: N | M19: N | N19: N | O19: N | P19: N | Q19: Y | R19: Y | S19: N | T19: Y | U19: Y | V19: Y | W19: N | X19: =IF('AER CF'!$C19="Vic","Y","N") -> N
B20: Ergon Energy | C20: Qld | D20: Electricity | E20: Distribution | G20: Y | H20: N | I20: Y | J20: Y | K20: N | L20: N | M20: N | N20: N | O20: N | P20: N | Q20: Y | R20: Y | S20: N | T20: Y | U20: Y | V20: N | W20: N | X20: =IF('AER CF'!$C20="Vic","Y","N") -> N
B21: Essential Energy | C21: NSW | D21: Electricity | E21: Distribution | G21: Y | H21: N | I21: Y | J21: Y | K21: N | L21: N | M21: N | N21: Y | O21: N | P21: N | Q21: Y | R21: Y | S21: N | T21: Y | U21: Y | V21: N | W21: N | X21: =IF('AER CF'!$C21="Vic","Y","N") -> N
B22: Evoenergy Distribution | C22: ACT | D22: Electricity | E22: Distribution | G22: Y | H22: N | I22: Y | J22: Y | K22: Y | L22: Y | M22: N | N22: Y | O22: N | P22: Y | Q22: Y | R22: Y | S22: N | T22: Y | U22: Y | V22: N | W22: N | X22: =IF('AER CF'!$C22="Vic","Y","N") -> N
B23: Evoenergy Distribution (Tx Assets) | C23: ACT | D23: Electricity | E23: Distribution | G23: Y | H23: N | I23: Y | J23: Y | K23: Y | L23: Y | M23: N | N23: Y | O23: N | P23: Y | Q23: Y | R23: Y | S23: N | T23: Y | U23: Y | V23: N | W23: N | X23: =IF('AER CF'!$C23="Vic","Y","N") -> N
B24: Jemena Electricity | C24: Vic | D24: Electricity | E24: Distribution | G24: N | H24: N | K24: N | L24: N | M24: N | N24: N | O24: N | P24: N | Q24: Y | R24: N | S24: N | T24: N | U24: Y | V24: N | W24: N | X24: =IF('AER CF'!$C24="Vic","Y","N") -> Y
B25: Murraylink | C25: SA | D25: Electricity | E25: Transmission | G25: N | K25: N | L25: N | M25: N | N25: N | O25: N | P25: Y | Q25: Y | R25: N | S25: N | T25: Y | U25: Y | V25: N | W25: N | X25: =IF('AER CF'!$C25="Vic","Y","N") -> N
B26: Power and Water | C26: NT | D26: Electricity | E26: Distribution | G26: N | H26: N | K26: N | L26: Y | M26: N | N26: N | O26: N | P26: Y | Q26: Y | R26: Y | S26: N | T26: Y | U26: Y | V26: N | W26: N | X26: =IF('AER CF'!$C26="Vic","Y","N") -> N
B27: Powercor Australia | C27: Vic | D27: Electricity | E27: Distribution | G27: N | H27: N | K27: N | L27: N | M27: N | N27: N | O27: N | P27: N | Q27: Y | R27: N | S27: N | T27: N | U27: Y | V27: N | W27: N | X27: =IF('AER CF'!$C27="Vic","Y","N") -> Y
B28: Powerlink | C28: Qld | D28: Electricity | E28: Transmission | G28: N | K28: N | L28: N | M28: N | N28: N | O28: N | P28: Y | Q28: Y | R28: N | S28: N | T28: Y | U28: Y | V28: N | W28: N | X28: =IF('AER CF'!$C28="Vic","Y","N") -> N
B29: Roma to Brisbane Pipeline | C29: Qld | D29: Gas | E29: Transmission | G29: N | K29: N | L29: N | M29: N | N29: N | O29: N | P29: Y | Q29: Y | R29: N | S29: N | T29: N | U29: Y | V29: N | W29: N | X29: =IF('AER CF'!$C29="Vic","Y","N") -> N | Y29: Y
B30: SA Power Networks | C30: SA | D30: Electricity | E30: Distribution | G30: Y | H30: N | K30: N | L30: N | M30: N | N30: N | O30: N | P30: N | Q30: Y | R30: Y | S30: N | T30: Y | U30: N | V30: N | W30: N | X30: =IF('AER CF'!$C30="Vic","Y","N") -> N
B31: TasNetworks (D) | C31: Tas | D31: Electricity | E31: Distribution | G31: Y | H31: N | K31: N | L31: N | M31: N | N31: N | O31: N | P31: N | Q31: Y | R31: Y | S31: N | T31: Y | U31: Y | V31: N | W31: N | X31: =IF('AER CF'!$C31="Vic","Y","N") -> N
B32: TasNetworks (T) | C32: Tas | D32: Electricity | E32: Transmission | G32: N | K32: N | L32: N | M32: N | N32: N | O32: N | P32: Y | Q32: Y | R32: N | S32: N | T32: Y | U32: Y | V32: N | W32: N | X32: =IF('AER CF'!$C32="Vic","Y","N") -> N
B33: TransGrid | C33: NSW | D33: Electricity | E33: Transmission | G33: N | K33: N | L33: N | M33: N | N33: N | O33: N | P33: Y | Q33: Y | R33: N | S33: N | T33: Y | U33: Y | V33: N | W33: N | X33: =IF('AER CF'!$C33="Vic","Y","N") -> N
B34: United Energy | C34: Vic | D34: Electricity | E34: Distribution | G34: N | H34: N | K34: N | L34: N | M34: N | N34: N | O34: N | P34: N | Q34: Y | R34: N | S34: N | T34: N | U34: Y | V34: N | W34: N | X34: =IF('AER CF'!$C34="Vic","Y","N") -> Y
B37: Confidential
B38: Amended
B40: Worksheet 6.2 STPIS reliability
B41: Formula | F41: Applied to:
B43: =INDEX(dms_CBD_flag,MATCH(dms_TradingName,dms_TradingName_List))="NO" | F43: $D$11,$D$17,$D$23,$D$33,$D$39,$D$45,$D$55,$D$61,$D$67,$D$77,$D$83,$D$89
B44: =INDEX(dms_Urban_flag,MATCH(dms_TradingName,dms_TradingName_List))="NO" | F44: $D$12,$D$18,$D$24,$D$56,$D$62,$D$78,$D$68,$D$84
B45: =INDEX(dms_ShortRural_flag,MATCH(dms_TradingName,dms_TradingName_List))="NO" | F45: $D$13,$D$19,$D$25,$D$57,$D$63,$D$69,$D$79,$D$85
B46: =INDEX(dms_LongRural_flag,MATCH(dms_TradingName,dms_TradingName_List))="NO" | F46: $D$14,$D$20,$D$26,$D$58,$D$64,$D$65,$D$70,$D$71,$D$80,$D$86
B47: =INDEX(dms_FeederType_5_flag,MATCH(dms_TradingName,dms_TradingName_List))="NO" | F47: $D$87,$D$81,$D$71,$D$65,$D$59,$D$49,$D$43,$D$37,$D$21,$D$15
B48: =dms_MAIFI_Flag="No" | F48: $D$55:$D$72
B51: Business & other details
B52: =(INDEX(dms_Model_Span,MATCH(dms_Model,dms_Model_List))>1)
B53: =(INDEX(dms_Model_Span,MATCH(dms_Model,dms_Model_List))=1)
B56: STYLES IN USE
B57: HEADING ONE | C57: dms_1
B58: HEADING TWO | C58: dms_2
B59: HEADING THREE | C59: dms_3
B60: HEADING FOUR | C60: dms_4
B61: HEADING FIVE | C61: dms_5
B62: 5.111 | C62: dms_NUM
B63: 0.0545 | C63: dms_NUM%
B64: 5.5555 | C64: dms_NUM3d
B65: Text description | C65: dms_Row_Locked
B66: Text description | C66: dms_Row1
B67: Text description | C67: dms_Row2
B68: Total | C68: dms_T1
B69: Total | C69: dms_T2
B70: EXPENSES | C70: dms_BH
B71: 2019 | C71: dms_BY1
B72: 2019 | C72: dms_BY2
B73: VOLUMES | C73: dms_GH
B74: 2019 | C74: dms_GY1
B75: 2019 | C75: dms_GY2

Sheet AER NRs (hidden)
B1: AER NAMED RANGES
B3: DROP DOWN SELECTORS USED IN WORKBOOKS
B5: COVER SHEET | C5: dms_DataQuality_List | D5: dms_Confid_status_List
C6: -- select -- | D6: -- select --
C7: Actual | D7: Public
C8: Estimate | D8: Confidential
C9: Consolidated
C12: For all files either AER or business needs to be able to specify the type of submission | D12: For PTRM & RFM templates we must provide a choice in case they change their form of control - otherwise it is drawn from the business specific lookup table above.
C13: dms_SourceList | D13: dms_FormControl_Choices
C14: -- select -- | D14: Revenue cap
C15: After appeal | D15: Revenue yield
C16: Draft decision | D16: Weighted average price cap
C17: Final decision
C18: PTRM update 1
C19: PTRM update 2
C20: PTRM update 3
C21: PTRM update 4
C22: PTRM update 5
C23: PTRM update 6
C24: PTRM update 7
C25: Recast
C26: Regulatory proposal
C27: Reporting
C28: Revised regulatory proposal
K31: This is used to create an image to insert on 6.3 STPIS sheet - not for dropdown lists. | N31: GAS
B32: CA & RESET RINS DNSP | C32: dms_DNSP_020301_SubstationType | D32: dms_DNSP_020301_ProjectType | E32: dms_DNSP_020301_ProjectTrigger | F32: dms_DNSP_020302_ProjectType | G32: dms_DNSP_020302_ProjectTrigger | H32: dms_STPIS_Exclusion_List | I32: dms_Reason_Interruption | J32: dms_Reason_Interruption_Detailed | K32: Reason for interruption | N32: dms_N0205_AssetType
C33: Subtransmission substation | D33: New substation establishment | E33: Demand growth | F33: New line on new route - single circuit | G33: Demand growth | H33: Weather | I33: Animal | J33: Animal impact | K33: Animal | L33: Animal impact | N33: Cast Iron
C34: Zone substation | D34: Substation upgrade - capacity | E34: Voltage issues | F34: New line on new route - dual circuit | G34: Voltage issues | H34: Equipment failure | I34: Asset failure | J34: Animal nesting/burrowing, etc and other | L34: Animal nesting/burrowing, etc and other | N34: PVC
C35: Switching station | D35: Substation upgrade - voltage | E35: Reactive power issue | F35: New line on new route - other | G35: Reactive power issue | H35: Operational error | I35: Other | J35: Other | L35: Other | N35: Polyamide
C36: Other | D36: Other | E36: Fault level issues | F36: Line rebuild over existing route - single circuit | G36: Fault level issues | H36: Vegetation | I36: Overloads | J36: LV | K36: Asset failure | L36: LV | N36: High density polyethylene (80)
E37: Safety | F37: Line rebuild over existing route - dual circuit | G37: Net market benefit | H37: Animals | I37: Planned | J37: Distribution substation | L37: Distribution substation | N37: High density polyethylene (100)
E38: Environment | F38: Reconductor - Single circuit | G38: Safety | H38: Third party impacts | I38: Network business | J38: HV | L38: HV | N38: High density polyethylene (250)
E39: Other | F39: Reconductor - Dual circuit | G39: Environment | H39: Transmission failure | I39: Third party | J39: Zone substation | L39: Zone substation | N39: High density polyethylene (575)
F40: Reconductor - Other | G40: Other | H40: Load shedding | I40: Unknown | J40: Subtransmission | L40: Subtransmission | N40: Medium density polyethylene
F41: Line upgrade - raising/retensoring | H41: Inter-distributor connection failure | I41: Vegetation | J41: insert description of 'other' | K41: Other | L41: insert description of 'other' | N41: Unprotected steel
F42: Line upgrade - voltage upgrade | H42: Other | I42: Weather | J42: Network error | K42: Overloads | N42: Protected steel
F43: Line upgrade - capacity | I43: 2 - STPIS Exclusion (3.3)(a) | J43: Switching and protection error | K43: Planned | N43: Other
F44: String spare circuit | I44: 3 - STPIS Exclusion (3.3)(a) | J44: Fire | K44: Network business | L44: Network error
F45: Other | I45: 4 - STPIS Exclusion (3.3)(a) | J45: Other | L45: Switching and protection error
I46: 5 - STPIS Exclusion (3.3)(a) | J46: Dig-in | K46: Third party | L46: Fire
I47: 6 - STPIS Exclusion (3.3)(a) | J47: Unauthorised access | L47: Other
I48: 7 - STPIS Exclusion (3.3)(a) | J48: Vehicle impact | L48: Dig-in
J49: Unknown | L49: Unauthorised access
J50: Blow-in/Fall-in - NSP responsibility | L50: Vehicle impact
J51: Grow-in - NSP responsibility | K51: Unknown | L51: Unknown
J52: Blow-in/Fall-in - Other responsible party | K52: Vegetation | L52: Blow-in/Fall-in - NSP responsibility
J53: Grow-in - Other responsible party | L53: Grow-in - NSP responsibility
L54: Blow-in/Fall-in - Other responsible party
L55: Grow-in - Other responsible party
K56: Weather
K57: 2 - STPIS Exclusion (3.3)(a)
K58: 3 - STPIS Exclusion (3.3)(a)
K59: 4 - STPIS Exclusion (3.3)(a)
K60: 5 - STPIS Exclusion (3.3)(a)
K61: 6 - STPIS Exclusion (3.3)(a)
K62: 7 - STPIS Exclusion (3.3)(a)
B65: CA & RESET RINS TNSP | C65: dms_TNSP_0203_SubstationType | D65: dms_TNSP_020301_ProjectType | E65: dms_TNSP_020301_ProjectTrigger | F65: dms_TNSP_020302_ProjectType | G65: dms_TNSP_0203_ProjectTrigger
C66: Terminal station | D66: New substation establishment | E66: Demand growth | F66: New line on new route - single circuit | G66: Demand growth
C67: Switching station | D67: Capacity upgrade | E67: Voltage issues | F67: New line on new route - dual circuit | G67: Voltage issues
C68: Transmission substation | D68: Voltage upgrade | E68: Reactive power issue | F68: New line on new route - other | G68: Reactive power issue
C69: Other | D69: Other | E69: Fault level issues | F69: Line rebuild over existing route - single circuit | G69: Fault level issues
E70: Net market benefit | F70: Line rebuild over existing route - dual circuit | G70: Net market benefit
E71: Safety | F71: Reconductor - Single circuit | G71: Safety
E72: Environment | F72: Reconductor - Dual circuit | G72: Environment
E73: Other | F73: Reconductor - Other | G73: Other
F74: Line upgrade - raising/retensoring
F75: Line upgrade - voltage upgrade
F76: Line upgrade - capacity
F77: String spare circuit
F78: Other
B82: NAMED RANGES USED IN ETL PROCESS
M83: GAS ARR & RESET
B84: CA & RESET RINS DNSP ONLY | C84: dms_020303_01_UOM | D84: dms_020501_01_UOM | E84: dms_020501_02_UOM | F84: dms_020501_03_UOM | G84: dms_020501_04_UOM | H84: dms_020701_01_UOM | I84: dms_020701_02_UOM | J84: dms_020701_01_Rows | K84: dms_040102_01_UOM | L84: dms_040102_04_UOM | M84: dms_S140101_UOM | N84: dms_E050201_UOM | O84: dms_E050302_UOM
C85: Circuit line length in km | D85: 0's | E85: 0's | F85: 0's | G85: 0's | H85: km | I85: km | J85: Route line length within zone | K85: 0's | L85: days | M85: number | N85: per metre per connection | O85: metres per connection
C86: Circuit line length in km | D86: 0's | E86: 0's | F86: 0's | G86: 0's | H86: 0's | I86: 0's | J86: Number of maintenance spans | K86: 0's | L86: 0's | M86: number | N86: per service per connection | O86: number per connection
C87: Circuit line length in km | D87: MVA added | E87: MVA added | F87: MVA added | G87: MVA added | H87: km | I87: km | J87: Total length of maintenance spans | K87: 0's | L87: $0s | M87: number | N87: number per connection | O87: number per connection
C88: Circuit line length in km | D88: 0's | E88: 0's | F88: 0's | G88: 0's | H88: km | I88: km | J88: Length of vegetation corridors | K88: $0s | L88: 0's | M88: km
C89: Number | D89: total spend $0s | E89: total spend $0s | F89: total spend $0s | G89: total spend $0s | H89: 0's | I89: 0's | J89: Average number of trees per maintenance span
C90: Number | D90: net circuit km added | E90: net circuit km added | F90: net circuit km added | G90: net circuit km added | H90: years | I90: years | J90: Average frequency of cutting cycle
C91: Number | D91: total spend $0s | E91: total spend $0s | F91: total spend $0s | G91: total spend $0s
D92: net circuit km added | E92: net circuit km added | F92: net circuit km added | G92: net circuit km added
D93: total spend $0s | E93: total spend $0s | F93: total spend $0s | G93: total spend $0s
D94: 0's | F94: $0s
D95: 0's
D96: 0's
D97: $0s
B100: CA & RESET RINS TNSP ONLY | C100: dms_020701_01_UOM
C101: km
C102: 0's
C103: km
C104: 0's
C105: km
C106: metres
C107: years
B110: CA & RESET RINS DNSP & TNSP | C110: dms_020603_01_UOM
C111: 0's
C112: 0's
C113: 0's
C114: 0's
C115: (per cent)
B118: EB & RESET RINS DNSP ONLY | C118: dms_030601_01_UOM | D118: dms_030601_02_UOM | E118: dms_030701_01_UOM | F118: dms_030702_01_UOM | G118: dms_030703_01_UOM
C119: minutes/customer | D119: minutes/customer | E119: Customer / km | F119: % | G119: km
C120: minutes/customer | D120: minutes/customer | E120: MWh/customer | F120: Number of spans
C121: interruptions/customer | D121: interruptions/customer | E121: kVA / customer | F121: Number of spans
C122: interruptions/customer | D122: interruptions/customer | F122: Number of spans
F123: Number of spans
F124: Years
F125: Years
F126: Trees
F127: Trees
F128: Defects
F129: Defects
F130: Spans
F131: km
F132: Spans
C134: WHEN INSERTING COVER SHEET INTO A TNSP FILE - APPLY THESE NAMED RANGES
B135: EB & RESET RINS TNSP ONLY | C135: dms_030601_01_UOM | E135: dms_030701_01_UOM | F135: dms_030702_01_UOM
C136: % | E136: Number of spans | F136: km
C137: number | E137: Years | F137: %
C138: number | E138: Trees | F138: km
C139: % | E139: Defects | F139: number
C140: number | E140: Number of spans
C141: number | E141: km
C142: % | E142: km
C143: number | E143: Number of spans
C144: number
C145: %
C146: number
C147: %
C148: number
C149: %
C150: number
B152: EB & RESET RINS DNSP & TNSP | C152: dms_EB_RAB_PIT
C153: Beginning of year
C154: End of year
C155: End of year
C156: End of year
C157: End of year
C158: End of year
B160: ARR DNSP ONLY | C160: dms_030605_UOM | D160: dms_03060703_UOM | E160: dms_E020202_UOM | F160: Spare
C161: number | D161: number | E161: Length of mains replaced
C162: number | D162: number | E162: Number of services replaced
C163: number | D163: number
C164: number | D164: number
C165: number | D165: (per cent)
C166: number
C167: number
C168: number
C169: number
C170: number
C171: number
C172: number
C173: (per cent)
C174: (per cent)
B176: RFM | C176: dms_Beg | D176: dms_Mid | E176: dms_End
C177: Beginning of year | D177: Mid year | E177: End of Year
B179: PTRM | C179: dms_PTRM_RAB_PIT | D179: dms_PTRM_TAB_PIT | E179: DMS_Xfactor
C180: Beginning of year | D180: Beginning of year | E180: x factors
C181: End of year | D181: End of year
C182: End of year | D182: End of year
C183: End of year | D183: End of year
C184: End of year
B187: STPIS & MIC NAMED RANGES
B189: These "row descriptions" are the column headings in the various templates but become row descriptions in the ETL process
B191: Table 6.3 sustained interruptions - row descriptions | C191: dms_060301_CustNo_Affected_Row | D191: dms_060301_Avg_Duration_Sustained_Int_Row | E191: dms_060301_Effect_unplanned_SAIDI_Row | F191: dms_060301_Effect_unplanned_SAIFI_Row
C192: Number of customers affected by the interruption | D192: Average duration of sustained customer interruption | E192: Effect on unplanned SAIDI | F192: Effect on unplanned SAIFI
B195: Table 6.1 telephone answering - row descriptions and start date | C195: dms_060101_Rows | D195: dms_060102_Rows | E195: dms_060101_StartDateTxt
C196: Total number of calls (after removing excluded events) | D196: Number of calls answered within 30 seconds (after excluding excluded events) | E196: =dms_060701_StartDateTxt -> 1-Jul-2016
B199: Table 6.8.1 - row descriptions | C199: dms_060801_01_Rows | D199: dms_060801_02_Rows | E199: dms_060801_03_Rows | F199: dms_060801_04_Rows
C200: Number of interruptions | D200: Duration of interruptions | E200: Total unplanned minutes off supply | F200: Effect on unplanned MAIFI
B203: Table 7.9.4 - market impact component - row descriptions | C203: dms_070904_01_Rows | D203: without exclusions | E203: with exclusions
B206: These headings (Lists) are determined from the INDEX/MATCH function on the NSP selected on the Business & other details sheet
B208: Table 6.7.1 - daily performance data - unplanned - MAIFI -- row descriptions and header named range values | C208: dms_060701_Feeder_Header_Lvl4 | D208: =INDEX(dms_FeederName_1,MATCH(dms_TradingName,dms_TradingName_List)) -> - | E208: =INDEX(dms_FeederName_1,MATCH(dms_TradingName,dms_TradingName_List)) -> - | F208: =INDEX(dms_FeederName_2,MATCH(dms_TradingName,dms_TradingName_List)) -> CBD | G208: =INDEX(dms_FeederName_2,MATCH(dms_TradingName,dms_TradingName_List)) -> CBD | H208: =INDEX(dms_FeederName_3,MATCH(dms_TradingName,dms_TradingName_List)) -> Urban | I208: =INDEX(dms_FeederName_3,MATCH(dms_TradingName,dms_TradingName_List)) -> Urban | J208: =INDEX(dms_FeederName_4,MATCH(dms_TradingName,dms_TradingName_List)) -> Short rural | K208: =INDEX(dms_FeederName_4,MATCH(dms_TradingName,dms_TradingName_List)) -> Short rural | L208: =IF((INDEX(dms_FeederName_5,MATCH(dms_TradingName,dms_TradingName_List))=0),"Network",(INDEX(dms_FeederName_5,MATCH(dms_TradingName,dms_TradingName_List)))) -> Long rural | M208: =IF((INDEX(dms_FeederName_5,MATCH(dms_TradingName,dms_TradingName_List))=0),"Network",(INDEX(dms_FeederName_5,MATCH(dms_TradingName,dms_TradingName_List)))) -> Long rural | N208: Network | O208: Network
C210: dms_060701_Rows | D210: All events | E210: After removing excluded events | F210: All events | G210: After removing excluded events | H210: All events | I210: After removing excluded events | J210: All events | K210: After removing excluded events | L210: All events | M210: After removing excluded events | N210: All events | O210: After removing excluded events
D211: the number of column headings changes from 10 to 12 depending on the number of feeder categories for the NSP
C213: dms_0603_FeederList | D213: =INDEX(dms_FeederName_1,MATCH(dms_TradingName,dms_TradingName_List)) -> - | E213: =INDEX(dms_FeederName_2,MATCH(dms_TradingName,dms_TradingName_List)) -> CBD | F213: =INDEX(dms_FeederName_3,MATCH(dms_TradingName,dms_TradingName_List)) -> Urban | G213: =INDEX(dms_FeederName_4,MATCH(dms_TradingName,dms_TradingName_List)) -> Short rural
B216: Use these to add to specific worksheets in existing files | C216: Use these to add to specific worksheets in existing files
B219: ARRs 6.7 STPIS daily performance | C219: dms_060101_Values | D219: dms_060102_Values | E219: dms_060701_Values
C220: dms_LeapYear
B223: ARR's 6.8 STPIS exclusions | C223: dms_060801_Event_Date | D223: dms_060801_OutageID | E223: dms_060801_FeederID | F223: dms_060801_FeederClass | G223: dms_060801_CauseID | H223: dms_060801_01_Values | I223: dms_060801_02_Values | J223: dms_060801_03_Values | K223: dms_060801_Excl_Cat | L223: dms_060801_04_Values
C224: dms_060801_StartCell
B227: CA 6.3 sustained interruptions | C227: dms_060301_Event_Date | D227: dms_060301_Event_Time | E227: dms_060301_AssetID | F227: dms_060301_FeederClass | G227: dms_060301_Reason | H227: dms_060301_DetailedReason | I227: dms_060301_CustNo_Affected_Values | J227: dms_060301_Avg_Duration_Sustained_Int_Values | K227: dms_060301_Effect_unplanned_SAIDI_Values | L227: dms_060301_Effect_unplanned_SAIFI_Values | M227: dms_060301_MED

Sheet AER lookups (hidden)
B1: AER LOOKUP TABLES
B3: Data in these columns used for data validation and database purposes.
B4: Date last modified: | C4: 2017-01-16 | D4: added (Albury and Victora) for AGN
C5: 2016-10-17 | D5: updated TransGrid's correct legal name, corrected TasNetworks (T) to June financial year
C6: 2017-02-01 | D6: inserted Power and Water, added NRs (dms_FeederCat_1 and dms_FeederCat_2)
C7: 2017-03-03 | D7: inserted AEMO as a business
C8: 2018-03-28 | D8: major changes to accommodate STPIS
C9: Template Version | D9: 5
Z11: FOR ELECTRICITY BUSINESSES ONLY
Z12: Feeder Types | AD12: TasNetworks (D) | AE12: Feeder Names
Z14: CBD | AA14: Urban | AB14: Short rural | AC14: long rural | AD14: EXTRA
B15: dms_TradingName_List | C15: dms_TradingNameFull_List | D15: dms_ABN_List | E15: dms_JurisdictionList | F15: dms_Sector_List | G15: dms_Segment_List | H15: dms_FormControl_List | I15: dms_RPT_List | J15: dms_RPTMonth_List | K15: dms_CRCPlength_List | L15: dms_FRCPlength_List | M15: dms_PRCPlength_List | N15: dms_663_List | O15: dms_DeterminationRef_List | P15: dms_Addr1_List | Q15: dms_Addr2_List | R15: dms_Suburb_List | S15: dms_State_List | T15: dms_PostCode_List | U15: dms_PAddr1_List | V15: dms_PAddr2_List | W15: dms_PSuburb_List | X15: dms_PState_List | Y15: dms_PPostCode_List | Z15: dms_CBD_flag | AA15: dms_Urban_flag | AB15: dms_ShortRural_flag | AC15: dms_LongRural_flag | AD15: dms_FeederType_5_flag | AE15: dms_FeederName_1 | AF15: dms_FeederName_2 | AG15: dms_FeederName_3 | AH15: dms_FeederName_4 | AI15: dms_FeederName_5 | AJ15: dms_Public_Lighting_List | AK15: Name
B16: AEMO | C16: Australian Energy Market Operator Ltd | D16: 94072010327 | E16: Vic | F16: Electricity | G16: Transmission | H16: - | I16: Financial | J16: March | K16: 5 | L16: 5 | M16: 5 | N16: x | O16: - | P16: Level 22 | Q16: 530 Collins Street | R16: MELBOURNE | S16: Vic | T16: 3000 | U16: GPO Box 2008 | W16: MELBOURNE | X16: Vic | Y16: 3001 | Z16: NO | AA16: NO | AB16: NO | AC16: NO | AD16: NO | AE16: - | AF16: CBD | AG16: Urban | AH16: Short rural | AI16: Long rural | AK16: NO
B17: AusNet (T) | C17: AusNet Transmission Group Pty Ltd | D17: 78079798173 | E17: Vic | F17: Electricity | G17: Transmission | H17: Revenue cap | I17: Financial | J17: March | K17: 5 | L17: 5 | M17: 5 | N17: 2 | O17: transmission determination | P17: Level 32 | Q17: 2 Southbank Boulevard | R17: SOUTHBANK | S17: Vic | T17: 3006 | U17: Locked Bag 14051 | W17: MELBOURNE CITY MAIL CENTRE | X17: Vic | Y17: 8001 | Z17: NO | AA17: NO | AB17: NO | AC17: NO | AD17: NO | AE17: CBD | AF17: Urban | AG17: Short rural | AH17: Long rural | AJ17: NO | AK17: =B17 -> AusNet (T) | AL17: AEMO
B18: Australian Transmission Co. | C18: Australian Transmission Co. | D18: 11222333444 | E18: NSW | F18: Electricity | G18: Transmission | H18: Revenue cap | I18: Financial | J18: June | K18: 5 | L18: 5 | M18: 5 | N18: 5 | O18: transmission determination | P18: 123 Straight Street | R18: SYDNEY | S18: NSW | T18: 2000 | U18: PO Box 123 | W18: SYDNEY | X18: NSW | Y18: 2000 | Z18: NO | AA18: NO | AB18: NO | AC18: NO | AD18: NO | AE18: CBD | AF18: Urban | AG18: Short rural | AH18: Long rural | AJ18: NO | AK18: Australian Transmission Co.
B19: Directlink | C19: Directlink | D19: 16779340889 | E19: Qld | F19: Electricity | G19: Transmission | H19: Revenue cap | I19: Financial | J19: June | K19: 5 | L19: 5 | M19: 5 | N19: 5 | O19: transmission determination | P19: Level 25 | Q19: 580 George Street | R19: SYDNEY | S19: NSW | T19: 2000 | U19: PO Box R41 | W19: ROYAL EXCHANGE | X19: NSW | Y19: 1225 | Z19: NO | AA19: NO | AB19: NO | AC19: NO | AD19: NO | AE19: - | AF19: CBD | AG19: Urban | AH19: Short rural | AI19: Long rural | AK19: NO | AL19: Directlink
B20: ElectraNet | C20: ElectraNet | D20: 41094482416 | E20: SA | F20: Electricity | G20: Transmission | H20: Revenue cap | I20: Financial | J20: June | K20: 5 | L20: 5 | M20: 5 | N20: 5 | O20: transmission determination | P20: 52-55 East Terrace | Q20: Rymill Park | R20: ADELAIDE | S20: SA | T20: 5000 | U20: PO Box 7096 | V20: Hutt Street Post Office | W20: ADELAIDE | X20: SA | Y20: 5000 | Z20: NO | AA20: NO | AB20: NO | AC20: NO | AD20: NO | AE20: - | AF20: CBD | AG20: Urban | AH20: Short rural | AI20: Long rural | AK20: NO | AL20: ElectraNet
B21: Murraylink | C21: Murraylink | D21: 79181207909 | E21: SA | F21: Electricity | G21: Transmission | H21: Revenue cap | I21: Financial | J21: June | K21: 5 | L21: 5 | M21: 5 | N21: 5 | O21: transmission determination | P21: Level 19 | Q21: 580 George Street | R21: SYDNEY | S21: NSW | T21: 2000 | U21: PO Box R41 | W21: ROYAL EXCHANGE | X21: NSW | Y21: 1225 | Z21: NO | AA21: NO | AB21: NO | AC21: NO | AD21: NO | AE21: - | AF21: CBD | AG21: Urban | AH21: Short rural | AI21: Long rural | AK21: NO | AL21: Murraylink
B22: Powerlink | C22: Queensland Electricity Transmission Corporation Limited trading as Powerlink Queensland | D22: 82078849233 | E22: Qld | F22: Electricity | G22: Transmission | H22: Revenue cap | I22: Financial | J22: June | K22: 5 | L22: 5 | M22: 5 | N22: 5 | O22: transmission determination | P22: 33 Harold St | R22: VIRGINIA | S22: Qld | T22: 4014 | U22: PO Box 1193 | W22: VIRGINIA | X22: QLD | Y22: 4014 | Z22: NO | AA22: NO | AB22: NO | AC22: NO | AD22: NO | AE22: CBD | AF22: Urban | AG22: Short rural | AH22: Long rural | AJ22: NO | AK22: =B22 -> Powerlink | AL22: TasNetworks (T)
B23: TasNetworks (T) | C23: TasNetworks (T) | D23: 24167357299 | E23: Tas | F23: Electricity | G23: Transmission | H23: Revenue cap | I23: Financial | J23: June | K23: 5 | L23: 5 | M23: 5 | N23: 5 | O23: transmission determination | P23: 1-7 Maria Street | R23: LENAH VALLEY | S23: Tas | T23: 7008 | U23: PO Box 606 | W23: MOONAH | X23: Tas | Y23: 7009 | Z23: NO | AA23: NO | AB23: NO | AC23: NO | AD23: NO | AE23: - | AF23: CBD | AG23: Urban | AH23: Short rural | AI23: Long rural | AK23: NO | AL23: TransGrid
B24: TransGrid | C24: NSW Electricity Networks Operations Pty Ltd trading as TransGrid | D24: 70 250 995 390 | E24: NSW | F24: Electricity | G24: Transmission | H24: Revenue cap | I24: Financial | J24: June | K24: 5 | L24: 5 | M24: 4 | N24: 5 | O24: transmission determination | P24: 180 Thomas Street | R24: SYDNEY | S24: NSW | T24: 2000 | U24: PO Box A1000 | W24: SYDNEY SOUTH | X24: NSW | Y24: 1235 | Z24: NO | AA24: NO | AB24: NO | AC24: NO | AD24: NO | AE24: - | AF24: CBD | AG24: Urban | AH24: Short rural | AI24: Long rural | AK24: NO
B29: The Reg Year Ending (dms_RYE) must be set to the last year of the regulatory period. For forecast data is is usually (FRCP_y5) for actual it is a single year (CRY). For historical actual data the RYE will need to be set manually in the business details sheet by setting the dms_Multiyear_flag to 1 and putting the correct value in 'dms_Specified_FinalYear. See cells C67:C68
B30: dms_Model_List | C30: dms_Model_Name_Format1 | D30: dms_Worksheet_List | E30: dms_Model_Span_List
B31: ARR | C31: Annual Reporting | D31: =IF(dms_MultiYear_ResponseFlag="yes","NEW HISTORICAL ANNUAL REPORTING","ANNUAL REPORTING") -> ANNUAL REPORTING | E31: 1
B32: CA | C32: Category Analysis | D32: =IF(dms_MultiYear_ResponseFlag="yes","NEW HISTORICAL CATEGORY ANALYSIS","CATEGORY ANALYSIS") -> CATEGORY ANALYSIS | E32: 1
B33: CESS | C33: Capitlal Expenditure | D33: CAPITLAL EXPENDITURE SHARING SCHEMING | E33: 5
B34: CPI | C34: CPI | D34: CPI | E34: 5
B35: EB | C35: Economic Benchmarking | D35: =IF(dms_MultiYear_ResponseFlag="yes","NEW HISTORICAL ECONOMIC BENCHMARKING","ECONOMIC BENCHMARKING") -> ECONOMIC BENCHMARKING | E35: 1
B36: Pricing | C36: Pricing Proposal | D36: PRICING PROPOSAL | E36: 5
B37: PTRM | C37: Post Tax Revenue Model | D37: POST TAX REVENUE MODEL | E37: 5
B38: Reset | C38: Regulatory Reporting (Reset) | D38: REGULATORY REPORTING STATEMENT | E38: 5
B39: RFM | C39: Roll Forward Model | D39: ROLL FORWARD MODEL | E39: 5
B40: WACC | C40: Weighted Average Cost of Capital | D40: WEIGHTED AVERAGE COST OF CAPITAL | E40: 1
B44: Financial | C44: Calendar | E44: PREVIOUS | G44: CURRENT | I44: FORTHCOMING
B45: 1987-88 | C45: 1988 | D45: PRCP_y1 | E45: =INDEX(INDIRECT(dms_RPT),dms_PRCP_start_row) -> 2013-14 | F45: CRCP_y1 | G45: =INDEX(INDIRECT(dms_RPT),dms_CRCP_start_row) -> 2018-19 | H45: =FRCP_y1 -> 2023-24 | I45: =INDEX(INDIRECT(dms_RPT),dms_FRCP_start_row) -> 2023-24
B46: 1988-89 | C46: 1989 | D46: PRCP_y2 | E46: =INDEX(INDIRECT(dms_RPT),dms_PRCP_start_row+1) -> 2014-15 | F46: CRCP_y2 | G46: =INDEX(INDIRECT(dms_RPT),dms_CRCP_start_row+1) -> 2019-20 | H46: FRCP_y2 | I46: =INDEX(INDIRECT(dms_RPT),dms_FRCP_start_row+1) -> 2024-25
B47: 1989-90 | C47: 1990 | D47: PRCP_y3 | E47: =INDEX(INDIRECT(dms_RPT),dms_PRCP_start_row+2) -> 2015-16 | F47: CRCP_y3 | G47: =INDEX(INDIRECT(dms_RPT),dms_CRCP_start_row+2) -> 2020-21 | H47: FRCP_y3 | I47: =INDEX(INDIRECT(dms_RPT),dms_FRCP_start_row+2) -> 2025-26
B48: 1990-91 | C48: 1991 | D48: PRCP_y4 | E48: =INDEX(INDIRECT(dms_RPT),dms_PRCP_start_row+3) -> 2016-17 | F48: CRCP_y4 | G48: =INDEX(INDIRECT(dms_RPT),dms_CRCP_start_row+3) -> 2021-22 | H48: FRCP_y4 | I48: =INDEX(INDIRECT(dms_RPT),dms_FRCP_start_row+3) -> 2026-27
B49: 1991-92 | C49: 1992 | D49: PRCP_y5 | E49: =INDEX(INDIRECT(dms_RPT),dms_PRCP_start_row+4) -> 2017-18 | F49: CRCP_y5 | G49: =INDEX(INDIRECT(dms_RPT),dms_CRCP_start_row+4) -> 2022-23 | H49: FRCP_y5 | I49: =INDEX(INDIRECT(dms_RPT),dms_FRCP_start_row+4) -> 2027-28
B50: 1992-93 | C50: 1993 | D50: PRCP_y6 | E50: =INDEX(INDIRECT(dms_RPT),dms_PRCP_start_row+5) -> 2018-19 | F50: CRCP_y6 | G50: =INDEX(INDIRECT(dms_RPT),dms_CRCP_start_row+5) -> 2023-24 | H50: FRCP_y6 | I50: =INDEX(INDIRECT(dms_RPT),dms_FRCP_start_row+5) -> 2028-29
B51: 1993-94 | C51: 1994 | D51: PRCP_y7 | E51: =INDEX(INDIRECT(dms_RPT),dms_PRCP_start_row+6) -> 2019-20 | F51: CRCP_y7 | G51: =INDEX(INDIRECT(dms_RPT),dms_CRCP_start_row+6) -> 2024-25 | H51: FRCP_y7 | I51: =INDEX(INDIRECT(dms_RPT),dms_FRCP_start_row+6) -> 2029-30
B52: 1994-95 | C52: 1995 | D52: PRCP_y8 | E52: =INDEX(INDIRECT(dms_RPT),dms_PRCP_start_row+7) -> 2020-21 | F52: CRCP_y8 | G52: =INDEX(INDIRECT(dms_RPT),dms_CRCP_start_row+7) -> 2025-26 | H52: FRCP_y8 | I52: =INDEX(INDIRECT(dms_RPT),dms_FRCP_start_row+7) -> 2030-31
B53: 1995-96 | C53: 1996 | D53: PRCP_y9 | E53: =INDEX(INDIRECT(dms_RPT),dms_PRCP_start_row+8) -> 2021-22 | F53: CRCP_y9 | G53: =INDEX(INDIRECT(dms_RPT),dms_CRCP_start_row+8) -> 2026-27 | H53: FRCP_y9 | I53: =INDEX(INDIRECT(dms_RPT),dms_FRCP_start_row+8) -> 2031-32
B54: 1996-97 | C54: 1997 | D54: PRCP_y10 | E54: =INDEX(INDIRECT(dms_RPT),dms_PRCP_start_row+9) -> 2022-23 | F54: CRCP_y10 | G54: =INDEX(INDIRECT(dms_RPT),dms_CRCP_start_row+9) -> 2027-28 | H54: FRCP_y10 | I54: =INDEX(INDIRECT(dms_RPT),dms_FRCP_start_row+9) -> 2032-33
B55: 1997-98 | C55: 1998 | D55: PRCP_y11 | E55: =INDEX(INDIRECT(dms_RPT),dms_PRCP_start_row+10) -> 2023-24 | F55: CRCP_y11 | G55: =INDEX(INDIRECT(dms_RPT),dms_CRCP_start_row+10) -> 2028-29 | H55: FRCP_y11 | I55: =INDEX(INDIRECT(dms_RPT),dms_FRCP_start_row+10) -> 2033-34
B56: 1998-99 | C56: 1999 | D56: PRCP_y12 | E56: =INDEX(INDIRECT(dms_RPT),dms_PRCP_start_row+11) -> 2024-25 | F56: CRCP_y12 | G56: =INDEX(INDIRECT(dms_RPT),dms_CRCP_start_row+11) -> 2029-30 | H56: FRCP_y12 | I56: =INDEX(INDIRECT(dms_RPT),dms_FRCP_start_row+11) -> 2034-35
B57: 1999-00 | C57: 2000 | D57: PRCP_y13 | E57: =INDEX(INDIRECT(dms_RPT),dms_PRCP_start_row+12) -> 2025-26 | F57: CRCP_y13 | G57: =INDEX(INDIRECT(dms_RPT),dms_CRCP_start_row+12) -> 2030-31 | H57: FRCP_y13 | I57: =INDEX(INDIRECT(dms_RPT),dms_FRCP_start_row+12) -> 2035-36
B58: 2000-01 | C58: 2001 | D58: PRCP_y14 | E58: =INDEX(INDIRECT(dms_RPT),dms_PRCP_start_row+13) -> 2026-27 | F58: CRCP_y14 | G58: =INDEX(INDIRECT(dms_RPT),dms_CRCP_start_row+13) -> 2031-32 | H58: FRCP_y14 | I58: =INDEX(INDIRECT(dms_RPT),dms_FRCP_start_row+13) -> 2036-37
B59: 2001-02 | C59: 2002 | D59: PRCP_y15 | E59: =INDEX(INDIRECT(dms_RPT),dms_PRCP_start_row+14) -> 2027-28 | F59: CRCP_y15 | G59: =INDEX(INDIRECT(dms_RPT),dms_CRCP_start_row+14) -> 2032-33 | H59: FRCP_y15 | I59: =INDEX(INDIRECT(dms_RPT),dms_FRCP_start_row+14) -> 
B60: 2002-03 | C60: 2003 | D60: PRCP_y16 | E60: =INDEX(INDIRECT(dms_RPT),dms_PRCP_start_row+15) -> 2028-29 | F60: CRCP_y16 | G60: =INDEX(INDIRECT(dms_RPT),dms_CRCP_start_row+15) -> 2033-34 | H60: FRCP_y16 | I60: =INDEX(INDIRECT(dms_RPT),dms_FRCP_start_row+15) -> 
B61: 2003-04 | C61: 2004
B62: 2004-05 | C62: 2005
B63: 2005-06 | C63: 2006 | E63: CRY - FRY
B64: 2006-07 | C64: 2007 | D64: dms_y1 | E64: =IFERROR(INDEX(INDIRECT(dms_RPT),dms_CRY_start_row),0) -> 2021-22
B65: 2007-08 | C65: 2008 | D65: dms_y2 | E65: =IFERROR(INDEX(INDIRECT(dms_RPT),dms_CRY_start_row+1),0) -> 2022-23
B66: 2008-09 | C66: 2009 | D66: dms_y3 | E66: =IFERROR(INDEX(INDIRECT(dms_RPT),dms_CRY_start_row+2),0) -> 2023-24
B67: 2009-10 | C67: 2010 | D67: dms_y4 | E67: =IFERROR(INDEX(INDIRECT(dms_RPT),dms_CRY_start_row+3),0) -> 2024-25
B68: 2010-11 | C68: 2011 | D68: dms_y5 | E68: =IFERROR(INDEX(INDIRECT(dms_RPT),dms_CRY_start_row+4),0) -> 2025-26
B69: 2011-12 | C69: 2012 | D69: dms_y6 | E69: =IFERROR(INDEX(INDIRECT(dms_RPT),dms_CRY_start_row+5),0) -> 2026-27
B70: 2012-13 | C70: 2013 | D70: dms_y7 | E70: =IFERROR(INDEX(INDIRECT(dms_RPT),dms_CRY_start_row+6),0) -> 2027-28
B71: 2013-14 | C71: 2014 | D71: dms_y8 | E71: =IFERROR(INDEX(INDIRECT(dms_RPT),dms_CRY_start_row+7),0) -> 2028-29
B72: 2014-15 | C72: 2015 | D72: dms_y9 | E72: =IFERROR(INDEX(INDIRECT(dms_RPT),dms_CRY_start_row+8),0) -> 2029-30
B73: 2015-16 | C73: 2016 | D73: dms_y10 | E73: =IFERROR(INDEX(INDIRECT(dms_RPT),dms_CRY_start_row+9),0) -> 2030-31
B74: 2016-17 | C74: 2017 | D74: dms_y11 | E74: =IFERROR(INDEX(INDIRECT(dms_RPT),dms_CRY_start_row+10),0) -> 2031-32
B75: 2017-18 | C75: 2018 | D75: dms_y12 | E75: =IFERROR(INDEX(INDIRECT(dms_RPT),dms_CRY_start_row+11),0) -> 2032-33
B76: 2018-19 | C76: 2019 | D76: dms_y13 | E76: =IFERROR(INDEX(INDIRECT(dms_RPT),dms_CRY_start_row+12),0) -> 2033-34
B77: 2019-20 | C77: 2020 | D77: dms_y14 | E77: =IFERROR(INDEX(INDIRECT(dms_RPT),dms_CRY_start_row+13),0) -> 2034-35
B78: 2020-21 | C78: 2021 | D78: dms_y15 | E78: =IFERROR(INDEX(INDIRECT(dms_RPT),dms_CRY_start_row+14),0) -> 2035-36
B79: 2021-22 | C79: 2022 | D79: dms_y16 | E79: =IFERROR(INDEX(INDIRECT(dms_RPT),dms_CRY_start_row+15),0) -> 2036-37
B80: 2022-23 | C80: 2023
B81: 2023-24 | C81: 2024
B82: 2024-25 | C82: 2025
B83: 2025-26 | C83: 2026
B84: 2026-27 | C84: 2027
B85: 2027-28 | C85: 2028
B86: 2028-29 | C86: 2029
B87: 2029-30 | C87: 2030
B88: 2030-31 | C88: 2031
B89: 2031-32 | C89: 2032
B90: 2032-33 | C90: 2033
B91: 2033-34 | C91: 2034
B92: 2034-35 | C92: 2035
B93: 2035-36 | C93: 2036
B94: 2036-37 | C94: 2037

Sheet AER ETL (hidden)
A1: DRAFT RIN - 20200429 (WIP) | B1: AER ETL INFORMATION
B3: USES NAMED RANGES FLAG | C3: yes | D3: dms_Defined_Names_Used
B5: IF THIS IS AN ABC RIN - make sure the the named range CRY is applied and the named range dms_dollar_nom_UOM is applied
B6: IF THIS IS A RESET RIN - make sure the named ranges CRY and dms_dollar_nom_UOM are NOT present in the workbook
B7: FOR ABC RINS THAT SPAN MULTIPLE YEARS - make sure MultiYear Flag is set and final year entered as required
B9: Full trading name | C9: =INDEX(dms_TradingNameFull_List,MATCH(dms_TradingName,dms_TradingName_List)) -> ElectraNet | E9: dms_TradingNameFull
B10: Trading name | C10: =dms_TradingName -> ElectraNet
A11: Selected here | B11: Model / RIN | C11: Reset | D11: dms_Model
A12: Read from Business & other details | B12: Source | C12: Regulatory proposal | D12: dms_Source
B13: Data quality | C13: Consolidated | D13: For DB purposes this is always Consoldiated
B14: Data status | C14: Public | D14: For DB purposes this is always Public
B15: Amendment reason | C15: =dms_Amendment_Text -> . | F15: dms_AmendmentReason
B16: Submission date | C16: =dms_Typed_Submission_Date -> 2022-01-31 | D16: dms_SubmissionDate
A18: Redundant | B18: EBSS - First application of scheme in forthcoming period? | C18: No
A19: Pre-populated from lookup table | B19: Data ingestion data quality | C19: Consolidated | D19: dms_DataQuality | E19: Always Consolidated
B20: Sector | C20: =INDEX(dms_Sector_List,MATCH(dms_TradingName,dms_TradingName_List)) -> Electricity | D20: dms_Sector | E20: =INDEX(dms_Sector_List,MATCH(dms_TradingName,dms_TradingName_List))
B21: Segment | C21: =INDEX(dms_Segment_List,MATCH(dms_TradingName,dms_TradingName_List)) -> Transmission | D21: dms_Segment | E21: =INDEX(dms_Segment_List,MATCH(dms_TradingName,dms_TradingName_List))
B22: Regulatory Year Ending | C22: =dms_RYE_result -> 2028 | D22: dms_RYE | E22: =IF(dms_MultiYear_Flag=1,LEFT(dms_Specified_FinalYear,2)&RIGHT(dms_Specified_FinalYear,2),INDEX(dms_RYE_Formula_Result,MATCH(dms_Model,dms_Model_List)))
B23: Reporting Period Type | C23: =INDEX(dms_RPT_List,MATCH(dms_TradingName,dms_TradingName_List)) -> Financial | D23: dms_RPT | E23: =INDEX(dms_RPT_List,MATCH(dms_TradingName,dms_TradingName_List))
B24: EB/CA Unit of Measure for Monetary Values | C24: $0s | D24: dms_dollar_nom_UOM | E24: If the cover sheet is attached to an ABC RIN apply the NAMED RANGE to the cell
B25: Security Classification | C25: Public | D25: dms_Classification | E25: Always Public
B26: Jurisdiction | C26: =INDEX(dms_JurisdictionList,MATCH(dms_TradingName,dms_TradingName_List)) -> SA | D26: dms_Jurisdiction | E26: =INDEX(dms_JurisdictionList,MATCH(dms_TradingName,dms_TradingName_List))
A27: Relevant for PTRM, RFMs and Reset RINS | B27: $ REAL REFERENCES
B28: Does the named range CRY exist in this file? | C28: =IFERROR(CRY,"NO") -> NO
B29: CRY-1 (last full calendar year before CRY) | C29: =IFERROR(IF(dms_RPT="calendar",CRY-1,LEFT(CRY,4)),"CRY not present") -> CRY not present | D29: dms_Cal_Year_B4_CRY | E29: '=IF(dms_RPT="financial",VALUE(LEFT(dms_SingleYear_FinalYear_Result,4)),VALUE(LEFT(dms_SingleYear_FinalYear_Result,4)-1))
B30: Dollar $ real month | C30: =INDEX(dms_RPTMonth_List,MATCH(dms_TradingName,dms_TradingName_List)) -> June | D30: dms_RPTMonth | E30: =INDEX(dms_RPTMonth_List,MATCH(dms_TradingName,dms_TradingName_List))
B31: Dollar $ real (the last month before the FRCP_y1) | C31: =IF(dms_SingleYearModel="yes",CONCATENATE(dms_RPTMonth)&" "&VALUE((LEFT(dms_CRY_start_year,2)&RIGHT(dms_CRY_start_year,2))),CONCATENATE(dms_RPTMonth)&" "&dms_DollarReal_year) -> June 2023 | D31: dms_DollarReal | E31: =IF(SUM(dms_SingleYear_Model)>0,CONCATENATE(dms_RPTMonth)&" "&VALUE((LEFT(CRY,2))&RIGHT(CRY,2)),CONCATENATE(dms_RPTMonth)&" "&VALUE((LEFT(dms_RYE,2)&RIGHT(dms_RYE,2))))
B32: Dollar $ real previous year (PRCP_y5) | C32: =CONCATENATE(dms_RPTMonth)&" "&dms_Previous_DollarReal_year -> June 2018 | D32: dms_DollarReal_Prev | E32: =IF(SUM(dms_SingleYear_Model)>0,CONCATENATE(dms_RPTMonth)&" "&VALUE(((LEFT(CRY,2))&RIGHT(CRY,2))-1),CONCATENATE(dms_RPTMonth)&" "&VALUE(((LEFT(dms_CRCP_FirstYear_Result,2)&RIGHT(dms_CRCP_FirstYear_Result,2))))-1)
B33: PTRM/ RFMs
B34: Form of control | C34: =INDEX(dms_FormControl_List,MATCH(dms_TradingName,dms_TradingName_List)) -> Revenue cap | D34: dms_FormControl | E34: =INDEX(dms_FormControl_List,MATCH(dms_TradingName,dms_TradingName_List))
A35: All potential values for Regulatory Years or RYEs as calculated | B35: This block works out the various RYE's for ALL RIN types and MODELS
B36: dms_start_year | C36: =FRCP_y1 -> 2023-24 | D36: =FRCP_y1 | E36: FRCP_y1 from cover sheet
B37: dms_CRY_start_year | C37: =IFERROR(CRY,CRCP_y4) -> 2021-22 | D37: =IFERROR(CRY,CRCP_y4)
B38: dms_CRY_start_row | C38: =IFERROR(MATCH(dms_CRY_start_year,INDIRECT(dms_RPT),0),0) -> 35 | D38: =IFERROR(MATCH(dms_CRY_start_year,INDIRECT(dms_RPT),0),0)
B39: dms_FRCP_start_row | C39: =MATCH(dms_start_year,INDIRECT(dms_RPT),0) -> 37 | D39: =MATCH(dms_start_year,INDIRECT(dms_RPT),0) | E39: Uses FRCP_y1 as a start reference
B40: dms_CRCP_start_row | C40: =dms_FRCP_start_row-dms_CRCPlength_Num -> 32 | D40: =dms_FRCP_start_row-dms_CRCPlength_Num | E40: Uses the value in dms_CRCPlength_Num
B41: dms_PRCP_start_row | C41: =dms_FRCP_start_row-dms_CRCPlength_Num-dms_PRCPlength_Num -> 27 | D41: =dms_FRCP_start_row-dms_CRCPlength_Num-dms_PRCPlength_Num | E41: Uses the value in dms_CRCPlength_Num and dms_PRCPlength_Num
B42: dms_RYE_start_row | C42: =dms_FRCP_start_row+(dms_FRCPlength_Num-1) -> 41 | D42: =dms_FRCP_start_row+(dms_FRCPlength_Num-1) | E42: Uses the value in dms_FRCPlength_Num-1
B43: FRCP_start_year | C43: =INDEX(INDIRECT(dms_RPT),dms_FRCP_start_row) -> 2023-24 | D43: =INDEX(INDIRECT(dms_RPT),dms_FRCP_start_row) | E43: Converts the FRCP start row to display the year
B44: CRCP_start_year | C44: =INDEX(INDIRECT(dms_RPT),dms_CRCP_start_row) -> 2018-19 | D44: =INDEX(INDIRECT(dms_RPT),dms_CRCP_start_row) | E44: Converts the CRCP start row to display the year
B45: PRCP_start_year | C45: =INDEX(INDIRECT(dms_RPT),dms_PRCP_start_row) -> 2013-14 | D45: =INDEX(INDIRECT(dms_RPT),dms_PRCP_start_row) | E45: Converts the PRCP start row to display the year
B46: FRCP_final_year | C46: =INDEX(INDIRECT(dms_RPT),dms_FRCP_start_row+dms_FRCPlength_Num-1) -> 2027-28 | D46: =INDEX(INDIRECT(dms_RPT),dms_FRCP_start_row+dms_FRCPlength_Num-1) | E46: Finds the FRCP final year
B47: CRCP_final_year | C47: =INDEX(INDIRECT(dms_RPT),dms_CRCP_start_row+dms_CRCPlength_Num-1) -> 2022-23 | D47: =INDEX(INDIRECT(dms_RPT),dms_CRCP_start_row+dms_CRCPlength_Num-1) | E47: Finds the CRCP final year
B48: PRCP_final_year | C48: =INDEX(INDIRECT(dms_RPT),dms_PRCP_start_row+dms_FRCPlength_Num-1) -> 2017-18 | D48: =INDEX(INDIRECT(dms_RPT),dms_PRCP_start_row+dms_FRCPlength_Num-1) | E48: Finds the PRCP final year
B49: dms_Reset_final_year | C49: =INDEX(INDIRECT(dms_RPT),dms_RYE_start_row) -> 2027-28 | D49: =INDEX(INDIRECT(dms_RPT),dms_RYE_start_row) | E49: For Resets and PTRM/RFMs (same as FRCP_final_year)
B50: dms_SpecifiedYear_final_year | C50: =FRY ->  | D50: =FRY | E50: FRY from cover sheet
B51: dms_DollarReal_year | C51: =LEFT(CRCP_final_year,2)&RIGHT(CRCP_final_year,2) -> 2023 | D51: =LEFT(CRCP_final_year,2)&RIGHT(CRCP_final_year,2) | E51: Uses the value in CRCP_final_year
B52: dms_Previous_DollarReal_year | C52: =LEFT(PRCP_final_year,2)&RIGHT(PRCP_final_year,2) -> 2018 | D52: =LEFT(PRCP_final_year,2)&RIGHT(PRCP_final_year,2) | E52: Uses the value in PRCP_final_year
B53: dms_CRY_RYE | C53: =IFERROR(LEFT(CRY,2)&RIGHT(CRY,2),0) -> 0 | D53: =IFERROR(LEFT(CRY,2)&RIGHT(CRY,2),0) | E53: For ABC single year RINS
B54: dms_Reset_RYE | C54: =IF(dms_Model_Span>1,IF(dms_Model="RFM",(LEFT(dms_DollarReal_year,2)&RIGHT(dms_DollarReal_year,2)),(LEFT(dms_Reset_final_year,2)&RIGHT(dms_Reset_final_year,2))),0) -> 2028 | D54: =IF(dms_Model_Span>1,IF(dms_Model="RFM",(LEFT(dms_DollarReal_year,2)&RIGHT(dms_DollarReal_year,2)),(LEFT(dms_Reset_final_year,2)&RIGHT(dms_Reset_final_year,2))),0) | E54: If model span > 1 then uses dms_Reset_RYE otherwise it's a multi year ABC and uses dms_Specified_RYE
B55: dms_Specified_RYE | C55: =IF(dms_MultiYear_ResponseFlag="Yes",(LEFT(dms_Specified_FinalYear,2)&RIGHT(dms_Specified_FinalYear,2)),0) -> 0 | D55: =IF(dms_MultiYear_ResponseFlag="Yes",(LEFT(dms_Specified_FinalYear,2)&RIGHT(dms_Specified_FinalYear,2)),0) | E55: If multi year ABC - uses dms_Specified_FinalYear
B56: dms_Model_Span | C56: =INDEX(dms_Model_Span_List,MATCH(dms_Model,dms_Model_List)) -> 5 | D56: =INDEX(dms_Model_Span_List,MATCH(dms_Model,dms_Model_List)) | E56: A result of 5 is used to signify that it is more than 1 year span
B57: dms_RYE_result | C57: =IF(dms_MultiYear_ResponseFlag="yes",dms_Specified_RYE,(IF(dms_Model_Span>1,dms_Reset_RYE,dms_CRY_RYE))) -> 2028 | D57: =IF(dms_MultiYear_ResponseFlag="yes",dms_Specified_RYE,(IF(dms_Model_Span>1,dms_Reset_RYE,dms_CRY_RYE))) | E57: Nested IF - feeds into dms_RYE
B58: dms_Reset_Span | C58: =IF(dms_Reset_RYE>0,CONCATENATE(FRCP_y1," to ",FRCP_final_year),0) -> 2023-24 to 2027-28 | D58: =IF(dms_Reset_RYE>0,CONCATENATE(FRCP_y1," to ",FRCP_final_year),0) | E58: Reset span of years as text
B59: dms_SpecifiedYear_Span | C59: =IF(dms_Specified_RYE>0,CONCATENATE(CRY," to ",dms_Specified_FinalYear),0) -> 0 | D59: =IF(dms_Specified_RYE>0,CONCATENATE(CRY," to ",dms_Specified_FinalYear),0) | E59: Multi year ABC span of years as text
B60: dms_Header_Span | C60: =IF(dms_MultiYear_Flag=1,dms_SpecifiedYear_Span,IF(dms_Model_Span>1,dms_y1&" to "&FRCP_final_year,CRY)) -> 2021-22 to 2027-28 | D60: =IF(dms_MultiYear_Flag=1,dms_SpecifiedYear_Span,IF(dms_Model_Span>1,dms_Reset_Span,CRY)) | E60: NESTED IF - for Sheet Headers
B61: ABC RINS THAT SPAN MULTIPLE YEARS
B62: This is a multi year ABC RIN? | C62: No
C63: =IF(dms_MultiYear_ResponseFlag="No",0,1) -> 0 | D63: dms_MultiYear_Flag | E63: This is set from the answer provided above
C64: =IF(dms_MultiYear_Flag=1,FRY,"not a Multiple year submission") -> not a Multiple year submission | D64: dms_Specified_FinalYear | E64: The result here is returned to dms_CRCP_FinalYear_Result if response to Q in C73 is "yes" and dms_MultiYear_Flag is set to 1
B65: Start year for 5.2 in Multi year ABC RINS | C65: =IFERROR(IF(dms_MultiYear_Flag=1,FRY,CRY),"not an ABC") -> not an ABC | D65: dms_0502_Inst_Year | E65: =IF(dms_MultiYear_Flag=1,FRY,CRY) | G65: For single year RINS this is CRY - multi year RINS need to start a the end of the span of years (ie. FRY)
B66: WHAT IS THE RYE?
B67: Reg Period Lengths
B68: PRCP length in years | C68: =INDEX(dms_PRCPlength_List,MATCH(dms_TradingName,dms_TradingName_List)) -> 5 | D68: dms_PRCPlength_Num | E68: =INDEX(dms_PRCPlength_List,MATCH(dms_TradingName,dms_TradingName_List))
B69: CRCP length in years | C69: =INDEX(dms_CRCPlength_List,MATCH(dms_TradingName,dms_TradingName_List)) -> 5 | D69: dms_CRCPlength_Num | E69: =INDEX(dms_CRCPlength_List,MATCH(dms_TradingName,dms_TradingName_List))
B70: FRCP length in years | C70: =INDEX(dms_FRCPlength_List,MATCH(dms_TradingName,dms_TradingName_List)) -> 5 | D70: dms_FRCPlength_Num | E70: =INDEX(dms_FRCPlength_List,MATCH(dms_TradingName,dms_TradingName_List))
B71: Single year RIN?
B72: Single Year ABC RIN ? | C72: =IF(dms_Model="EB",1,0) -> 0 | D72: dms_EB
C73: =IF(dms_Model="CA",1,0) -> 0 | D73: dms_CA | E73: =dms_SingleYear_Model
C74: =IF(dms_Model="ARR",1,0) -> 0 | D74: dms_ARR
B75: Is this a single Year ABC RIN? | C75: =IF(SUM(dms_SingleYear_Model)=1,"yes","no") -> no | D75: dms_SingleYearModel | E75: =IF(SUM(dms_SingleYear_Model)=1,"yes","no")
B76: Single Year Final Year Result | C76: =IF(AND(dms_SingleYearModel="yes",dms_MultiYear_Flag=0),CRY,0) -> 0 | D76: dms_SingleYear_FinalYear_Result | E76: =IFERROR(IF(SUM(dms_SingleYear_Model)<>0,(INDIRECT(dms_SingleYear_FinalYear_Ref)),"not a single year RIN"),"CRY not present")
B77: Multi year RIN?
B79: Multi Year Reset/Model? | C79: =IF(dms_Model_Span>1,"yes","no") -> yes
B80: Final year result for Reset/Model | C80: =IF(dms_Model_Span>1,dms_Reset_final_year,0) -> 2027-28 | D80: dms_MultiYear_FinalYear_Result | E80: dms_CRCP_FinalYear_Result
B82: Multi Year ABC RIN? | C82: =IF(dms_MultiYear_Flag=1,"yes","no") -> no | D82: dms_MultiYear_ABC_RIN
B83: Final year result for ABC multi year | C83: =IF(dms_MultiYear_Flag=1,C50,0) -> 0
B85: EB RINS
B86: Calendar Year for table 3.6 data | C86: =IFERROR(IF(dms_Segment="Transmission",dms_Cal_Year_B4_CRY,CRY),"CRY not present") -> CRY not present | D86: dms_0306_Year | E86: =IF(dms_Segment="Transmission",dms_Cal_Year_B4_CRY,CRY)
B87: CA RINS
B88: Find how many rows in tables 6.3 sustained interruptions? | E88: dms_060301_MaxRows only returns a valid value when cover sheet is attached to a CA file
C89: =IF(dms_Model<>"CA","not a CA","Is a CA") -> not a CA | E89: =IF(dms_Model<>"CA","not a CA","Is a CA")
B90: dms_060301_Avg_Duration_Sustained_Int_Values present? | C90: =IFERROR(IF(INDEX(dms_060301_Avg_Duration_Sustained_Int_Values,1,1)<>"","yes","no"),"no") -> no | D90: dms_060301_checkvalue | E90: =IFERROR(IF(INDEX(dms_060301_Avg_Duration_Sustained_Int_Values,1,1)<>"","yes","no"),"no")
C91: =IF(AND(dms_Model="CA",(dms_060301_checkvalue="no")),"error - NR not present","no errors") -> no errors | E91: =IF(AND(dms_Model="CA",(dms_060301_checkvalue="no")),"error - NR not present","no errors")
B92: Table 6.3.1 - last row reference | C92: =IFERROR(IF(dms_Model="CA",LOOKUP(2,1/(dms_060301_Avg_Duration_Sustained_Int_Values<>""),(ROW(dms_060301_Avg_Duration_Sustained_Int_Values))),"not a CA"),"6.3 not present") -> not a CA | D92: dms_060301_LastRow | E92: =IFERROR(IF(dms_Model="CA",LOOKUP(2,1/(dms_060301_Avg_Duration_Sustained_Int_Values<>""),(ROW(dms_060301_Avg_Duration_Sustained_Int_Values))),"not a CA"),"6.3 not present")
B93: Table 6.3.1 - max number rows | C93: =IFERROR(IF(dms_Model="CA",(dms_060301_LastRow-15),"not a CA"),"error") -> not a CA | D93: dms_060301_MaxRows | E93: =IFERROR(IF(dms_Model="CA",(dms_060301_LastRow-15),"not a CA"),"error")
B94: Table 6.6.3 - Public lighting repair - no. business days | C94: =INDEX(dms_663_List,MATCH(dms_TradingName,dms_TradingName_List)) -> 5 | D94: dms_663 | E94: =INDEX(dms_663_List,MATCH(dms_TradingName,dms_TradingName_List))
B95: ARR or RESET RINS
B96: How many rows in tables 6.1 or 6.7? (leap year?) | C96: insert dms_LeapYear NR if required | E96: 'dms_LeapYear is used to determine dms_060701_Max_Rows BUT it is only found on worksheet 6.1 or 6.7 and the date value in the cell is used to determine whether it is a leap year
B97: Is dms_LeapYear named range present? | C97: =IFERROR(IF(dms_LeapYear,"yes"),"no") -> no
B98: Table 6.7.1 - includes a leap year? | C98: =IFERROR(IF(MONTH(DATE(YEAR(dms_LeapYear),2,29))=2,"is a leap year","not a leap year"), "dms_LeapYear not present") -> dms_LeapYear not present | D98: dms_LeapYear_Result | E98: =IFERROR(IF(MONTH(DATE(YEAR(dms_LeapYear),2,29))=2,"is a leap year","not a leap year"),"dms_LeapYear not present")
B99: MaxRows if Reset and leap year | C99: =IF(dms_LeapYear_Result="is a leap year",1827,1826) -> 1826 | D99: dms_060701_Reset_MaxRows | E99: =IF(dms_LeapYear_Result="is a leap year",1827,1826) | H99: number of days present in Reset RIN table
B100: MaxRows if ARR and leap year | C100: =IF(dms_LeapYear_Result="is a leap year",366,365) -> 365 | D100: dms_060701_ARR_MaxRows | E100: =IF(dms_LeapYear_Result="is a leap year",366,365) | H100: number of days present in ARR RIN table
B101: Table 6.7.1 - Max Rows (leap year/ non leap year) | C101: =IF(dms_Model="ARR",dms_060701_ARR_MaxRows,IF(dms_Model="Reset",dms_060701_Reset_MaxRows,"not a relevant RIN type")) -> 1826 | D101: dms_060701_MaxRows | E101: =IF(dms_Model="ARR",dms_060701_ARR_MaxRows,IF(dms_Model="Reset",dms_060701_Reset_MaxRows,"not a relevant RIN type"))
B102: How many columns in 6.7? (4 or 5 feeder categories) | C102: =IF(dms_FifthFeeder_flag_NSP="NO","This NSP has only 4 feeder categories","This NSP has 5 feeder categories") -> This NSP has only 4 feeder categories
B103: Table 6.7.1 - Last column (# of feeder categories > 4) | C103: =IF(dms_FifthFeeder_flag_NSP="NO",10,12) -> 10 | D103: dms_060701_MaxCols | E103: =IF(dms_FifthFeeder_flag_NSP="NO",8,10)
B104: Table 6.7.1 - Number of offset rows | C104: =IF(dms_Model="ARR",15,9) -> 9 | D104: dms_060701_OffsetRows | E104: =IF(dms_Model="ARR",15,9)
B105: Start date for telephone answering in 6.1 or 6.7? | E105: Using 060101 as naming standard not 060701 for start dates
B106: Table 6.1.1 and 6.7.1 - Start Date as Text | C106: =IF(dms_SingleYearModel="yes",(CONCATENATE(IF(LEN(CRY)=4,"1-Jan-","1-Jul-"),LEFT(CRY,4))),(CONCATENATE(IF(LEN(PRCP_y4)=4,"1-Jan-","1-Jul-"),LEFT(PRCP_y4,4)))) -> 1-Jul-2016 | D106: dms_060101_StartDateTxt | E106: =IF(SUM(dms_SingleYear_Model)>1,(CONCATENATE(IF(LEN(CRY)=4,"1-Jan-","1-Jul-"),LEFT(CRY,4))),(CONCATENATE(IF(LEN(CRCP_y4)=4,"1-Jan-","1-Jul-"),LEFT(CRCP_y4,4))))
B107: Table 6.1.1 and 6.7.1 - Start Date as Date Value | C107: =DATEVALUE(dms_060701_StartDateTxt) -> 42552 | D107: dms_060101_StartDateVal | E107: =DATEVALUE(dms_060701_StartDateTxt)
B108: ARRs
B109: How many rows in table 6.8? | C109: insert dms_060801_StartCell NR if required | E109: dms_060801_StartCell is only found on worksheet 6.8 and is used to determine the starting date for the date range
B110: Is dms_060801_StartCell named range present? | C110: yes | E110: =IFERROR(IF((ROW(dms_060801_StartCell)-1)=1,"yes","yes"),"no")
B111: Table 6.8 - Number of offset rows | C111: 12 | D111: dms_0608_OffsetRows | E111: =IFERROR(IF(dms_Model="ARR",(ROW(dms_060801_StartCell)-1),"not an ARR"),"6.8 error")
B112: Table 6.8 - Last row | C112: 0 | D112: dms_0608_LastRow | E112: =IFERROR(IF(dms_060801_StartCell<>"",IF(dms_Model="ARR",(LOOKUP(2,1/(dms_060801_01_Values<>""),(ROW(dms_060801_01_Values)))),"not an ARR"),0),"0")
B113: Table 6.8 - MaxRows | C113: =IFERROR(IF(dms_Model="ARR",(MAX(0,dms_0608_LastRow-dms_0608_OffsetRows)),"not an ARR"),"0") -> not an ARR | D113: dms_060801_MaxRows | E113: =IFERROR(IF(dms_Model="ARR",(MAX(0,dms_0608_LastRow-dms_0608_OffsetRows)),"not an ARR"),"0")
B114: TNSP RESET RINS
B115: Table 7.9.4 only appears in TNSPs Reset RIN
B116: Table 7.9.4 - first year | C116: =LEFT(PRCP_y3,4) -> 2015 | D116: dms_070904_Start_Year | E116: =LEFT(PRCP_y3,4)
B118: MISC
B119: Distribution Determination Reference | C119: =INDEX(dms_DeterminationRef_List,MATCH(dms_TradingName,dms_TradingName_List)) -> transmission determination | D119: dms_DeterminationRef
B120: Public lighting NSP? | C120: =INDEX(dms_Public_Lighting_List,MATCH(dms_TradingName,dms_TradingName_List)) -> 0 | D120: dms_Public_Lighting | E120: =INDEX(dms_Public_Lighting_List,MATCH(dms_TradingName,dms_TradingName_List))
B121: CBD Feeder for this business | C121: =INDEX(dms_CBD_flag,MATCH(dms_TradingName,dms_TradingName_List)) -> NO | D121: dms_CBD_flag_NSP
B122: Urban Feeder for this business | C122: =INDEX(dms_Urban_flag,MATCH(dms_TradingName,dms_TradingName_List)) -> NO | D122: dms_Urban_flag_NSP
B123: Short rural Feeder for this business | C123: =INDEX(dms_ShortRural_flag,MATCH(dms_TradingName,dms_TradingName_List)) -> NO | D123: dms_ShortRural_flag_NSP
B124: Long rural Feeder for this business | C124: =INDEX(dms_LongRural_flag,MATCH(dms_TradingName,dms_TradingName_List)) -> NO | D124: dms_LongRural_flag_NSP
B125: Fifth Feeder Category (eg. TasNetworks (D)) | C125: =INDEX(dms_FeederType_5_flag,MATCH(dms_TradingName,dms_TradingName_List)) -> NO | D125: dms_FifthFeeder_flag_NSP | E125: =INDEX(dms_FeederType_5_flag,MATCH(dms_TradingName,dms_TradingName_List))
B127: DISCARD FILES
B128: discard this record? | C128: NO | D128: dms_DISCARD | E128: If record is to be discarded from DB set this flag to YES
B130: SUBSET FILES
B131: Is this Submission File a Subset File | C131: NO | D131: dms_Partial
B134: REGULATORY YEARS FOR MULTI RYE SUBMISSIONS
B135: Multiple RYE flag | C135: NO | D135: dms_Multi_RYE_flag
C136: Manually specify RYE | D136: Named ranges to apply
C137: 2013 | D137: dms_RYE_01
C138: 2014 | D138: dms_RYE_02
C139: 2015 | D139: dms_RYE_03
C140: 2016 | D140: dms_RYE_04
C141: 2017 | D141: dms_RYE_05
C142: 2018 | D142: dms_RYE_06
C143: 2019 | D143: dms_RYE_07
C144: 2020 | D144: dms_RYE_08
C145: 2021 | D145: dms_RYE_09

Sheet Instructions
B2: =CONCATENATE(dms_Sector," ",dms_Segment," ", "Network Service Provider") -> Electricity Transmission Network Service Provider
B3: =IF(dms_Model="Reset","Regulatory Proposal RIN Template","Annual Reporting RIN") -> Regulatory Proposal RIN Template
B4: =CONCATENATE("This template is to be used by ",dms_TradingNameFull," to fulfil its reporting obligations to the AER.") -> This template is to be used by ElectraNet to fulfil its reporting obligations to the AER.
B5: INSTRUCTIONS
B6: GENERAL | C6: Complete the Business & other details worksheet before entering data or values in any other worksheets. The Business & other details worksheet is linked to other worksheets within the workbook and automatically generates certain column headings and conditional formatting.
B8: CONFIDENTIAL INFORMATION | C8: Please use the macro at the top of each worksheet to identify confidential information in the confidential workbook.
C9: -Do this by selecting the cell or cells that contain confidential information and then run the Mark selection as CONFIDENTIAL macro. This will format the cells a specific colour that is identified by the AER's database which in turn marks that information as confidential. -To reverse this, select the cell or cells and run the Return selection to NON-CONFIDENTIAL macro.
B11: AMENDMENTS | C11: If an NSP wishes to correct data previously submitted to the AER it should resubmit that data using the original completed submission as the starting point. Please make any necessary changes to the data. Data that is not being amended should be left unchanged. NSPs must identify the reason for the amendments in the Amendment Reason box on the Business and other details worksheet. NSPs may provide further details regarding any amendments in the Amendments worksheet. .
C12: NSP may use Amended Data macro to highlight cells that contain amended data. NB: if data is also CONFIDENTIAL, re-apply the Confidentiality macro after applying the Amended macro
C13: Please resubmit two (2) files - a confidential version and a public version of the amended submission to the AER
B15: UNITS OF MEASURE | C15: All amounts are to be unrounded and reported on a one for one basis: that is 1000 is to be entered as '1000'. Applicable units of measure may be identified in the table column headings or row descriptors.
B17: INPUT / NON-INPUT CELLS
D18: Yellow = Input cell (mandatory)
D19: Darker yellow = input cell (mandatory)
D20: Orange = input cell (if data available)
D21: Grey = Not applicable/No inputs required
D22: PLEASE DO NOT ENTER TEXT into cells that are to contain numeric data.
B25: NAVIGATION | C25: Many tables in the worksheets have been "grouped" to allow for easy navigation. To ungroup or group data use the outline symbols in the left margin (for Row groupings) or above the columns (for column groupings).

Sheet CONTENTS
D1: =INDEX(dms_Worksheet_List,MATCH(dms_Model,dms_Model_List)) -> REGULATORY REPORTING STATEMENT
D2: =INDEX(dms_TradingNameFull_List,MATCH(dms_TradingName,dms_TradingName_List)) -> ElectraNet
E5: CONTENTS
E7: TEMPLATE DATE | F7: SEPTEMBER 2021
E9: SUBMISSION | F9: Business & other details
F10: CPI series
E12: EXPENDITURE | F12: 2.1 Expenditure summary
F13: 2.2 Repex
F14: 2.3 Augex (a)
F15: 2.3 Augex (b)
F16: 2.5 Connections
F17: 2.6 Non-network
F18: 2.10 Overheads
F19: 2.11 Labour
F20: 2.14 Forecast price changes
F21: 2.16 Opex Summary
F22: 2.17 Step Changes
E24: ECONOMIC BENCHMARKING | F24: 3.1 Revenue
F25: 3.2 Operating expenditure
F26: 3.3 Assets (RAB)
F27: 3.4 Operational data
F28: 3.5 Physical assets
F29: 3.7 Operating environment
E31: NETWORK | F31: 5.4 MD & Utilisation - Spatial
E33: OTHER | F33: 7.1 Policies and Procedures
F34: 7.2 Contingent projects
F35: 7.3 Obligations
F36: 7.4 Shared Assets
F37: 7.9 STPIS
E39: CAPEX | F39: 8.2 Capex

Sheet Business & other details
V1: =INDEX(dms_Worksheet_List,MATCH(dms_Model,dms_Model_List)) -> REGULATORY REPORTING STATEMENT
V2: =INDEX(dms_TradingNameFull_List,MATCH(dms_TradingName,dms_TradingName_List)) -> ElectraNet
V3: =CONCATENATE( "DATA SPAN ", dms_Header_Span) -> DATA SPAN 2021-22 to 2027-28
V4: BUSINESS & OTHER DETAILS
V6: INSTRUCTIONS
V7: Complete the following business details regulatory template before entering data or values in any other regulatory template. This regulatory template is linked to other cells within the spreadsheet and automatically generates column headings and conditional formatting to distinguish business specific input and non-input cells.
Q9: SUBMISSION PARTICULARS INPUT SHEET
V12: ENTITY DETAILS
V14: Business Name
V16: Short name | AL16: ElectraNet
V17: ACN/ABN | AL17: =INDEX(dms_ABN_List,MATCH(dms_TradingName,dms_TradingName_List)) -> 41094482416
V21: Business Address | BQ21: Postal Address
V23: Address 1 | AL23: =INDEX(dms_Addr1_List,MATCH(dms_TradingName,dms_TradingName_List)) -> 52-55 East Terrace | BI23: Address 1 | BQ23: =INDEX(dms_PAddr1_List,MATCH(dms_TradingName,dms_TradingName_List)) -> PO Box 7096
V24: Address 2 | AL24: =IF(ISBLANK(INDEX(dms_Addr2_List,MATCH(dms_TradingName,dms_TradingName_List))),"",(INDEX(dms_Addr2_List,MATCH(dms_TradingName,dms_TradingName_List)))) -> Rymill Park | BI24: Address 2 | BQ24: =IF(ISBLANK(INDEX(dms_PAddr2_List,MATCH(dms_TradingName,dms_TradingName_List))),"",(INDEX(dms_PAddr2_List,MATCH(dms_TradingName,dms_TradingName_List)))) -> Hutt Street Post Office
V25: Suburb | AL25: =INDEX(dms_Suburb_List,MATCH(dms_TradingName,dms_TradingName_List)) -> ADELAIDE | BI25: Suburb | BQ25: =INDEX(dms_PSuburb_List,MATCH(dms_TradingName,dms_TradingName_List)) -> ADELAIDE
V26: State | AL26: =INDEX(dms_State_List,MATCH(dms_TradingName,dms_TradingName_List)) -> SA | AV26: Post code | AX26: 5000 | BI26: State | BQ26: =INDEX(dms_PState_List,MATCH(dms_TradingName,dms_TradingName_List)) -> SA | CA26: Post code | CC26: 5000
BA28: `
V30: Contact Names
V32: Name | BI32: Name
V33: Phone | BI33: Phone
V34: Email | BI34: Email
Q39: REGULATORY CONTROL PERIODS
Z42: Forthcoming period | AL42: 2023-24 | AU42: =FRCP_y2 -> 2024-25 | BD42: =FRCP_y3 -> 2025-26 | BM42: =FRCP_y4 -> 2026-27 | BV42: =FRCP_y5 -> 2027-28
AL43: =FRCP_y6 -> 2028-29 | AU43: =FRCP_y7 -> 2029-30 | BD43: =FRCP_y8 -> 2030-31 | BM43: =FRCP_y9 -> 2031-32 | BV43: =FRCP_y10 -> 2032-33
AL44: =FRCP_y11 -> 2033-34 | AU44: =FRCP_y12 -> 2034-35 | BD44: =FRCP_y13 -> 2035-36 | BM44: =FRCP_y14 -> 2036-37 | BV44: =FRCP_y15 -> 
X46: RESETS | Z46: Current period | AL46: =CRCP_y1 -> 2018-19 | AU46: =CRCP_y2 -> 2019-20 | BD46: =CRCP_y3 -> 2020-21 | BM46: =CRCP_y4 -> 2021-22 | BV46: =CRCP_y5 -> 2022-23
AL47: =CRCP_y6 -> 2023-24 | AU47: =CRCP_y7 -> 2024-25 | BD47: =CRCP_y8 -> 2025-26 | BM47: =CRCP_y9 -> 2026-27 | BV47: =CRCP_y10 -> 2027-28
AL48: =CRCP_y11 -> 2028-29 | AU48: =CRCP_y12 -> 2029-30 | BD48: =CRCP_y13 -> 2030-31 | BM48: =CRCP_y14 -> 2031-32 | BV48: =CRCP_y15 -> 2032-33
Z50: Previous period | AL50: =PRCP_y1 -> 2013-14 | AU50: =PRCP_y2 -> 2014-15 | BD50: =PRCP_y3 -> 2015-16 | BM50: =PRCP_y4 -> 2016-17 | BV50: =PRCP_y5 -> 2017-18
AL51: =PRCP_y6 -> 2018-19 | AU51: =PRCP_y7 -> 2019-20 | BD51: =PRCP_y8 -> 2020-21 | BM51: =PRCP_y9 -> 2021-22 | BV51: =PRCP_y10 -> 2022-23
AL52: =PRCP_y11 -> 2023-24 | AU52: =PRCP_y12 -> 2024-25 | BD52: =PRCP_y13 -> 2025-26 | BM52: =PRCP_y14 -> 2026-27 | BV52: =PRCP_y15 -> 2027-28
Z54: Commencing year | AL54: 2021-22
X55: ANNUAL RINS
Z56: Final year | AL56: 2027-28
Q60: SUBMISSION DETAILS
Z62: RIN type | AL62: =INDIRECT(dms_Model) -> Regulatory Reporting (Reset)
Z64: Source | AL64: Regulatory proposal
X66: THIS FILE | Z66: Data Quality | AL66: Consolidated
Z68: Confidentiality Status | AL68: Public
Z70: Amended RIN Amendment Reason | AL70: .
Z74: Submission Date | AL74: 2022-01-31 | BD74: Please enter date this file submitted to AER

Sheet CPI series
B1: =(LOOKUP(dms_Model,dms_Model_List,dms_Worksheet_List)) -> REGULATORY REPORTING STATEMENT
B2: =INDEX(dms_TradingNameFull_List,MATCH(dms_TradingName,dms_TradingName_List)) -> ElectraNet
B3: =IF(SUM(dms_SingleYear_Model)>0,CRY,CONCATENATE(FRCP_y1," to ",dms_MultiYear_FinalYear_Result)) -> 2023-24 to 2027-28
B4: CPI SERIES
B7: NOMINATED CPI SERIES
B9: Name of CPI series | C9: ABS, CPI All Groups Australia, A2325846C, Dec Quarter
C11: =CRCP_y1 -> 2018-19 | D11: =CRCP_y2 -> 2019-20 | E11: =CRCP_y3 -> 2020-21 | F11: =CRCP_y4 -> 2021-22 | G11: =CRCP_y5 -> 2022-23 | H11: =FRCP_y1 -> 2023-24 | I11: =FRCP_y2 -> 2024-25 | J11: =FRCP_y3 -> 2025-26 | K11: =FRCP_y4 -> 2026-27 | L11: =FRCP_y5 -> 2027-28
B12: Series data | C12: 0.0178 | D12: 0.0184 | E12: 0.0086 | F12: 0.0245 | G12: 0.0245 | H12: 0.024 | I12: 0.024 | J12: 0.024 | K12: 0.024 | L12: 0.024

Sheet 2.1 Expenditure summary
B1: =(LOOKUP(dms_Model,dms_Model_List,dms_Worksheet_List)) -> REGULATORY REPORTING STATEMENT
B2: =INDEX(dms_TradingNameFull_List,MATCH(dms_TradingName,dms_TradingName_List)) -> ElectraNet
B3: =IF(SUM(dms_SingleYear_Model)>0,CRY,CONCATENATE(FRCP_y1," to ",dms_MultiYear_FinalYear_Result)) -> 2023-24 to 2027-28
B4: 2.1 - EXPENDITURE SUMMARY AND RECONCILIATION
B6: There are three tables on this worksheet. Each has been grouped for ease of navigation. See the Instructions sheet on how to group or ungroup tables.
B8: 2.1.1 - PRESCRIBED TRANSMISSION SERVICES CAPEX (as incurred)
C9: =CONCATENATE("Forecast ($0's. real ",dms_DollarReal,")") -> Forecast ($0's. real June 2023)
C10: =dms_y1 -> 2021-22 | D10: =dms_y2 -> 2022-23 | E10: =dms_y3 -> 2023-24 | F10: =dms_y4 -> 2024-25 | G10: =dms_y5 -> 2025-26 | H10: =dms_y6 -> 2026-27 | I10: =dms_y7 -> 2027-28
B11: Replacement expenditure | C11: 241407134.8 | D11: 113413715.3 | E11: 63632302.69 | F11: 74651261.54 | G11: 73796347.68 | H11: 78621737.25 | I11: 71669220.18
B12: Connections | C12: 0 | D12: 0 | E12: 0 | F12: 0 | G12: 0 | H12: 0 | I12: 0
B13: Augmentation Expenditure | C13: 121681114.7 | D13: 252836551.4 | E13: 39505322.12 | F13: 18845144.24 | G13: 0 | H13: 0 | I13: 0
B14: Non-network | C14: 20001378.96 | D14: 11611095.71 | E14: 18022980.12 | F14: 14632774.8 | G14: 16367888.87 | H14: 13959488.2 | I14: 14483201.44
B15: Capitalised network overheads | C15: 9107632.722 | D15: 7322514.905 | E15: 4089908.846 | F15: 4635643.56 | G15: 4589519.745 | H15: 4925634.814 | I15: 4325817.409
B16: Capitalised corporate overheads | C16: 2793954.277 | D16: 1963464.638 | E16: 2887732.427 | F16: 2945878.15 | G16: 3852736.668 | H16: 3765191.814 | I16: 3397053.994
B17: Total | C17: =SUM(C11:C16) -> 394991215.5 | D17: 387147342 | E17: 128138246.2 | F17: 115710702.3 | G17: 98606492.96 | H17: 101272052.1 | I17: 93875293.02
B19: 2.1.2 - PRESCRIBED TRANSMISSION SERVICES OPEX
C20: =CONCATENATE("Forecast ($0's. real ",dms_DollarReal,")") -> Forecast ($0's. real June 2023)
C21: =dms_y1 -> 2021-22 | D21: =dms_y2 -> 2022-23 | E21: =dms_y3 -> 2023-24 | F21: =dms_y4 -> 2024-25 | G21: =dms_y5 -> 2025-26 | H21: =dms_y6 -> 2026-27 | I21: =dms_y7 -> 2027-28
B22: Vegetation management
B23: Maintenance
B24: Non-network
B25: Network overheads
B26: Corporate overheads
B27: Total | C27: =SUM(C22:C26) -> 0 | D27: 0 | E27: 0 | F27: 0 | G27: 0 | H27: 0 | I27: 0
B30: 2.1.8 - PRESCRIBED TRANSMISSION SERVICES CAPITALISED OVERHEADS
C31: =CONCATENATE("Forecast ($0's. real ",dms_DollarReal,")") -> Forecast ($0's. real June 2023)
C32: =dms_y1 -> 2021-22 | D32: =dms_y2 -> 2022-23 | E32: =dms_y3 -> 2023-24 | F32: =dms_y4 -> 2024-25 | G32: =dms_y5 -> 2025-26 | H32: =dms_y6 -> 2026-27 | I32: =dms_y7 -> 2027-28
B33: Replacement expenditure | C33: 7307720.935 | D33: 4126266.483 | E33: 3619275.202 | F33: 4411138.141 | G33: 4589519.745 | H33: 4925634.814 | I33: 4325817.409
B34: Connections | C34: 0 | D34: 0 | E34: 0 | F34: 0 | G34: 0 | H34: 0 | I34: 0
B35: Augmentation Expenditure | C35: 1799911.787 | D35: 3196248.422 | E35: 470633.6438 | F35: 224505.4192 | G35: 0 | H35: 0 | I35: 0
B36: Non-network | C36: 2793954.277 | D36: 1963464.638 | E36: 2887732.427 | F36: 2945878.15 | G36: 3852736.668 | H36: 3765191.814 | I36: 3397053.994
B37: Total | C37: =SUM(C33:C36) -> 11901587 | D37: 9285979.543 | E37: 6977641.273 | F37: 7581521.71 | G37: 8442256.414 | H37: 8690826.628 | I37: 7722871.402

Sheet 2.2 Repex
B1: =(LOOKUP(dms_Model,dms_Model_List,dms_Worksheet_List)) -> REGULATORY REPORTING STATEMENT
B2: =INDEX(dms_TradingNameFull_List,MATCH(dms_TradingName,dms_TradingName_List)) -> ElectraNet
B3: =IF(SUM(dms_SingleYear_Model)>0,CRY,CONCATENATE(FRCP_y1," to ",dms_MultiYear_FinalYear_Result)) -> 2023-24 to 2027-28
B4: 2.2 REPEX
B6: There is ONE table (with three sub-tables) on this worksheet. See the Instructions sheet on how to group or ungroup tables.
B8: 2.2.1 - REPLACEMENT EXPENDITURE, VOLUMES AND ASSET FAILURES BY ASSET CATEGORY
B9: EXPENDITURE
D10: EXPENDITURE
D11: =CONCATENATE("($0's. real ",dms_DollarReal,")") -> ($0's. real June 2023)
B12: ASSET GROUP | D12: =dms_y1 -> 2021-22 | E12: =dms_y2 -> 2022-23 | F12: =dms_y3 -> 2023-24 | G12: =dms_y4 -> 2024-25 | H12: =dms_y5 -> 2025-26 | I12: =dms_y6 -> 2026-27 | J12: =dms_y7 -> 2027-28
B13: TRANSMISSION TOWERS | C13: Total | D13: 26135522.4 | E13: 83138718.06 | F13: 0 | G13: 2243177.498 | H13: 0 | I13: 0 | J13: 22868651.3
B14: TRANSMISSION TOWER SUPPORT STRUCTURES | C14: Total | D14: 65106190.14 | E14: 115184470.7 | F14: 0 | G14: 785031.7262 | H14: 0 | I14: 0 | J14: 36466139.25
B15: CONDUCTORS | C15: Total | D15: 407521.8873 | E15: 86797607.24 | F15: 0 | G15: 0 | H15: 26227102.73 | I15: 0 | J15: 2359364.401
B16: TRANSMISSION CABLES | C16: Total | D16: 596318.4117 | E16: 0 | F16: 0 | G16: 0 | H16: 0 | I16: 220697.5279 | J16: 1425139.781
B17: SUBSTATION SWITCHBAYS | C17: Total | D17: 59829666.1 | E17: 31580765.21 | F17: 16148812.72 | G17: 210435.7928 | H17: 6789267.252 | I17: 0 | J17: 59417051.08
B18: SUBSTATION POWER TRANSFORMERS | C18: Total | D18: 306816.8632 | E18: 13723012.77 | F18: 0 | G18: 0 | H18: 4815145.622 | I18: 8498967.232 | J18: 1822118.929
B19: SUBSTATION REACTIVE PLANT | C19: Total | D19: 0 | E19: 7716789.328 | F19: 0 | G19: 0 | H19: 0 | I19: 0 | J19: 0
B20: SCADA, NETWORK CONTROL AND PROTECTION SYSTEMS | C20: Total | D20: 31783592.18 | E20: 5056429.613 | F20: 30142505.55 | G20: 4435205.307 | H20: 16372126.91 | I20: 12045755.12 | J20: 23666005.54
B21: OTHER | C21: Total | D21: 40092255.69 | E21: 123075453.5 | F21: 0 | G21: 26842471.38 | H21: 8628419.973 | I21: 15703982.76 | J21: 101783248.2
B24: ASSET REPLACEMENTS
D25: VOLUMES
D26: (0's)
B27: ASSET GROUP | D27: =dms_y1 -> 2021-22 | E27: =dms_y2 -> 2022-23 | F27: =dms_y3 -> 2023-24 | G27: =dms_y4 -> 2024-25 | H27: =dms_y5 -> 2025-26 | I27: =dms_y6 -> 2026-27 | J27: =dms_y7 -> 2027-28
B28: TRANSMISSION TOWERS | C28: Total | D28: 221 | E28: 262 | F28: 0 | G28: 56 | H28: 0 | I28: 0 | J28: 57
B29: TRANSMISSION TOWER SUPPORT STRUCTURES | C29: Total | D29: 1445 | E29: 1511 | F29: 0 | G29: 168 | H29: 0 | I29: 0 | J29: 2776
B30: CONDUCTORS | C30: Total | D30: 1 | E30: 0 | F30: 0 | G30: 0 | H30: 244 | I30: 0 | J30: 0
B31: TRANSMISSION CABLES | C31: Total | D31: 1 | E31: 0 | F31: 0 | G31: 0 | H31: 0 | I31: 8 | J31: 1.17
B32: SUBSTATION SWITCHBAYS | C32: Total | D32: 1 | E32: 81 | F32: 159 | G32: 6 | H32: 23 | I32: 0 | J32: 242
B33: SUBSTATION POWER TRANSFORMERS | C33: Total | D33: 1 | E33: 103 | F33: 0 | G33: 0 | H33: 2 | I33: 83 | J33: 1
B34: SUBSTATION REACTIVE PLANT | C34: Total | D34: 0 | E34: 1 | F34: 0 | G34: 0 | H34: 0 | I34: 0 | J34: 0
B35: SCADA, NETWORK CONTROL AND PROTECTION SYSTEMS | C35: Total | D35: 5 | E35: 1 | F35: 78 | G35: 1 | H35: 35 | I35: 28 | J35: 146
B36: OTHER | C36: Total | D36: 376 | E36: 37 | F36: 0 | G36: 5 | H36: 3 | I36: 1000.195 | J36: 396.264
B39: ASSET FAILURES
D40: VOLUMES
D41: (0's)
B42: ASSET GROUP | D42: =dms_y1 -> 2021-22 | E42: =dms_y2 -> 2022-23 | F42: =dms_y3 -> 2023-24 | G42: =dms_y4 -> 2024-25 | H42: =dms_y5 -> 2025-26 | I42: =dms_y6 -> 2026-27 | J42: =dms_y7 -> 2027-28
B43: TRANSMISSION TOWERS | C43: Total
B44: TRANSMISSION TOWER SUPPORT STRUCTURES | C44: Total
B45: CONDUCTORS | C45: Total
B46: TRANSMISSION CABLES | C46: Total
B47: SUBSTATION SWITCHBAYS | C47: Total
B48: SUBSTATION POWER TRANSFORMERS | C48: Total
B49: SUBSTATION REACTIVE PLANT | C49: Total
B50: SCADA, NETWORK CONTROL AND PROTECTION SYSTEMS | C50: Total
B51: OTHER | C51: Total
B55: 2.2.1(a) - REPLACEMENT EXPENDITURE - as incurred
B56: EXPENDITURE
D57: EXPENDITURE
D58: =CONCATENATE("($0's. real ",dms_DollarReal,")") -> ($0's. real June 2023)
B59: ASSET GROUP | D59: =dms_y1 -> 2021-22 | E59: =dms_y2 -> 2022-23 | F59: =dms_y3 -> 2023-24 | G59: =dms_y4 -> 2024-25 | H59: =dms_y5 -> 2025-26 | I59: =dms_y6 -> 2026-27 | J59: =dms_y7 -> 2027-28
B60: TRANSMISSION TOWERS | C60: Total | D60: 43859033.56 | E60: 15336647.38 | F60: 2799941.154 | G60: 2692690.749 | H60: 3937268.648 | I60: 7967102.706 | J60: 7665611.549
B61: TRANSMISSION TOWER SUPPORT STRUCTURES | C61: Total | D61: 43654079.22 | E61: 21632385.03 | F61: 4041114.765 | G61: 4006747.93 | H61: 7291471.161 | I61: 10579662.14 | J61: 11314951.84
B62: CONDUCTORS | C62: Total | D62: 45581264.49 | E62: 16353721.1 | F62: 8144735.758 | G62: 14244888.24 | H62: 4394727.185 | I62: 684431.5484 | J62: 731906.2437
B63: TRANSMISSION CABLES | C63: Total | D63: 50931.95569 | E63: 0 | F63: 164127.7586 | G63: 164323.2809 | H63: 351141.8088 | I63: 395614.2843 | J63: 570630.1767
B64: SUBSTATION SWITCHBAYS | C64: Total | D64: 18744439.4 | E64: 11251965.18 | F64: 10854042.86 | G64: 14708359.8 | H64: 12743576.27 | I64: 12332367.39 | J64: 19402949.41
B65: SUBSTATION POWER TRANSFORMERS | C65: Total | D65: 3197647.202 | E65: 2367112.553 | F65: 2190494.123 | G65: 2919632.779 | H65: 4579362.727 | I65: 4618043.724 | J65: 729581.7995
B66: SUBSTATION REACTIVE PLANT | C66: Total | D66: 5020622.038 | E66: 441618.7564 | F66: 0 | G66: 0 | H66: 0 | I66: 0 | J66: 0
B67: SCADA, NETWORK CONTROL AND PROTECTION SYSTEMS | C67: Total | D67: 9834226.363 | E67: 12949171.45 | F67: 15570258.66 | G67: 12498028.08 | H67: 12197039.04 | I67: 11048106.69 | J67: 6927679.423
B68: OTHER | C68: Total | D68: 71464890.62 | E68: 33081093.87 | F68: 19867587.61 | G68: 23416590.68 | H68: 28301760.84 | I68: 30996408.76 | J68: 24325909.74

Sheet 2.3 Augex (a)
B1: =(LOOKUP(dms_Model,dms_Model_List,dms_Worksheet_List)) -> REGULATORY REPORTING STATEMENT
B2: =INDEX(dms_TradingNameFull_List,MATCH(dms_TradingName,dms_TradingName_List)) -> ElectraNet
B3: =IF(SUM(dms_SingleYear_Model)>0,CRY,CONCATENATE(FRCP_y1," to ",dms_MultiYear_FinalYear_Result)) -> 2023-24 to 2027-28
B4: 2.3 AUGEX PROJECTS
B6: There are TWO tables on this worksheet - each has been 'grouped' for easy navigation. Both ROWS and COLUMNS have been grouped. See the Instructions sheet on how to group or ungroup tables.
B8: NOTE: TNSP MUST PROVIDE EXPENDITURE INFORMATION ON A PROJECT CLOSE BASIS.
B9: 2.3.1 - AUGEX ASSET DATA - SUBSTATIONS
B10: SUBSTATION AND PROJECT SUMMARY | L10: PLANT AND EQUIPMENT EXPENDITURE AND VOLUME | Y10: OTHER EXPENDITURE | AA10: TOTAL DIRECT EXPENDITURE ($0's) | AB10: YEARS INCURRED | AC10: RELATED PARTY CONTRACTS | AE10: ALL NON RELATED PARTYCONTRACTS | AF10: LAND AND EASEMENTS | AH10: Comments
B11: SUBSTATION ID | C11: SUBSTATION TYPE | D11: PROJECT ID | E11: PROJECT TYPE (drop down) | F11: PROJECT TRIGGER (drop down) | G11: VOLTAGE (KV) | H11: SUBSTATION RATING NORMAL CYCLIC (MVA) | J11: SUBSTATION RATING N-1 EMERGENCY (MVA) | L11: TRANSFORMERS | P11: SWITCHGEAR | S11: REACTIVE PLANT | V11: OTHER PLANT ITEM | W11: INSTALLATION (LABOUR) | Y11: CIVIL WORKS | Z11: OTHER DIRECT | AC11: RELATED PARTY MARGINS | AD11: TOTAL | AF11: LAND PURCHASES | AG11: EASEMENTS
H12: PRE | I12: POST | J12: PRE | K12: POST | L12: Units Added | M12: MVA Added | N12: OLTC INCLUDED? | O12: Expenditure ($0's) | P12: Insulation | Q12: Units Added | R12: Expenditure ($0's) | S12: Plant Type | T12: Units Added | U12: Expenditure ($0's) | V12: Expenditure ($0's) | W12: Volume | X12: Expenditure ($0's) | Y12: Expenditure ($0's) | AC12: Expenditure ($0's) | AF12: Expenditure ($0's)
A13: AUG231_1 | B13: City West H578 | C13: Terminal station | D13: 10161 | E13: New Substation | F13: Demand growth | G13: 275 | H13: 0 | I13: 600 | J13: 0 | K13: 300 | L13: 2 | M13: 600 | N13: Yes | O13: 10094651.75 | P13: Gas | Q13: 6 275kV Circuit Breakers | R13: 3457332.74 | S13: Reactor | T13: 2 | U13: 3301562.804 | V13: 4922984.738 | W13: 1 | X13: 1820763.25 | Y13: 11470014.17 | Z13: 57996164.32 | AB13: 2004, 2005, 2006, 2007, 2008, 2009, 2010, 2011, 2012, 2013, 2014, 2015, 2016, 2017, 2018, 2019, 2020, 2021, 2022 | AF13: 7802446.233
A14: AUG231_2 | P14: Gas | Q14: 11 275kV Disconnectors with ES | R14: 1221717.544 | V14: 339708.9034 | W14: 1
A15: AUG231_3 | P15: Gas | Q15: 2 66kV Circuit Breaker | R15: 353331.8075 | V15: 222970.1005 | W15: 12
A16: AUG231_4 | P16: Gas | Q16: 2 66kV Disconnector with ES | R16: 112619.1314 | V16: 29225.22624 | W16: 6
A17: AUG231_5
A18: AUG231_6
B19: Project Totals | L19: =SUM(L13:L18) -> 2 | M19: =SUM(M13:M18) -> 600 | O19: =SUM(O13:O18) -> 10094651.75 | Q19: =SUM(Q13:Q18) -> 0 | R19: =SUM(R13:R18) -> 5145001.223 | T19: =SUM(T13:T18) -> 2 | U19: 3301562.804 | V19: 5514888.968 | W19: 20 | X19: 1820763.25 | Y19: 11470014.17 | Z19: 57996164.32 | AA19: =O19+R19+U19+V19+SUM(X19:Z19) -> 95343046.48 | AC19: =SUM(AC13:AC18) -> 0 | AD19: =SUM(AD13:AD18) -> 0 | AE19: =SUM(AE13:AE18) -> 0 | AF19: =SUM(AF13:AF18) -> 7802446.233 | AG19: =SUM(AG13:AG18) -> 0
A20: AUG231_1 | B20: Torrens Island B Substation H254 | C20: Switching station | D20: 10161 | E20: New Substation | F20: Demand growth | G20: 275 | H20: 0 | I20: 0 | J20: 0 | K20: 0 | L20: 0 | M20: 0 | N20: No | O20: 0 | P20: Air | Q20: 1 275kV Circuit Breaker | R20: 120216.3984 | X20: 223168.9287 | Z20: 762015.4494 | AB20: 2004, 2005, 2006, 2007, 2008, 2009, 2010, 2011
A21: AUG231_2 | P21: Air | Q21: 4 275kV Disconnectors with ES | R21: 147317.8346
A22: AUG231_3
A23: AUG231_4
A24: AUG231_5
A25: AUG231_6
B26: Project Totals | L26: =SUM(L20:L25) -> 0 | M26: 0 | O26: =SUM(O20:O25) -> 0 | Q26: =SUM(Q20:Q25) -> 0 | R26: 267534.233 | T26: =SUM(T20:T25) -> 0 | U26: 0 | V26: 0 | W26: 0 | X26: 223168.9287 | Y26: 0 | Z26: 762015.4494 | AA26: =O26+R26+U26+V26+SUM(X26:Z26) -> 1252718.611 | AC26: =SUM(AC20:AC25) -> 0 | AD26: 0 | AE26: 0 | AF26: 0 | AG26: 0
A27: AUG231_1 | B27: Black Range H576 | C27: Switching station | D27: 10344 | E27: New Substation Establishment | F27: Net market benefit | G27: 275 | H27: 0 | I27: 0 | J27: 0 | K27: 0 | L27: 0 | M27: 0 | N27: No | P27: Air | Q27: 2 275kV Circuit Breakers | R27: 325388.2006 | S27: Capacitor | T27: 2 | U27: 2315891.17 | V27: 37022.58803 | X27: 2027930.813 | Y27: 1637534.625 | Z27: 34011516.57 | AB27: 2012, 2013, 2014, 2015, 2016, 2017, 2018, 2019, 2020, 2021, 2022 | AF27: 237357.3044
A28: AUG231_2 | P28: Air | Q28: 6 275kV Disconnectors with ES | R28: 179876.2842 | V28: 57467.70882
A29: AUG231_3
A30: AUG231_4
A31: AUG231_5
A32: AUG231_6
B33: Project Totals | L33: =SUM(L27:L32) -> 0 | M33: 0 | O33: =SUM(O27:O32) -> 0 | Q33: =SUM(Q27:Q32) -> 0 | R33: 505264.4847 | T33: =SUM(T27:T32) -> 2 | U33: 2315891.17 | V33: 94490.29685 | W33: 0 | X33: 2027930.813 | Y33: 1637534.625 | Z33: 34011516.57 | AA33: =O33+R33+U33+V33+SUM(X33:Z33) -> 40592627.96 | AC33: =SUM(AC27:AC32) -> 0 | AD33: 0 | AE33: 0 | AF33: 237357.3044 | AG33: 0
A34: AUG231_1 | B34: Project Energy Connect (Robertstown) | C34: Terminal station | D34: 14171 | E34: Capacity upgrade | F34: Other | G34: 275 | H34: 320 | I34: 320 | J34: 160 | K34: 160 | L34: 0 | M34: 0 | O34: 0 | P34: Air | Q34: 6 x 275kV Circuit Breakers | R34: 895395.7144 | T34: 0 | U34: 0 | V34: 564790.5663 | X34: 406148.4888 | Y34: 1509960.76 | Z34: 5629208.591 | AB34: 2017, 2018, 2019, 2020, 2021, 2022, 2023, 2024, 2025
A35: AUG231_2 | P35: Air | Q35: 14 x 275kV Disconnectors with ES | R35: 500715.75 | V35: 94243.29157
A36: AUG231_3 | V36: 23120.80843
A37: AUG231_4
A38: AUG231_5
A39: AUG231_6
B40: Project Totals | L40: =SUM(L34:L39) -> 0 | M40: 0 | O40: =SUM(O34:O39) -> 0 | Q40: =SUM(Q34:Q39) -> 0 | R40: 1396111.464 | T40: =SUM(T34:T39) -> 0 | U40: 0 | V40: 682154.6663 | W40: 0 | X40: 406148.4888 | Y40: 1509960.76 | Z40: 5629208.591 | AA40: =O40+R40+U40+V40+SUM(X40:Z40) -> 9623583.97 | AC40: =SUM(AC34:AC39) -> 0 | AD40: 0 | AE40: 0 | AF40: 0 | AG40: 0
A41: AUG231_1 | B41: Project Energy Connect (Tungkillo) | C41: Switching station | D41: 14171 | E41: Capacity upgrade | F41: Other | G41: 275 | H41: 0 | I41: 0 | J41: 0 | K41: 0 | L41: 0 | M41: 0 | O41: 0 | P41: Air | Q41: 3 x 275kV Circuit Breakers | R41: 518138.942 | T41: 0 | U41: 0 | V41: 277041.8181 | X41: 191329.0182 | Y41: 679849.7021 | Z41: 2895994.141 | AB41: 2017, 2018, 2019, 2020, 2021, 2022, 2023, 2024, 2025
A42: AUG231_2 | P42: Air | Q42: 8 x 275kV Disconnectors with ES | R42: 271216.7382 | V42: 94243.29157
A43: AUG231_3 | V43: 23120.80843
A44: AUG231_4
A45: AUG231_5
A46: AUG231_6
B47: Project Totals | L47: =SUM(L41:L46) -> 0 | M47: 0 | O47: =SUM(O41:O46) -> 0 | Q47: =SUM(Q41:Q46) -> 0 | R47: 789355.6802 | T47: =SUM(T41:T46) -> 0 | U47: 0 | V47: 394405.918 | W47: 0 | X47: 191329.0182 | Y47: 679849.7021 | Z47: 2895994.141 | AA47: =O47+R47+U47+V47+SUM(X47:Z47) -> 4950934.459 | AC47: =SUM(AC41:AC46) -> 0 | AD47: 0 | AE47: 0 | AF47: 0 | AG47: 0
A48: AUG231_1 | B48: Project Energy Connect (Bundey) | C48: Transmission substation | D48: 14171 | E48: New substation establishment | F48: Other | G48: 330 | H48: 0 | I48: 400 | J48: 0 | K48: 520 | L48: 3 | M48: 1200 | O48: 12109984.14 | P48: Air | Q48: 10 x 330kV Circuit Breakers | R48: 1567588.05 | S48: Reactor | T48: 3 | U48: 5680727.502 | V48: 1131875.475 | X48: 987097.1723 | Y48: 23360568.25 | Z48: 72221487.06 | AB48: 2017, 2018, 2019, 2020, 2021, 2022, 2023, 2024, 2025 | AF48: 553510.0506
A49: AUG231_2 | P49: Air | Q49: 23 x 330kV Disconnectors with ES | R49: 1137630.45 | S49: Capacitor | T49: 1 | U49: 1185965.654 | V49: 256775.1288
A50: AUG231_3 | P50: Air | Q50: 9 x 275kV Circuit Breakers | R50: 1583096.103 | V50: 142651.2985
A51: AUG231_4 | P51: Air | Q51: 2 x 33kV Disconnectors with ES | R51: 18931.50956 | V51: 847185.8494
A52: AUG231_5 | P52: Air | Q52: 23 x 275kV Disconnectors with ES | R52: 791817.8492 | V52: 358012.9774
A53: AUG231_6 | V53: 87035.23322
B54: Project Totals | L54: =SUM(L48:L53) -> 3 | M54: 1200 | O54: =SUM(O48:O53) -> 12109984.14 | Q54: =SUM(Q48:Q53) -> 0 | R54: 5099063.961 | T54: =SUM(T48:T53) -> 4 | U54: 6866693.156 | V54: 2823535.962 | W54: 0 | X54: 987097.1723 | Y54: =SUM(Y48:Y53) -> 23360568.25 | Z54: 72221487.06 | AA54: =O54+R54+U54+V54+SUM(X54:Z54) -> 123468429.7 | AC54: =SUM(AC48:AC53) -> 0 | AD54: 0 | AE54: 0 | AF54: 553510.0506 | AG54: 0
A55: AUG231_1 | B55: <Enter substation ID>
A56: AUG231_2
A57: AUG231_3
A58: AUG231_4
A59: AUG231_5
A60: AUG231_6
B61: Project Totals | L61: =SUM(L55:L60) -> 0 | M61: 0 | O61: =SUM(O55:O60) -> 0 | Q61: =SUM(Q55:Q60) -> 0 | R61: 0 | T61: =SUM(T55:T60) -> 0 | U61: 0 | V61: 0 | W61: 0 | X61: 0 | Y61: 0 | Z61: 0 | AA61: =O61+R61+U61+V61+SUM(X61:Z61) -> 0 | AC61: =SUM(AC55:AC60) -> 0 | AD61: 0 | AE61: 0 | AF61: 0 | AG61: 0
A62: AUG231_1 | B62: <Enter substation ID>
A63: AUG231_2
A64: AUG231_3
A65: AUG231_4
A66: AUG231_5
A67: AUG231_6
B68: Project Totals | L68: =SUM(L62:L67) -> 0 | M68: 0 | O68: =SUM(O62:O67) -> 0 | Q68: =SUM(Q62:Q67) -> 0 | R68: 0 | T68: =SUM(T62:T67) -> 0 | U68: 0 | V68: 0 | W68: 0 | X68: 0 | Y68: 0 | Z68: 0 | AA68: =O68+R68+U68+V68+SUM(X68:Z68) -> 0 | AC68: =SUM(AC62:AC67) -> 0 | AD68: 0 | AE68: 0 | AF68: 0 | AG68: 0
A69: AUG231_1 | B69: <Enter substation ID>
A70: AUG231_2
A71: AUG231_3
A72: AUG231_4
A73: AUG231_5
A74: AUG231_6
B75: Project Totals | L75: =SUM(L69:L74) -> 0 | M75: 0 | O75: =SUM(O69:O74) -> 0 | Q75: =SUM(Q69:Q74) -> 0 | R75: 0 | T75: =SUM(T69:T74) -> 0 | U75: 0 | V75: 0 | W75: 0 | X75: 0 | Y75: 0 | Z75: 0 | AA75: =O75+R75+U75+V75+SUM(X75:Z75) -> 0 | AC75: =SUM(AC69:AC74) -> 0 | AD75: 0 | AE75: 0 | AF75: 0 | AG75: 0
A76: AUG231_1 | B76: <Enter substation ID>
A77: AUG231_2
A78: AUG231_3
A79: AUG231_4
A80: AUG231_5
A81: AUG231_6
B82: Project Totals | L82: =SUM(L76:L81) -> 0 | M82: 0 | O82: =SUM(O76:O81) -> 0 | Q82: =SUM(Q76:Q81) -> 0 | R82: 0 | T82: =SUM(T76:T81) -> 0 | U82: 0 | V82: 0 | W82: 0 | X82: 0 | Y82: 0 | Z82: 0 | AA82: =O82+R82+U82+V82+SUM(X82:Z82) -> 0 | AC82: =SUM(AC76:AC81) -> 0 | AD82: 0 | AE82: 0 | AF82: 0 | AG82: 0
A83: AUG231_1 | B83: <Enter substation ID>
A84: AUG231_2
A85: AUG231_3
A86: AUG231_4
A87: AUG231_5
A88: AUG231_6
B89: Project Totals | L89: =SUM(L83:L88) -> 0 | M89: 0 | O89: =SUM(O83:O88) -> 0 | Q89: =SUM(Q83:Q88) -> 0 | R89: 0 | T89: =SUM(T83:T88) -> 0 | U89: 0 | V89: 0 | W89: 0 | X89: 0 | Y89: 0 | Z89: 0 | AA89: =O89+R89+U89+V89+SUM(X89:Z89) -> 0 | AC89: =SUM(AC83:AC88) -> 0 | AD89: 0 | AE89: 0 | AF89: 0 | AG89: 0
A90: AUG231_1 | B90: <Enter substation ID>
A91: AUG231_2
A92: AUG231_3
A93: AUG231_4
A94: AUG231_5
A95: AUG231_6
B96: Project Totals | L96: =SUM(L90:L95) -> 0 | M96: 0 | O96: =SUM(O90:O95) -> 0 | Q96: =SUM(Q90:Q95) -> 0 | R96: 0 | T96: =SUM(T90:T95) -> 0 | U96: 0 | V96: 0 | W96: 0 | X96: 0 | Y96: 0 | Z96: 0 | AA96: =O96+R96+U96+V96+SUM(X96:Z96) -> 0 | AC96: =SUM(AC90:AC95) -> 0 | AD96: 0 | AE96: 0 | AF96: 0 | AG96: 0
A97: AUG231_1 | B97: <Enter substation ID>
A98: AUG231_2
A99: AUG231_3
A100: AUG231_4
A101: AUG231_5
A102: AUG231_6
B103: Project Totals | L103: =SUM(L97:L102) -> 0 | M103: 0 | O103: =SUM(O97:O102) -> 0 | Q103: =SUM(Q97:Q102) -> 0 | R103: 0 | T103: =SUM(T97:T102) -> 0 | U103: 0 | V103: 0 | W103: 0 | X103: 0 | Y103: 0 | Z103: 0 | AA103: =O103+R103+U103+V103+SUM(X103:Z103) -> 0 | AC103: =SUM(AC97:AC102) -> 0 | AD103: 0 | AE103: 0 | AF103: 0 | AG103: 0
A104: AUG231_1 | B104: <Enter substation ID>
A105: AUG231_2
A106: AUG231_3
A107: AUG231_4
A108: AUG231_5
A109: AUG231_6
B110: Project Totals | L110: =SUM(L104:L109) -> 0 | M110: 0 | O110: =SUM(O104:O109) -> 0 | Q110: =SUM(Q104:Q109) -> 0 | R110: 0 | T110: =SUM(T104:T109) -> 0 | U110: 0 | V110: 0 | W110: 0 | X110: 0 | Y110: 0 | Z110: 0 | AA110: =O110+R110+U110+V110+SUM(X110:Z110) -> 0 | AC110: =SUM(AC104:AC109) -> 0 | AD110: 0 | AE110: 0 | AF110: 0 | AG110: 0
A111: AUG231_1 | B111: <Enter substation ID>
A112: AUG231_2
A113: AUG231_3
A114: AUG231_4
A115: AUG231_5
A116: AUG231_6
B117: Project Totals | L117: =SUM(L111:L116) -> 0 | M117: 0 | O117: =SUM(O111:O116) -> 0 | Q117: =SUM(Q111:Q116) -> 0 | R117: 0 | T117: =SUM(T111:T116) -> 0 | U117: 0 | V117: 0 | W117: 0 | X117: 0 | Y117: 0 | Z117: 0 | AA117: =O117+R117+U117+V117+SUM(X117:Z117) -> 0 | AC117: =SUM(AC111:AC116) -> 0 | AD117: 0 | AE117: 0 | AF117: 0 | AG117: 0
A118: AUG231_1000 | D118: Non material projects | AA118: 41506640.93
B121: NOTE: TNSP MUST PROVIDE EXPENDITURE INFORMATION ON A PROJECT CLOSE BASIS.
B122: 2.3.2 - AUGEX ASSET DATA - LINES
B123: LINE AND PROJECT SUMMARY | H123: PLANT AND EQUIPMENT EXPENDITURE AND VOLUME | V123: OTHER EXPENDITURE | X123: TOTAL DIRECT EXPENDITURE ($0's) | Y123: YEARS INCURRED | Z123: ALL RELATED PARTY CONTRACTS | AB123: ALL NON RELATED PARTYCONTRACTS | AC123: LAND AND EASEMENTS | AE123: Comments
B124: LINE ID | C124: PROJECT ID | D124: PROJECT TYPE (drop down) | E124: PROJECT TRIGGER (drop down) | F124: VOLTAGE (KV) | G124: ROUTE LINE LENGTH ADDED | H124: TOWERS/POLES (INCLUDING STRUCTURES, AND CIVIL WORKS) | L124: LINES AND CABLES | S124: OTHER PLANT ITEM Expenditure ($0's) | T124: INSTALLATION (LABOUR) | V124: CIVIL WORKS | W124: OTHER DIRECT | Z124: RELATED PARTY MARGINS | AA124: TOTAL | AC124: LAND PURCHASES | AD124: EASEMENTS
L125: Type | M125: Rating (MVA) | O125: N-1 Emergency Rating (MVA) | Q125: Circuit KM Added | R125: Expenditure ($0's)
A126: AUG232_1 | G126: KM ADDED | H126: Configuration | I126: Towers/Poles Added | J126: Towers/Poles Upgraded | K126: Expenditure ($0's) | M126: PRE | N126: POST | O126: PRE | P126: POST | T126: Volume | U126: Expenditure ($0's) | V126: Expenditure ($0's) | Z126: Expenditure ($0's) | AC126: Expenditure ($0's)
A127: AUG232_2 | B127: F1949 TIPS - CITY WEST CABLE | C127: 10161 | D127: New line on new route - single circuit | E127: Demand growth | F127: 275 | G127: 18.4 | H127: Other | I127: 0 | J127: 0 | K127: 0 | L127: Underground cable | M127: 0 | N127: 750 | O127: 0 | P127: 0 | Q127: 18.4 | R127: 88409521.03 | S127: 0 | U127: 21999269.01 | W127: 4996678.256 | Y127: 2004, 2005, 2006, 2007, 2008, 2009, 2010, 2011, 2012, 2013, 2014, 2015, 2016, 2017, 2018, 2019, 2020, 2021, 2022 | AC127: 379926.6747 | AD127: 407746.3749
A128: AUG232_3
A129: AUG232_4
A130: AUG232_5
A131: AUG232_6
A132: AUG232_7
A134: AUG232_8 | B134: Project Totals | I134: =SUM(I127:I133) -> 0 | J134: =SUM(J127:J133) -> 0 | K134: =SUM(K127:K133) -> 0 | Q134: =SUM(Q127:Q133) -> 18.4 | R134: =SUM(R127:R133) -> 88409521.03 | S134: =SUM(S127:S132) -> 0 | T134: =SUM(T127:T132) -> 0 | U134: =SUM(U127:U133) -> 21999269.01 | V134: =SUM(V127:V133) -> 0 | W134: =SUM(W127:W133) -> 4996678.256 | X134: =K134+R134+S134+SUM(U134:W134) -> 115405468.3 | Z134: =SUM(Z127:Z133) -> 0 | AA134: =SUM(AA127:AA133) -> 0 | AB134: =SUM(AB127:AB133) -> 0 | AC134: =SUM(AC127:AC133) -> 379926.6747 | AD134: =SUM(AD127:AD133) -> 407746.3749
A135: AUG232_2 | B135: F1923 TAILEM BEND - SOUTH EAST No 1 F1923 TAILEM BEND - SOUTH EAST No 2 | C135: 10344 | H135: Multiple circuit steel tower | I135: 0 | J135: 0 | K135: 0 | L135: Overhead line | M135: 450 | N135: 650 | O135: 450 | P135: 650 | Q135: 0 | W135: 1630432.726 | Y135: 2012, 2013, 2014, 2015, 2016, 2017, 2018, 2019, 2020, 2021, 2022
A136: AUG232_3
A137: AUG232_4
A138: AUG232_5
A139: AUG232_6
A140: AUG232_7
A142: AUG232_8 | B142: Project Totals | I142: =SUM(I135:I141) -> 0 | J142: 0 | K142: 0 | Q142: =SUM(Q135:Q141) -> 0 | R142: 0 | S142: =SUM(S135:S140) -> 0 | T142: 0 | U142: =SUM(U135:U141) -> 0 | V142: 0 | W142: 1630432.726 | X142: =K142+R142+S142+SUM(U142:W142) -> 1630432.726 | Z142: =SUM(Z135:Z141) -> 0 | AA142: 0 | AB142: 0 | AC142: 0 | AD142: 0
A143: AUG232_2 | B143: F1601/2 PROJECT ENERGY CONNECT | C143: 14171 | D143: New line on new route - multiple circuit | E143: Other | F143: 330 | G143: 192.85 | H143: Multiple circuit steel tower | I143: 358 | J143: 0 | K143: 55019500.23 | L143: Overhead line | M143: 0 | N143: 800 | O143: 0 | P143: 400 | Q143: 2314.2 | R143: 15049619.62 | U143: 32706524.37 | V143: 7923842.118 | W143: 172360592.7 | Y143: 2017, 2018, 2019, 2020, 2021, 2022, 2023, 2024, 2025 | AD143: 1749087.511
A144: AUG232_3
A145: AUG232_4
A146: AUG232_5
A147: AUG232_6
A148: AUG232_7
A150: AUG232_8 | B150: Project Totals | I150: =SUM(I143:I149) -> 358 | J150: 0 | K150: 55019500.23 | Q150: =SUM(Q143:Q149) -> 2314.2 | R150: 15049619.62 | S150: =SUM(S143:S148) -> 0 | T150: 0 | U150: =SUM(U143:U149) -> 32706524.37 | V150: 7923842.118 | W150: 172360592.7 | X150: =K150+R150+S150+SUM(U150:W150) -> 283060079 | Z150: =SUM(Z143:Z149) -> 0 | AA150: 0 | AB150: 0 | AC150: 0 | AD150: 1749087.511
A151: AUG232_2 | B151: F1985/6 PROJECT ENERGY CONNECT | C151: 14171 | D151: New line on new route - multiple circuit | E151: Other | F151: 275 | G151: 11.84 | H151: Multiple circuit steel tower | I151: 26 | J151: 0 | K151: 3837717.483 | L151: Overhead line | M151: 0 | N151: 800 | O151: 0 | P151: 400 | Q151: 142.08 | R151: 1336942.929 | U151: 3007319.632 | V151: 439863.6347 | W151: 13424326.85 | Y151: 2017, 2018, 2019, 2020, 2021, 2022, 2023, 2024, 2025 | AD151: 615832.2444
A152: AUG232_3
A153: AUG232_4
A154: AUG232_5
A155: AUG232_6
A156: AUG232_7
A158: AUG232_8 | B158: Project Totals | I158: =SUM(I151:I157) -> 26 | J158: 0 | K158: 3837717.483 | Q158: =SUM(Q151:Q157) -> 142.08 | R158: 1336942.929 | S158: =SUM(S151:S156) -> 0 | T158: 0 | U158: =SUM(U151:U157) -> 3007319.632 | V158: 439863.6347 | W158: 13424326.85 | X158: =K158+R158+S158+SUM(U158:W158) -> 22046170.53 | Z158: =SUM(Z151:Z157) -> 0 | AA158: 0 | AB158: 0 | AC158: 0 | AD158: 615832.2444
A159: AUG232_2 | B159: <Enter line ID>
A160: AUG232_3
A161: AUG232_4
A162: AUG232_5
A163: AUG232_6
A164: AUG232_7
A166: AUG232_8 | B166: Project Totals | I166: =SUM(I159:I165) -> 0 | J166: 0 | K166: 0 | Q166: =SUM(Q159:Q165) -> 0 | R166: 0 | S166: =SUM(S159:S164) -> 0 | T166: 0 | U166: =SUM(U159:U165) -> 0 | V166: 0 | W166: 0 | X166: =K166+R166+S166+SUM(U166:W166) -> 0 | Z166: =SUM(Z159:Z165) -> 0 | AA166: 0 | AB166: 0 | AC166: 0 | AD166: 0
A167: AUG232_2 | B167: <Enter line ID>
A168: AUG232_3
A169: AUG232_4
A170: AUG232_5
A171: AUG232_6
A172: AUG232_7
A174: AUG232_8 | B174: Project Totals | I174: =SUM(I167:I173) -> 0 | J174: 0 | K174: 0 | Q174: =SUM(Q167:Q173) -> 0 | R174: 0 | S174: =SUM(S167:S172) -> 0 | T174: 0 | U174: =SUM(U167:U173) -> 0 | V174: 0 | W174: 0 | X174: =K174+R174+S174+SUM(U174:W174) -> 0 | Z174: =SUM(Z167:Z173) -> 0 | AA174: 0 | AB174: 0 | AC174: 0 | AD174: 0
A175: AUG232_2 | B175: <Enter line ID>
A176: AUG232_3
A177: AUG232_4
A178: AUG232_5
A179: AUG232_6
A180: AUG232_7
A182: AUG232_8 | B182: Project Totals | I182: =SUM(I175:I181) -> 0 | J182: 0 | K182: 0 | Q182: =SUM(Q175:Q181) -> 0 | R182: 0 | S182: =SUM(S175:S180) -> 0 | T182: 0 | U182: =SUM(U175:U181) -> 0 | V182: 0 | W182: 0 | X182: =K182+R182+S182+SUM(U182:W182) -> 0 | Z182: =SUM(Z175:Z181) -> 0 | AA182: 0 | AB182: 0 | AC182: 0 | AD182: 0
C183: Non material projects | X183: 29867.04572

Sheet 2.3 Augex (b)
B1: =(LOOKUP(dms_Model,dms_Model_List,dms_Worksheet_List)) -> REGULATORY REPORTING STATEMENT
B2: =INDEX(dms_TradingNameFull_List,MATCH(dms_TradingName,dms_TradingName_List)) -> ElectraNet
B3: =IF(SUM(dms_SingleYear_Model)>0,CRY,CONCATENATE(FRCP_y1," to ",dms_MultiYear_FinalYear_Result)) -> 2023-24 to 2027-28
B4: 2.3 AUGEX PROJECTS
B6: There is ONE table on this worksheet.
B8: 2.3.4 - AUGEX - TOTAL EXPENDITURE
C9: =CONCATENATE("EXPENDITURE Forecast ($0's. real ",dms_DollarReal,")") -> EXPENDITURE Forecast ($0's. real June 2023)
B10: As incurred | C10: =dms_y1 -> 2021-22 | D10: =dms_y2 -> 2022-23 | E10: =dms_y3 -> 2023-24 | F10: =dms_y4 -> 2024-25 | G10: =dms_y5 -> 2025-26 | H10: =dms_y6 -> 2026-27 | I10: =dms_y7 -> 2027-28
B11: Substations | C11: 43136138.48 | D11: 80672302.7 | E11: 12274591.09 | F11: 5855323.463 | G11: 0 | H11: 0 | I11: 0
B12: Lines | C12: 78506358.68 | D12: 171954014 | E12: 27230731.03 | F12: 12989820.78 | G12: 0 | H12: 0 | I12: 0
B13: Other assets | C13: 38617.50143 | D13: 210234.7482 | E13: 0 | F13: 0 | G13: 0 | H13: 0 | I13: 0
B14: Total | C14: =SUM(C11:C13) -> 121681114.7 | D14: 252836551.4 | E14: 39505322.12 | F14: 18845144.24 | G14: 0 | H14: 0 | I14: 0

Sheet 2.5 Connections
B1: =(LOOKUP(dms_Model,dms_Model_List,dms_Worksheet_List)) -> REGULATORY REPORTING STATEMENT
B2: =INDEX(dms_TradingNameFull_List,MATCH(dms_TradingName,dms_TradingName_List)) -> ElectraNet
B3: =IF(SUM(dms_SingleYear_Model)>0,CRY,CONCATENATE(FRCP_y1," to ",dms_MultiYear_FinalYear_Result)) -> 2023-24 to 2027-28
B4: 2.5 CONNECTIONS EXPENDITURE
B6: There are TWO tables on this worksheet. Each has been grouped (or sub-grouped). See the Instructions sheet on how to group or ungroup data.
B8: 2.5.1 - EXPENDITURE ON CONNECTION PROJECTS
C9: =CONCATENATE("EXPENDITURE Forecast ($0's. real ",dms_DollarReal,")") -> EXPENDITURE Forecast ($0's. real June 2023)
C10: =dms_y1 -> 2021-22 | D10: =dms_y2 -> 2022-23 | E10: =dms_y3 -> 2023-24 | F10: =dms_y4 -> 2024-25 | G10: =dms_y5 -> 2025-26 | H10: =dms_y6 -> 2026-27 | I10: =dms_y7 -> 2027-28
B11: DIRECT MATERIALS EXPENDITURE
B12: <Enter project description here…>
B37: DIRECT LABOUR EXPENDITURE
B38: =IF(ISBLANK(B12),"",B12) -> <Enter project description here…>
B66: 2.5.2 - DESCRIPTION OF CONNECTION PROJECTS
C67: CONNECTION RATING (MVA) | D67: CONNECTION VOLTAGE (KV) | E67: UNDERGROUND / OVERHEAD (drop down) | F67: YEAR CONNECTION PROJECT COMPLETED
B68: =IF(ISBLANK(B12),"",B12) -> <Enter project description here…>

Sheet 2.6 Non-network
B1: =(LOOKUP(dms_Model,dms_Model_List,dms_Worksheet_List)) -> REGULATORY REPORTING STATEMENT
B2: =INDEX(dms_TradingNameFull_List,MATCH(dms_TradingName,dms_TradingName_List)) -> ElectraNet
B3: =IF(SUM(dms_SingleYear_Model)>0,CRY,CONCATENATE(FRCP_y1," to ",dms_MultiYear_FinalYear_Result)) -> 2023-24 to 2027-28
B4: 2.6 NON NETWORK EXPENDITURE
B6: There are THREE tables on this worksheet - each has been 'grouped' for easy navigation. See the Instructions sheet on how to group or ungroup tables.
B8: 2.6.1 - NON-NETWORK EXPENDITURE
E9: =CONCATENATE("EXPENDITURE Forecast ($0's. real ",dms_DollarReal,")") -> EXPENDITURE Forecast ($0's. real June 2023)
B10: SERVICE SUBCATEGORY | C10: ASSET CATEGORY | E10: =dms_y1 -> 2021-22 | F10: =dms_y2 -> 2022-23 | G10: =dms_y3 -> 2023-24 | H10: =dms_y4 -> 2024-25 | I10: =dms_y5 -> 2025-26 | J10: =dms_y6 -> 2026-27 | K10: =dms_y7 -> 2027-28
B11: OPEX
B12: IT & COMMUNICATIONS | C12: Total IT and communications | E12: 9686258 | F12: 9863742 | G12: 16496326 | H12: 16831416 | I12: 16850599 | J12: 16853332 | K12: 16849821
B13: MOTOR VEHICLES | C13: Car | E13: 184897 | F13: 188285 | G13: 202367 | H13: 222722 | I13: 251008 | J13: 289675 | K13: 342322
C14: Light commercial vehicle
C15: Elevated work platform (LCV)
C16: Elevated work platform (HCV)
C17: Heavy commercial vehicle
B18: BUILDINGS AND PROPERTY | C18: Total buildings and property expenditure | E18: 3361225 | F18: 3422814 | G18: 3678808 | H18: 3753536 | I18: 3757814 | J18: 3758424 | K18: 3757640
B19: OTHER | C19: Other expenditure
B20: OTHER - TNSP nominated
B31: CAPEX
B32: IT & COMMUNICATIONS | C32: Total IT and communications | E32: 15713584 | F32: 9077542 | G32: 13203447 | H32: 13313215 | I32: 14012340 | J32: 11663728 | K32: 12549211
B33: MOTOR VEHICLES | C33: Car | E33: 631539 | F33: 144060 | G33: 2064028 | H33: 99893 | I33: 100149 | J33: 100307 | K33: 100811
C34: Light commercial vehicle
C35: Elevated work platform (LCV)
C36: Elevated work platform (HCV)
C37: Heavy commercial vehicle
B38: BUILDINGS AND PROPERTY | C38: Total buildings and property expenditure | E38: 3656256 | F38: 2389494 | G38: 2755505 | H38: 1219666 | I38: 2255399 | J38: 2195453 | K38: 1833179
B39: OTHER | C39: Other expenditure
B40: OTHER - TNSP nominated
B54: 2.6.3 - ANNUAL DESCRIPTOR METRICS
B55: IT & COMMUNICATIONS
E56: VOLUMES (0's)
E57: =dms_y1 -> 2021-22 | F57: =dms_y2 -> 2022-23 | G57: =dms_y3 -> 2023-24 | H57: =dms_y4 -> 2024-25 | I57: =dms_y5 -> 2025-26 | J57: =dms_y6 -> 2026-27 | K57: =dms_y7 -> 2027-28
B58: Employee numbers
B59: User numbers
B60: Number of devices
B62: MOTOR VEHICLES
E63: VOLUMES (0's or %)
D64: Units | E64: =dms_y1 -> 2021-22 | F64: =dms_y2 -> 2022-23 | G64: =dms_y3 -> 2023-24 | H64: =dms_y4 -> 2024-25 | I64: =dms_y5 -> 2025-26 | J64: =dms_y6 -> 2026-27 | K64: =dms_y7 -> 2027-28
B65: CAR | C65: Average kilometres travelled | D65: 0's | E65: 23464 | F65: 23464 | G65: 23464 | H65: 23464 | I65: 23464 | J65: 23464 | K65: 23464
C66: Number purchased | D66: 0's | E66: 16 | F66: 25 | G66: 25 | H66: 25 | I66: 25 | J66: 25 | K66: 25
C67: Number leased | D67: 0's | E67: 17 | F67: 18 | G67: 18 | H67: 12 | I67: 9 | J67: 9 | K67: 9
C68: Number in fleet | D68: 0's | E68: 33 | F68: 43 | G68: 43 | H68: 37 | I68: 34 | J68: 34 | K68: 34
C69: Proportion of total fleet expenditure allocated as regulatory expenditure | D69: % | E69: 0.8212 | F69: 0.8212 | G69: 0.8212 | H69: 0.8212 | I69: 0.8212 | J69: 0.8212 | K69: 0.8212
B70: LIGHT COMMERCIAL VEHICLE | C70: Average kilometres travelled | D70: 0's
C71: Number purchased | D71: 0's
C72: Number leased | D72: 0's
C73: Number in fleet | D73: 0's
C74: Proportion of total fleet expenditure allocated as regulatory expenditure | D74: %
B75: ELEVATED WORK PLATFORM (LCV) | C75: Average kilometres travelled | D75: 0's
C76: Number purchased | D76: 0's
C77: Number leased | D77: 0's
C78: Number in fleet | D78: 0's
C79: Proportion of total fleet expenditure allocated as regulatory expenditure | D79: %
B80: ELEVATED WORK PLATFORM (HCV) | C80: Average kilometres travelled | D80: 0's
C81: Number purchased | D81: 0's
C82: Number leased | D82: 0's
C83: Number in fleet | D83: 0's
C84: Proportion of total fleet expenditure allocated as regulatory expenditure | D84: %
B85: HEAVY COMMERCIAL VEHICLE | C85: Average kilometres travelled | D85: 0's
C86: Number purchased | D86: 0's
C87: Number leased | D87: 0's
C88: Number in fleet | D88: 0's
C89: Proportion of total fleet expenditure allocated as regulatory expenditure | D89: %
B93: 2.6.4 - INFORMATION & COMMUNICATIONS TECHNOLOGY - CAPEX BY PURPOSE
E94: =CONCATENATE("EXPENDITURE Forecast ($0's. real ",dms_DollarReal,")") -> EXPENDITURE Forecast ($0's. real June 2023)
E95: =dms_y1 -> 2021-22 | F95: =dms_y2 -> 2022-23 | G95: =dms_y3 -> 2023-24 | H95: =dms_y4 -> 2024-25 | I95: =dms_y5 -> 2025-26 | J95: =dms_y6 -> 2026-27 | K95: =dms_y7 -> 2027-28
B96: RECURRENT
B97: Recurrent IT and Communications | E97: 14385274 | F97: 8344841 | G97: 12600643 | H97: 11112994 | I97: 7965432 | J97: 3563388 | K97: 7339852
B107: NON-RECURRENT
B108: Maintaining existing services, functionalities, capability and/or market benefits | E108: 1241413 | F108: 732701 | G108: 602804 | H108: 2200221 | I108: 6046909 | J108: 8100340 | K108: 5209359
B109: Complying with new / altered regulatory obligations / requirements | E109: 86897 | F109: 0 | G109: 0 | H109: 0 | I109: 0 | J109: 0 | K109: 0
B110: New or expanded ICT capability, functions and services

Sheet 2.11 Labour (hidden)
B1: =(LOOKUP(dms_Model,dms_Model_List,dms_Worksheet_List)) -> REGULATORY REPORTING STATEMENT
B2: =INDEX(dms_TradingNameFull_List,MATCH(dms_TradingName,dms_TradingName_List)) -> ElectraNet
B3: =IF(SUM(dms_SingleYear_Model)>0,CRY,CONCATENATE(FRCP_y1," to ",dms_MultiYear_FinalYear_Result)) -> 2023-24 to 2027-28
B4: 2.11 LABOUR
B6: There is ONE table on this worksheet. The table has been 'grouped' (and sub-grouped) for easy navigation. See the Instructions sheet on how to group or ungroup data.
B8: Table numbering in this template starts at 2.11.3. Tables 2.11.1 & 2.11.2 appear in the Category Analysis RIN and are not required for this RIN.
B10: 2.11.3 - LABOUR / NON-LABOUR EXPENDITURE SPLIT
B11: OPEX
C12: EXPENDITURE
C13: ($0's, nominal) | H13: =CONCATENATE("($0's, real ", dms_DollarReal,")") -> ($0's, real June 2023)
C14: =PRCP_y4 -> 2016-17 | D14: =PRCP_y5 -> 2017-18 | E14: =CRCP_y1 -> 2018-19 | F14: =CRCP_y2 -> 2019-20 | G14: =CRCP_y3 -> 2020-21 | H14: =dms_y1 -> 2021-22 | I14: =dms_y2 -> 2022-23 | J14: =dms_y3 -> 2023-24 | K14: =dms_y4 -> 2024-25 | L14: =dms_y5 -> 2025-26 | M14: =dms_y6 -> 2026-27 | N14: =dms_y7 -> 2027-28
B15: In-house labour expenditure
B16: Labour expenditure outsourced to related parties
B17: Labour expenditure outsourced to unrelated parties
B18: Controllable non-labour expenditure
B19: Uncontrollable non-labour expenditure
B20: Total | C20: =SUM(C15:C19) -> 0 | D20: 0 | E20: 0 | F20: 0 | G20: 0 | H20: 0 | I20: 0 | J20: 0 | K20: 0 | L20: 0 | M20: 0 | N20: 0
B22: CAPEX
C23: EXPENDITURE
C24: ($0's, nominal) | H24: =CONCATENATE("($0's, real ", dms_DollarReal,")") -> ($0's, real June 2023)
C25: =PRCP_y4 -> 2016-17 | D25: =PRCP_y5 -> 2017-18 | E25: =CRCP_y1 -> 2018-19 | F25: =CRCP_y2 -> 2019-20 | G25: =CRCP_y3 -> 2020-21 | H25: =dms_y1 -> 2021-22 | I25: =dms_y2 -> 2022-23 | J25: =dms_y3 -> 2023-24 | K25: =dms_y4 -> 2024-25 | L25: =dms_y5 -> 2025-26 | M25: =dms_y6 -> 2026-27 | N25: =dms_y7 -> 2027-28
B26: In-house labour expenditure
B27: Labour expenditure outsourced to related parties
B28: Labour expenditure outsourced to unrelated parties
B29: Controllable non-labour expenditure
B30: Uncontrollable non-labour expenditure
B31: Total | C31: =SUM(C26:C30) -> 0 | D31: 0 | E31: 0 | F31: 0 | G31: 0 | H31: 0 | I31: 0 | J31: 0 | K31: 0 | L31: 0 | M31: 0 | N31: 0

Sheet 2.10 Overheads
B1: =(LOOKUP(dms_Model,dms_Model_List,dms_Worksheet_List)) -> REGULATORY REPORTING STATEMENT
B2: =INDEX(dms_TradingNameFull_List,MATCH(dms_TradingName,dms_TradingName_List)) -> ElectraNet
B3: =IF(SUM(dms_SingleYear_Model)>0,CRY,CONCATENATE(FRCP_y1," to ",dms_MultiYear_FinalYear_Result)) -> 2023-24 to 2027-28
B4: 2.10 OVERHEADS
B6: There are TWO tables on this worksheet. Each has been grouped (and sub-grouped) for ease of navigation. See the Instructions sheet on how to group or ungroup tables.
B8: 2.10.1 - NETWORK OVERHEADS EXPENDITURE
D9: =CONCATENATE("EXPENDITURE Forecast ($0's. real ",dms_DollarReal,")") -> EXPENDITURE Forecast ($0's. real June 2023)
D10: =dms_y1 -> 2021-22 | E10: =dms_y2 -> 2022-23 | F10: =dms_y3 -> 2023-24 | G10: =dms_y4 -> 2024-25 | H10: =dms_y5 -> 2025-26 | I10: =dms_y6 -> 2026-27 | J10: =dms_y7 -> 2027-28
B11: OPEX
B12: Prescribed Transmission Services | C12: Total | D12: 29678112.7 | E12: 34292070.62 | F12: 31789472.26 | G12: 39833262.29 | H12: 40913213.43 | I12: 40975037.11 | J12: 40983845.69
B13: CAPEX
B14: Prescribed Transmission Services | C14: Total | D14: 9107632.722 | E14: 7322514.905 | F14: 4089908.846 | G14: 4635643.56 | H14: 4589519.745 | I14: 4925634.814 | J14: 4325817.409
B15: OTHER TRANSMISSION SERVICES
B16: Negotiated Services | C16: Total
B17: Unregulated Services | C17: Total | D17: 5278567.16 | E17: 5973705.559 | F17: 5500791.314 | G17: 7885662.111 | H17: 8072534.853 | I17: 8083232.708 | J17: 8084756.928
B21: 2.10.2 - CORPORATE OVERHEADS EXPENDITURE
D22: =CONCATENATE("EXPENDITURE Forecast ($0's. real ",dms_DollarReal,")") -> EXPENDITURE Forecast ($0's. real June 2023)
D23: =dms_y1 -> 2021-22 | E23: =dms_y2 -> 2022-23 | F23: =dms_y3 -> 2023-24 | G23: =dms_y4 -> 2024-25 | H23: =dms_y5 -> 2025-26 | I23: =dms_y6 -> 2026-27 | J23: =dms_y7 -> 2027-28
B24: OPEX
B25: Prescribed Transmission Services | C25: Total | D25: 31269015.99 | E25: 36130306.37 | F25: 33493555.54 | G25: 41968535.13 | H25: 43106377.34 | I25: 43171515.1 | J25: 43180795.86
B26: CAPEX
B27: Prescribed Transmission Services | C27: Total | D27: 2793954.277 | E27: 1963464.638 | F27: 2887732.427 | G27: 2945878.15 | H27: 3852736.668 | I27: 3765191.814 | J27: 3397053.994
B28: OTHER TRANSMISSION SERVICES
B29: Negotiated Services | C29: Total
B30: Unregulated Services | C30: Total | D30: 1264439.87 | E30: 1461018.15 | F30: 1354394.62 | G30: 1697101.345 | H30: 1743112.805 | I30: 1745746.811 | J30: 1746122.101

Sheet 2.14 Forecast price changes
B1: =(LOOKUP(dms_Model,dms_Model_List,dms_Worksheet_List)) -> REGULATORY REPORTING STATEMENT
B2: =INDEX(dms_TradingNameFull_List,MATCH(dms_TradingName,dms_TradingName_List)) -> ElectraNet
B3: =IF(SUM(dms_SingleYear_Model)>0,CRY,CONCATENATE(FRCP_y1," to ",dms_MultiYear_FinalYear_Result)) -> 2023-24 to 2027-28
B4: 2.14 FORECAST PRICE CHANGES
B6: 2.14.2 - FORECAST CAPEX AND OPEX PRICE CHANGES
C7: Price changes (% YoY real) Current regulatory period | E7: Price changes (%YoY real) Forthcoming regulatory period
C8: Forecast
C9: =CRCP_y4 -> 2021-22 | D9: =CRCP_y5 -> 2022-23 | E9: =FRCP_y1 -> 2023-24 | F9: =FRCP_y2 -> 2024-25 | G9: =FRCP_y3 -> 2025-26 | H9: =FRCP_y4 -> 2026-27 | I9: =FRCP_y5 -> 2027-28
B10: OPEX
B11: Real Labour Escalation | C11: 0.008 | D11: 0.009 | E11: 0.005 | F11: 0.006 | G11: 0.007 | H11: 0.004 | I11: 0.003
B12: Materials | C12: 0 | D12: 0 | E12: 0 | F12: 0 | G12: 0 | H12: 0 | I12: 0
B14: CAPEX
B15: Real Labour Escalation | C15: 0.008 | D15: 0.009 | E15: 0.005 | F15: 0.006 | G15: 0.007 | H15: 0.004 | I15: 0.003
B16: Materials | C16: 0 | D16: 0 | E16: 0 | F16: 0 | G16: 0 | H16: 0 | I16: 0

Sheet 2.16 Opex Summary
B1: =(LOOKUP(dms_Model,dms_Model_List,dms_Worksheet_List)) -> REGULATORY REPORTING STATEMENT
B2: =INDEX(dms_TradingNameFull_List,MATCH(dms_TradingName,dms_TradingName_List)) -> ElectraNet
B3: =IF(SUM(dms_SingleYear_Model)>0,CRY,CONCATENATE(FRCP_y1," to ",dms_MultiYear_FinalYear_Result)) -> 2023-24 to 2027-28
B4: 2.16 OPEX SUMMARY
B6: Instructions | K6: IMPORTANT!
B7: =CONCATENATE("Complete the tables below in accordance with the regulatory information notice. ",dms_TradingName, "'s total forecast opex must reconcile to Table 2.16.1. If ",dms_TradingName," did not forecast its total opex using a Base Year approach, total forecast opex must reconcile to Table 2.16.2") -> Complete the tables below in accordance with the regulatory information notice. ElectraNet's total forecast opex must reconcile to Table 2.16.1. If ElectraNet did not forecast its total opex using a Base Year approach, total forecast opex must reconcile to Table 2.16.2 | K7: =CONCATENATE("Has ",dms_TradingName," used a base-step-trend model to derive its opex forecast? ") -> Has ElectraNet used a base-step-trend model to derive its opex forecast? | M7: Yes
B8: The total step changes and category specific forecasts in Table 2.16.1 must reconcile (in each year) to the total step changes and category secific forecasts for each year in Tables 2.17.1 and 2.17.5 of worksheet 2.17 Step Changes.") | K8: Yes / No
K9: Please nominate the base year. | M9: 2020-21
B11: 2.16.1 - PRESCRIBED TRANSMISSION SERVICES - OPEX BY DRIVER
C12: =CONCATENATE("Forecast ($0's, real ", dms_DollarReal, ")") -> Forecast ($0's, real June 2023)
C13: =CRCP_y1 -> 2018-19 | D13: =CRCP_y2 -> 2019-20 | E13: =CRCP_y3 -> 2020-21 | F13: =CRCP_y4 -> 2021-22 | G13: =CRCP_y5 -> 2022-23 | H13: =FRCP_y1 -> 2023-24 | I13: =FRCP_y2 -> 2024-25 | J13: =FRCP_y3 -> 2025-26 | K13: =FRCP_y4 -> 2026-27 | L13: =FRCP_y5 -> 2027-28
B14: Base year total opex, excluding category specific | E14: 93226012 | F14: 95300650 | G14: 93226012 | H14: 95194089 | I14: 95194089 | J14: 95194089 | K14: 95194089 | L14: 95194089
B15: Increment from base year to final year | G15: 3413164
B16: Price growth | H16: 301575 | I16: 704949 | J16: 1143783 | K16: 1415070 | L16: 1619109
B17: Output growth | H17: 2453722 | I17: 5647892 | J17: 5704259 | K17: 5767121 | L17: 5836207
B18: Productivity growth | H18: -293848 | I18: -608368 | J18: -915627 | K18: -1222998 | L18: -1530530
B19: Step changes | H19: 23164825 | I19: 23164825 | J19: 23164825 | K19: 23164825 | L19: 23164825
B20: Category specific | E20: 12523823.88 | F20: 13118385.54 | G20: 11233040.13 | H20: 1746549 | I20: 1751858 | J20: 1752646 | K20: 1746719 | L20: 1735266
B21: Total opex | C21: =SUM(C14:C20) -> 0 | D21: 0 | E21: 105749835.9 | F21: 108419035.5 | G21: 107872216.1 | H21: 122566912 | I21: 125855245 | J21: 126043975 | K21: 126064826 | L21: 126018966
B25: 2.16.2 - PRESCRIBED TRANSMISSION SERVICES - OPEX BY CATEGORY
C26: =CONCATENATE("Forecast ($0's, real ", dms_DollarReal, ")") -> Forecast ($0's, real June 2023)
C27: =CRCP_y1 -> 2018-19 | D27: =CRCP_y2 -> 2019-20 | E27: =CRCP_y3 -> 2020-21 | F27: =CRCP_y4 -> 2021-22 | G27: =CRCP_y5 -> 2022-23 | H27: =FRCP_y1 -> 2023-24 | I27: =FRCP_y2 -> 2024-25 | J27: =FRCP_y3 -> 2025-26 | K27: =FRCP_y4 -> 2026-27 | L27: =FRCP_y5 -> 2027-28
B58: Total opex | C58: =SUM(C28:C57) -> 0 | D58: 0 | E58: 0 | F58: 0 | G58: 0 | H58: 0 | I58: 0 | J58: 0 | K58: 0 | L58: 0

Sheet 2.17 Step Changes
B1: =(LOOKUP(dms_Model,dms_Model_List,dms_Worksheet_List)) -> REGULATORY REPORTING STATEMENT
B2: =INDEX(dms_TradingNameFull_List,MATCH(dms_TradingName,dms_TradingName_List)) -> ElectraNet
B3: =IF(SUM(dms_SingleYear_Model)>0,CRY,CONCATENATE(FRCP_y1," to ",dms_MultiYear_FinalYear_Result)) -> 2023-24 to 2027-28
B4: 2.17 STEP CHANGES
B6: 2.17.1 - STEP CHANGES FOR PRESCRIBED TRANSMISSION SERVICES - FORECAST OPEX
F7: EXPENDITURE
F8: =CONCATENATE("Forecast ($0's, real ", dms_DollarReal, ")") -> Forecast ($0's, real June 2023)
B9: Step change | C9: Description | D9: =CRCP_y1 -> 2018-19 | E9: =CRCP_y2 -> 2019-20 | F9: =CRCP_y4 -> 2021-22 | G9: =CRCP_y5 -> 2022-23 | H9: =FRCP_y1 -> 2023-24 | I9: =FRCP_y2 -> 2024-25 | J9: =FRCP_y3 -> 2025-26 | K9: =FRCP_y4 -> 2026-27 | L9: =FRCP_y5 -> 2027-28
B10: Insurance | C10: Since 2018 the global insurance market has experienced significant volatility, with ongoing premium increases and a contraction in available insurance cover capacity. This ongoing market volatility continues to drive substantial ongoing increases in ElectraNet's insurance premiums. | F10: 0 | G10: 0 | H10: 6046446.145 | I10: 6046446.145 | J10: 6046446.145 | K10: 6046446.145 | L10: 6046446.145
B11: Cyber | C11: New critical infrastructure legislation to implement the Australian Energy Saector Security Framework and is expected to require additional expenditure during the coming regulatory period. | F11: 0 | G11: 0 | H11: 5183149.383 | I11: 5183149.383 | J11: 5183149.383 | K11: 5183149.383 | L11: 5183149.383
B12: Cloud | C12: ElectraNet hae identified a requirement to mitigate part of our IT infrastructure to the Cloud in order to maintain and enhance operational capabilities moving forward. This avoids capital expenditure andunlocks significant benefits, while requiring new licence fees to be paid | F12: 0 | G12: 0 | H12: 1796932.99 | I12: 1796932.99 | J12: 1796932.99 | K12: 1796932.99 | L12: 1796932.99
B13: Rule Changes | C13: Recent rule changes will give us additional responsibilities in planning and managing an increasingly complex electricity network, requiring additional specialist resources. | F13: 0 | G13: 0 | H13: 788157.3318 | I13: 788157.3318 | J13: 788157.3318 | K13: 788157.3318 | L13: 788157.3318
B14: IFRS Implementation | C14: To reflect the IFRS accounting treatment for Cloud computing services. | F14: 0 | G14: 0 | H14: 9350138.719 | I14: 9350138.719 | J14: 9350138.719 | K14: 9350138.719 | L14: 9350138.719
B24: Total | D24: =SUM(D17:D23) -> 0 | E24: 0 | F24: =SUM(F10:F23) -> 0 | G24: =SUM(G10:G23) -> 0 | H24: 23164824.57 | I24: 23164824.57 | J24: 23164824.57 | K24: 23164824.57 | L24: 23164824.57
B25: Check | H25: =IF(ROUND(H$24,0)-ROUND('2.16 Opex Summary'!C$19,0)=0,"OK","Error") -> Error | I25: =IF(ROUND(I$24,0)-ROUND('2.16 Opex Summary'!D$19,0)=0,"OK","Error") -> Error | J25: =IF(ROUND(J$24,0)-ROUND('2.16 Opex Summary'!E$19,0)=0,"OK","Error") -> Error | K25: =IF(ROUND(K$24,0)-ROUND('2.16 Opex Summary'!F$19,0)=0,"OK","Error") -> Error | L25: =IF(ROUND(L$24,0)-ROUND('2.16 Opex Summary'!G$19,0)=0,"OK","Error") -> Error
B28: 2.17.2 - STEP CHANGES FOR PRESCRIBED TRANSMISSION SERVICES - FORECAST CAPEX
F29: EXPENDITURE
F30: =CONCATENATE("Forecast ($0's, real ", dms_DollarReal, ")") -> Forecast ($0's, real June 2023)
B31: Step change | C31: Description | D31: =CRCP_y1 -> 2018-19 | E31: =CRCP_y2 -> 2019-20 | F31: =CRCP_y4 -> 2021-22 | G31: =CRCP_y5 -> 2022-23 | H31: =FRCP_y1 -> 2023-24 | I31: =FRCP_y2 -> 2024-25 | J31: =FRCP_y3 -> 2025-26 | K31: =FRCP_y4 -> 2026-27 | L31: =FRCP_y5 -> 2027-28
B47: Total | D47: =SUM(D32:D46) -> 0 | E47: 0 | F47: 0 | G47: 0 | H47: 0 | I47: 0 | J47: 0 | K47: 0 | L47: 0
B50: 2.17.5 - CATEGORY SPECIFIC OPEX FOR PRESCRIBED TRANSMISSION SERVICES
F51: EXPENDITURE
F52: =CONCATENATE("Forecast ($0's, real ", dms_DollarReal, ")") -> Forecast ($0's, real June 2023)
B53: Category | C53: Description | D53: =CRCP_y1 -> 2018-19 | E53: =CRCP_y2 -> 2019-20 | F53: =CRCP_y4 -> 2021-22 | G53: =CRCP_y5 -> 2022-23 | H53: =FRCP_y1 -> 2023-24 | I53: =FRCP_y2 -> 2024-25 | J53: =FRCP_y3 -> 2025-26 | K53: =FRCP_y4 -> 2026-27 | L53: =FRCP_y5 -> 2027-28
B54: Debt Raising Costs | C54: Forecast costs associated with debt issuance | F54: 1503864.695 | G54: 1666372.021 | H54: 1746549.456 | I54: 1751858.389 | J54: 1752646.262 | K54: 1746718.724 | L54: 1735266.454
B55: Network Support | C55: Network support payments fund non-network solutions contracted by us as cost effective alternatives to network augmentation, such as local generation or demand management arrangements. | F55: 11614520.85 | G55: 9566668.106
B68: Total | D68: =SUM(D61:D67) -> 0 | E68: 0 | F68: =SUM(F54:F67) -> 13118385.54 | G68: =SUM(G54:G67) -> 11233040.13 | H68: 1746549.456 | I68: 1751858.389 | J68: 1752646.262 | K68: 1746718.724 | L68: 1735266.454
B69: Check | H69: =IF(ROUND(H$68,0)-ROUND('2.16 Opex Summary'!C$20,0)=0,"OK","Error") -> Error | I69: =IF(ROUND(I$68,0)-ROUND('2.16 Opex Summary'!D$20,0)=0,"OK","Error") -> Error | J69: =IF(ROUND(J$68,0)-ROUND('2.16 Opex Summary'!E$20,0)=0,"OK","Error") -> Error | K69: =IF(ROUND(K$68,0)-ROUND('2.16 Opex Summary'!F$20,0)=0,"OK","Error") -> Error | L69: =IF(ROUND(L$68,0)-ROUND('2.16 Opex Summary'!G$20,0)=0,"OK","Error") -> Error

Sheet 3.1 Revenue
B1: =(LOOKUP(dms_Model,dms_Model_List,dms_Worksheet_List)) -> REGULATORY REPORTING STATEMENT
B2: =INDEX(dms_TradingNameFull_List,MATCH(dms_TradingName,dms_TradingName_List)) -> ElectraNet
B3: =IF(SUM(dms_SingleYear_Model)>0,CRY,CONCATENATE(FRCP_y1," to ",dms_MultiYear_FinalYear_Result)) -> 2023-24 to 2027-28
B4: 3.1 REVENUE
B7: 3.1.1 - REVENUE GROUPING BY CHARGEABLE QUANTITY
C8: REVENUE
C9: =CONCATENATE("Forecast ($0's, real ",dms_DollarReal,")") -> Forecast ($0's, real June 2023)
C10: =dms_y1 -> 2021-22 | D10: =dms_y2 -> 2022-23 | E10: =dms_y3 -> 2023-24 | F10: =dms_y4 -> 2024-25 | G10: =dms_y5 -> 2025-26 | H10: =dms_y6 -> 2026-27 | I10: =dms_y7 -> 2027-28
A11: TREV0101 | B11: From Fixed Customer (Exit Point) Charges | C11: 31918693.11 | D11: 32541765.83 | E11: 31979025.21 | F11: 31979025.21 | G11: 31979025.21 | H11: 31979025.21 | I11: 31979025.21
A12: TREV0102 | B12: From Variable Customer (Exit Point) Charges | C12: 0 | D12: 0 | E12: 0 | F12: 0 | G12: 0 | H12: 0 | I12: 0
A13: TREV0103 | B13: From Fixed Generator (Entry Point) Charges | C13: 2256067.958 | D13: 2300107.807 | E13: 2260332.335 | F13: 2260332.335 | G13: 2260332.335 | H13: 2260332.335 | I13: 2260332.335
A14: TREV0104 | B14: From Variable Generator (Entry Point) Charges | C14: 0 | D14: 0 | E14: 0 | F14: 0 | G14: 0 | H14: 0 | I14: 0
A15: TREV0105 | B15: From Fixed Energy Usage Charges (Charge per day basis) | C15: 110335373.3 | D15: 112489188.3 | E15: 110543927.1 | F15: 110543927.1 | G15: 110543927.1 | H15: 110543927.1 | I15: 110543927.1
A16: TREV0106 | B16: From Variable Energy Usage charges (Charge per kWh basis) | C16: 0 | D16: 0 | E16: 0 | F16: 0 | G16: 0 | H16: 0 | I16: 0
A17: TREV0107 | B17: From Energy based Common Service and General Charges | C17: 73589266.23 | D17: 75025774.42 | E17: 73728363.25 | F17: 73728363.25 | G17: 73728363.25 | H17: 73728363.25 | I17: 73728363.25
A18: TREV0108 | B18: From Fixed Demand based Usage Charges | C18: 95483537.87 | D18: 97347435.85 | E18: 95664019.03 | F18: 95664019.03 | G18: 95664019.03 | H18: 95664019.03 | I18: 95664019.03
A19: TREV0109 | B19: From Variable Demand based Usage Charges | C19: 0 | D19: 0 | E19: 0 | F19: 0 | G19: 0 | H19: 0 | I19: 0
A20: TREV0110 | B20: Revenue from other Sources | C20: 27535757.27 | D20: 28073272.35 | E20: 27587804.83 | F20: 27587804.83 | G20: 27587804.83 | H20: 27587804.83 | I20: 27587804.83
A21: TREV01 | B21: Total | C21: =SUM(C11:C20) -> 341118695.7 | D21: 347777544.6 | E21: 341763471.8 | F21: 341763471.8 | G21: 341763471.8 | H21: 341763471.8 | I21: 341763471.8
B24: 3.1.2 - REVENUE GROUPING BY TYPE OF CONNECTED EQUIPMENT
C25: REVENUE
C26: =CONCATENATE("Forecast ($0's, real ",dms_DollarReal,")") -> Forecast ($0's, real June 2023)
C27: =dms_y1 -> 2021-22 | D27: =dms_y2 -> 2022-23 | E27: =dms_y3 -> 2023-24 | F27: =dms_y4 -> 2024-25 | G27: =dms_y5 -> 2025-26 | H27: =dms_y6 -> 2026-27 | I27: =dms_y7 -> 2027-28
A28: TREV0201 | B28: From Other connected transmission networks | C28: 0 | D28: 0 | E28: 0 | F28: 0 | G28: 0 | H28: 0 | I28: 0
A29: TREV0202 | B29: From Distribution networks | C29: 274439259 | D29: 279796483.8 | E29: 274957998.8 | F29: 274957998.8 | G29: 274957998.8 | H29: 274957998.8 | I29: 274957998.8
A30: TREV0203 | B30: From Directly connected end–users | C30: 36887611.88 | D30: 37607680.98 | E30: 36957336.14 | F30: 36957336.14 | G30: 36957336.14 | H30: 36957336.14 | I30: 36957336.14
A31: TREV0204 | B31: From Generators | C31: 2256067.546 | D31: 2300107.386 | E31: 2260331.922 | F31: 2260331.922 | G31: 2260331.922 | H31: 2260331.922 | I31: 2260331.922
A32: TREV0205 | B32: Other revenue | C32: 27535757.3 | D32: 28073272.39 | E32: 27587804.86 | F32: 27587804.86 | G32: 27587804.86 | H32: 27587804.86 | I32: 27587804.86
A33: TREV02 | B33: Total | C33: =SUM(C28:C32) -> 341118695.7 | D33: 347777544.6 | E33: 341763471.8 | F33: 341763471.8 | G33: 341763471.8 | H33: 341763471.8 | I33: 341763471.8
B36: 3.1.3 - REVENUE (penalties) ALLOWED (deducted) THROUGH INCENTIVE SCHEMES
C37: =CONCATENATE("Forecast ($0's, real ",dms_DollarReal,")") -> Forecast ($0's, real June 2023)
C38: =dms_y1 -> 2021-22 | D38: =dms_y2 -> 2022-23 | E38: =dms_y3 -> 2023-24 | F38: =dms_y4 -> 2024-25 | G38: =dms_y5 -> 2025-26 | H38: =dms_y6 -> 2026-27 | I38: =dms_y7 -> 2027-28
A39: TREV0301 | B39: EBSS | C39: 0 | D39: 329503.8112 | E39: -2857352.863 | F39: 1010090.883 | G39: 3395957.213 | H39: 0 | I39: -1415174.168
A40: TREV0302 | B40: STPIS | C40: 7556734.539 | D40: 0 | E40: 0 | F40: 0 | G40: 0 | H40: 0 | I40: 0
A41: TREV0303 | B41: Other | C41: 0 | D41: 0 | E41: -2220598.081 | F41: -2220598.081 | G41: -2220598.081 | H41: -2220598.081 | I41: -2220598.081
A42: TREV03 | B42: Total | C42: =SUM(C39:C41) -> 7556734.539 | D42: 329503.8112 | E42: -5077950.944 | F42: -1210507.198 | G42: 1175359.132 | H42: -2220598.081 | I42: -3635772.249

Sheet 3.2 Operating expenditure
B1: =(LOOKUP(dms_Model,dms_Model_List,dms_Worksheet_List)) -> REGULATORY REPORTING STATEMENT
B2: =INDEX(dms_TradingNameFull_List,MATCH(dms_TradingName,dms_TradingName_List)) -> ElectraNet
B3: =IF(SUM(dms_SingleYear_Model)>0,CRY,CONCATENATE(FRCP_y1," to ",dms_MultiYear_FinalYear_Result)) -> 2023-24 to 2027-28
B4: 3.2 OPERATING EXPENDITURE
B7: 3.2.1 - OPEX CATEGORIES
C8: EXPENDITURE
C9: =CONCATENATE("Forecast ($0's, real ",dms_DollarReal,")") -> Forecast ($0's, real June 2023)
C10: =dms_y1 -> 2021-22 | D10: =dms_y2 -> 2022-23 | E10: =dms_y3 -> 2023-24 | F10: =dms_y4 -> 2024-25 | G10: =dms_y5 -> 2025-26 | H10: =dms_y6 -> 2026-27 | I10: =dms_y7 -> 2027-28
B11: OPEX CATEGORIES AND COST ALLOCATIONS - approved CAM
B12: Maintenance Lines | C12: 20716788.55 | D12: 22239612.97 | E12: 22473508.76 | F12: 23229032.32 | G12: 23272283.58 | H12: 23278445.98 | I12: 23270527.76
B13: Maintenance Comms | C13: 2611647.344 | D13: 3286107.044 | E13: 3320667.294 | F13: 3432302.838 | G13: 3438693.609 | H13: 3439604.16 | I13: 3438434.17
B14: Maintenance Subs | C14: 17383359.96 | D14: 14752639.11 | E14: 14907793.79 | F14: 15408970.07 | G14: 15437660.78 | H14: 15441748.6 | I14: 15436496.06
B15: Maintenance Sec Sys | C15: 2913339.396 | D15: 4802700.965 | E15: 4853211.355 | F15: 5016368.589 | G15: 5025708.809 | H15: 5027039.594 | I15: 5025329.635
B16: Maintenance Easements | C16: 2149931.551 | D16: 2017874.494 | E16: 2145726.769 | F16: 2214277.95 | G16: 2218202.282 | H16: 2218761.416 | I16: 2218042.97
B17: Maintenance Support | C17: 14547070.88 | D17: 13936777.97 | E17: 14667071.44 | F17: 15140531.31 | G17: 15167635.34 | H17: 15171497.1 | I17: 15166535.03
B18: Network Operations | C18: 11976094.39 | D18: 10638877.39 | E18: 10750767.31 | F18: 11112190.98 | G18: 11132881.31 | H18: 11135829.25 | I18: 11132041.37
B19: Asset Manager Support | C19: 11445048.83 | D19: 10575622.21 | E19: 16747413.87 | F19: 17106688.63 | G19: 17127255.94 | H19: 17130186.35 | I19: 17126421
B20: Corporate Support | C20: 3339430.704 | D20: 7231801.727 | E20: 17675321.2 | F20: 17920999.78 | G20: 17935064.08 | H20: 17937067.95 | I20: 17934493.13
B21: Insurance | C21: 6582769.221 | D21: 5508000.838 | E21: 11612375.07 | F21: 11799492.73 | G21: 11810204.61 | H21: 11811730.82 | I21: 11809769.75
B22: Self Insurance | C22: 1635169.671 | D22: 1649161.002 | E22: 1666505.359 | F22: 1722530.615 | G22: 1725737.878 | H22: 1726194.846 | I22: 1725607.676
B23: Network Support | C23: 11614520.85 | D23: 9566668.106 | E23: 0 | F23: 0 | G23: 0 | H23: 0 | I23: 0
B24: Debt Raising Costs | C24: 1503864.695 | D24: 1666372.021 | E24: 1746549.456 | F24: 1751858.389 | G24: 1752646.262 | H24: 1746718.724 | I24: 1735266.454
B46: Total | C46: =SUM(C12:C45) -> 108419036 | D46: 107872215.9 | E46: 122566911.7 | F46: 125855244.2 | G46: 126043974.5 | H46: 126064824.8 | I46: 126018965
B50: Instructions Table 3.2.3 must be completed if there are any proposed changes to the CAM reported in response to Schedule 1, paragraph 1.3.
B52: 3.2.3 - OPEX CATEGORIES - Revised CAM
C53: EXPENDITURE
C54: =CONCATENATE("Forecast ($0's, real ",dms_DollarReal,")") -> Forecast ($0's, real June 2023)
C55: =dms_y1 -> 2021-22 | D55: =dms_y2 -> 2022-23 | E55: =dms_y3 -> 2023-24 | F55: =dms_y4 -> 2024-25 | G55: =dms_y5 -> 2025-26 | H55: =dms_y6 -> 2026-27 | I55: =dms_y7 -> 2027-28
B56: OPEX CATEGORIES AND COST ALLOCATIONS - revised CAM
B91: Total | C91: =SUM(C57:C90) -> 0 | D91: 0 | E91: 0 | F91: 0 | G91: 0 | H91: 0 | I91: 0

Sheet 3.3 Assets (RAB)
B1: =(LOOKUP(dms_Model,dms_Model_List,dms_Worksheet_List)) -> REGULATORY REPORTING STATEMENT
B2: =INDEX(dms_TradingNameFull_List,MATCH(dms_TradingName,dms_TradingName_List)) -> ElectraNet
B3: =IF(SUM(dms_SingleYear_Model)>0,CRY,CONCATENATE(FRCP_y1," to ",dms_MultiYear_FinalYear_Result)) -> 2023-24 to 2027-28
B4: 3.3 ASSETS
B6: There are FOUR tables on this worksheet. Each table has been grouped (and sub-grouped) for ease of navigation. See the Instructions sheet on how to group or ungroup tables.
B8: 3.3.1 - REGULATORY ASSET BASE VALUES
C9: =CONCATENATE("Forecast ($0's, real ",dms_DollarReal,")") -> Forecast ($0's, real June 2023)
C10: =dms_y1 -> 2021-22 | D10: =dms_y2 -> 2022-23 | E10: =dms_y3 -> 2023-24 | F10: =dms_y4 -> 2024-25 | G10: =dms_y5 -> 2025-26 | H10: =dms_y6 -> 2026-27 | I10: =dms_y7 -> 2027-28
B11: For total asset base:
A12: TRAB0101 | B12: Opening value | C12: 2872756146 | D12: 3237423888 | E12: 3593723160 | F12: 3604646891 | G12: 3606268030 | H12: 3594071449 | I12: 3570507107
A13: TRAB0102 | B13: Inflation addition | C13: 70382525.57 | D13: 79316885.26 | E13: 0 | F13: 0 | G13: 0 | H13: 0 | I13: 0
A14: TRAB0103 | B14: Straight line depreciation | C14: -140644791.7 | D14: -137578979.4 | E14: -142736325.1 | F14: -155444734.8 | G14: -153711093.8 | H14: -157455340.3 | I14: -152426038.3
A15: TRAB0105 | B15: Actual additions (recognised in RAB) | C15: 434930008.5 | D15: 428284803.7 | E15: 153660056.1 | F15: 157065873.3 | G15: 141514513.6 | H15: 133890997.8 | I15: 116199130.5
A16: TRAB0106 | B16: Disposals | C16: 0 | D16: -13723437.48 | E16: 0 | F16: 0 | G16: 0 | H16: 0 | I16: 0
A17: TRAB0107 | B17: Closing value | C17: =SUM(C12:C16) -> 3237423888 | D17: 3593723160 | E17: 3604646891 | F17: 3606268030 | G17: 3594071449 | H17: 3570507107 | I17: 3534280199
B20: 3.3.2 - ASSET VALUE ROLL FORWARD
C21: =CONCATENATE("Forecast ($0's, real ",dms_DollarReal,")") -> Forecast ($0's, real June 2023)
C22: =dms_y1 -> 2021-22 | D22: =dms_y2 -> 2022-23 | E22: =dms_y3 -> 2023-24 | F22: =dms_y4 -> 2024-25 | G22: =dms_y5 -> 2025-26 | H22: =dms_y6 -> 2026-27 | I22: =dms_y7 -> 2027-28
B23: For overhead assets:
A24: TRAB0201 | B24: Opening value | C24: 653379554.1 | D24: 907975078.5 | E24: 1158791698 | F24: 1179594816 | G24: 1189275054 | H24: 1176099278 | I24: 1166958378
A25: TRAB0202 | B25: Inflation addition | C25: 16007799.07 | D25: 22245389.42 | E25: 0 | F25: 0 | G25: 0 | H25: 0 | I25: 0
A26: TRAB0203 | B26: Straight line depreciation | C26: -22435790.59 | D26: -23767794.67 | E26: -29330307.62 | F26: -36336590.79 | G26: -36816334.46 | H26: -37386205.14 | I26: -37473827.07
A27: TRAB0205 | B27: Actual additions (recognised in RAB) | C27: 261023515.9 | D27: 254798941.6 | E27: 50133425.15 | F27: 46016828.69 | G27: 23640558.53 | H27: 28245305.1 | I27: 28628268.06
A28: TRAB0206 | B28: Disposals | C28: 0 | D28: 0 | E28: 0 | F28: 0 | G28: 0 | H28: 0 | I28: 0
A29: TRAB0207 | B29: Closing value | C29: =SUM(C24:C28) -> 907975078.5 | D29: 1161251615 | E29: 1179594816 | F29: 1189275054 | G29: 1176099278 | H29: 1166958378 | I29: 1158112819
B30: For underground assets:
A31: TRAB0301 | B31: Opening value | C31: 109524469.8 | D31: 109314473.5 | E31: 107534621.1 | F31: 103796310.4 | G31: 100088636.8 | H31: 96397583.72 | I31: 92792773.93
A32: TRAB0302 | B32: Inflation addition | C32: 2683349.509 | D32: 2678204.601 | E32: 0 | F32: 0 | G32: 0 | H32: 0 | I32: 0
A33: TRAB0303 | B33: Straight line depreciation | C33: -3609035.692 | D33: -3697812.518 | E33: -3908856.846 | F33: -3908856.846 | G33: -3913682.179 | H33: -3916286.327 | I33: -3931860.154
A34: TRAB0305 | B34: Actual additions (recognised in RAB) | C34: 715689.9321 | D34: -760244.4973 | E34: 170546.1694 | F34: 201183.2058 | G34: 222629.1312 | H34: 311476.5368 | I34: 0
A35: TRAB0306 | B35: Disposals | C35: 0 | D35: 0 | E35: 0 | F35: 0 | G35: 0 | H35: 0 | I35: 0
A36: TRAB0307 | B36: Closing value | C36: =SUM(C31:C35) -> 109314473.5 | D36: 107534621.1 | E36: 103796310.4 | F36: 100088636.8 | G36: 96397583.72 | H36: 92792773.93 | I36: 88860913.78
B37: For switchyards, substations
A38: TRAB0401 | B38: Opening value | C38: 1212254324 | D38: 1305467181 | E38: 1391528108 | F38: 1383491164 | G38: 1377711221 | H38: 1369002319 | I38: 1360723455
A39: TRAB0402 | B39: Inflation addition | C39: 29700230.95 | D39: 31983945.94 | E39: 0 | F39: 0 | G39: 0 | H39: 0 | I39: 0
A40: TRAB0403 | B40: Straight line depreciation | C40: -45392380.99 | D40: -46640903.83 | E40: -45920661.19 | F40: -48446101.28 | G40: -49088515.97 | H40: -49991188.48 | I40: -50011558.74
A41: TRAB0405 | B41: Actual additions (recognised in RAB) | C41: 108905007 | D41: 107754336.1 | E41: 37883716.76 | F41: 42666158.14 | G41: 40379613.99 | H41: 41712325.07 | I41: 44809729.45
A42: TRAB0406 | B42: Disposals | C42: 0 | D42: -12257116.51 | E42: 0 | F42: 0 | G42: 0 | H42: 0 | I42: 0
A43: TRAB0407 | B43: Closing value | C43: =SUM(C38:C42) -> 1305467181 | D43: 1386307443 | E43: 1383491164 | F43: 1377711221 | G43: 1369002319 | H43: 1360723455 | I43: 1355521626
B44: For easements:
A45: TRAB0501 | B45: Opening value | C45: 206781950 | D45: 216087826.2 | E45: 230967955.6 | F45: 232521253.3 | G45: 233480192.6 | H45: 236225271 | I45: 239334930.2
A46: TRAB0502 | B46: Inflation addition | C46: 5066157.775 | D46: 5294151.741 | E46: 0 | F46: 0 | G46: 0 | H46: 0 | I46: 0
A47: TRAB0503 | B47: Straight line depreciation | C47: 0 | D47: 0 | E47: 0 | F47: 0 | G47: 0 | H47: 0 | I47: 0
A48: TRAB0505 | B48: Actual additions (recognised in RAB) | C48: 4239718.407 | D48: 9585977.678 | E48: 1553297.746 | F48: 958939.2396 | G48: 2745078.462 | H48: 3109659.196 | I48: 3848011.773
A49: TRAB0506 | B49: Disposals | C49: 0 | D49: 0 | E49: 0 | F49: 0 | G49: 0 | H49: 0 | I49: 0
A50: TRAB0507 | B50: Closing value | C50: =SUM(C45:C49) -> 216087826.2 | D50: 230967955.6 | E50: 232521253.3 | F50: 233480192.6 | G50: 236225271 | H50: 239334930.2 | I50: 243182942
B51: For “other” assets with long lives:
A52: TRAB0601 | B52: Opening value | C52: 620960592.4 | D52: 631169114.1 | E52: 616513263.9 | F52: 613827256.4 | G52: 607510368.4 | H52: 610645828.5 | I52: 604651695.9
A53: TRAB0602 | B53: Inflation addition | C53: 15213534.51 | D53: 15463643.3 | E53: 0 | F53: 0 | G53: 0 | H53: 0 | I53: 0
A54: TRAB0603 | B54: Straight line depreciation | C54: -46157697.37 | D54: -46824304.97 | E54: -44415693.65 | F54: -46541274.31 | G54: -41880558.7 | H54: -45885596.47 | I54: -43213074.32
A55: TRAB0605 | B55: Actual additions (recognised in RAB) | C55: 41152684.51 | D55: 37650245.39 | E55: 41729686.06 | F55: 40224386.34 | G55: 45016018.83 | H55: 39891463.88 | I55: 18967389.24
A56: TRAB0606 | B56: Disposals | C56: 0 | D56: -1466320.971 | E56: 0 | F56: 0 | G56: 0 | H56: 0 | I56: 0
A57: TRAB0607 | B57: Closing value | C57: =SUM(C52:C56) -> 631169114.1 | D57: 635992376.8 | E57: 613827256.4 | F57: 607510368.4 | G57: 610645828.5 | H57: 604651695.9 | I57: 580406010.8
B58: For “other” assets with short lives:
A59: TRAB0701 | B59: Opening value | C59: 69855255.14 | D59: 67410214.54 | E59: 88387512.78 | F59: 91416091.26 | G59: 98202557.44 | H59: 105701169.6 | I59: 106045873.7
A60: TRAB0702 | B60: Inflation addition | C60: 1711453.751 | D60: 1651550.256 | E60: 0 | F60: 0 | G60: 0 | H60: 0 | I60: 0
A61: TRAB0703 | B61: Straight line depreciation | C61: -23049887.1 | D61: -16648163.44 | E61: -19160805.75 | F61: -20211911.54 | G61: -22012002.52 | H61: -20276063.89 | I61: -17795718.07
A62: TRAB0705 | B62: Actual additions (recognised in RAB) | C62: 18893392.76 | D62: 19255547.39 | E62: 22189384.24 | F62: 26998377.72 | G62: 29510614.7 | H62: 20620767.97 | I62: 19945731.94
A63: TRAB0706 | B63: Disposals | C63: 0 | D63: 0 | E63: 0 | F63: 0 | G63: 0 | H63: 0 | I63: 0
A64: TRAB0707 | B64: Closing value | C64: =SUM(C59:C63) -> 67410214.54 | D64: 71669148.74 | E64: 91416091.26 | F64: 98202557.44 | G64: 105701169.6 | H64: 106045873.7 | I64: 108195887.6
B68: 3.3.3 - TOTAL DISAGGREGATED RAB ASSET VALUES
C69: =CONCATENATE("Forecast ($0's, real ",dms_DollarReal,")") -> Forecast ($0's, real June 2023)
C70: =dms_y1 -> 2021-22 | D70: =dms_y2 -> 2022-23 | E70: =dms_y3 -> 2023-24 | F70: =dms_y4 -> 2024-25 | G70: =dms_y5 -> 2025-26 | H70: =dms_y6 -> 2026-27 | I70: =dms_y7 -> 2027-28
A71: TRAB0801 | B71: Overhead transmission assets (wires and towers/poles etc) | C71: 780677316.3 | D71: 1034613347 | E71: 1169193257 | F71: 1184434935 | G71: 1182687166 | H71: 1171528828 | I71: 1162535598
A72: TRAB0802 | B72: Underground transmission assets (cables, ducts etc) | C72: 109419471.6 | D72: 108424547.3 | E72: 105665465.7 | F72: 101942473.6 | G72: 98243110.24 | H72: 94595178.83 | I72: 90826843.85
A73: TRAB0803 | B73: Substations, switchyards, transformers etc with transmission function | C73: 1258860753 | D73: 1345887312 | E73: 1387509636 | F73: 1380601192 | G73: 1373356770 | H73: 1364862887 | I73: 1358122541
A74: TRAB0804 | B74: Easements | C74: 211434888.1 | D74: 223527890.9 | E74: 231744604.5 | F74: 233000722.9 | G74: 234852731.8 | H74: 237780100.6 | I74: 241258936.1
A75: TRAB0805 | B75: Other assets with long lives (please specify) | C75: 626064853.3 | D75: 633580745.5 | E75: 615170260.1 | F75: 610668812.4 | G75: 609078098.4 | H75: 607648762.2 | I75: 592528853.4
A76: TRAB0806 | B76: Other assets with short lives (please specify) | C76: 68632734.84 | D76: 69539681.64 | E76: 89901802.02 | F76: 94809324.35 | G76: 101951863.5 | H76: 105873521.7 | I76: 107120880.6
B79: 3.3.4 - ASSET LIVES
C80: Asset Life
C81: =dms_y1 -> 2021-22 | D81: =dms_y2 -> 2022-23 | E81: =dms_y3 -> 2023-24 | F81: =dms_y4 -> 2024-25 | G81: =dms_y5 -> 2025-26 | H81: =dms_y6 -> 2026-27 | I81: =dms_y7 -> 2027-28
B82: ESTIMATED SERVICE LIFE OF NEW ASSETS
A83: TRAB0901 | B83: Overhead transmission assets (wires and towers/poles etc) | C83: 51.2916679 | D83: 52.23102516 | E83: 52.74275611 | F83: 52.79411938 | G83: 52.80323846 | H83: 52.79887411 | I83: 52.79694277
A84: TRAB0902 | B84: Underground transmission assets (cables, ducts etc) | C84: 40 | D84: 40 | E84: 40 | F84: 40 | G84: 40 | H84: 40 | I84: 40
A85: TRAB0903 | B85: Substations, switchyards, transformers etc with transmission function | C85: 45.03630428 | D85: 45.24553815 | E85: 45.07186362 | F85: 45.20365428 | G85: 45.33382201 | H85: 45.48934181 | I85: 45.6668188
A86: TRAB0904 | B86: Other assets with long lives | C86: 23.36571549 | D86: 23.46098835 | E86: 24.13216276 | F86: 24.04491426 | G86: 24.00606409 | H86: 23.8447132 | I86: 23.83182578
A87: TRAB0905 | B87: Other assets with short lives | C87: 5.70529069 | D87: 5.753971889 | E87: 12.69171946 | F87: 12.16659589 | G87: 11.4075607 | H87: 10.70122764 | I87: 10.49017235
B88: ESTIMATED RESIDUAL SERVICE LIFE
A89: TRAB1001 | B89: Overhead transmission assets (wires and towers/poles etc) | C89: 26.0769106 | D89: 36.76949236 | E89: 39.86845788 | F89: 39.65120206 | G89: 39.36628043 | H89: 38.82225356 | I89: 38.37190628
A90: TRAB1002 | B90: Underground transmission assets (cables, ducts etc) | C90: 28.83848307 | D90: 27.86431643 | E90: 26.88686788 | F90: 25.92162183 | G90: 24.96570243 | H90: 24.01937959 | I90: 23.09809791
A91: TRAB1003 | B91: Substations, switchyards, transformers etc with transmission function | C91: 35.58754914 | D91: 35.45606941 | E91: 35.22475531 | F91: 34.64471842 | G91: 34.13474735 | H91: 33.65210716 | I91: 33.22646093
A92: TRAB1004 | B92: Other assets with long lives | C92: 13.07674717 | D92: 13.17180775 | E92: 13.08023761 | F92: 13.11357947 | G92: 13.27090199 | H92: 13.56088953 | I92: 14.00154971
A93: TRAB1005 | B93: Other assets with short lives | C93: 5.015852986 | D93: 4.556392117 | E93: 4.21115901 | F93: 4.224047758 | G93: 4.651215562 | H93: 4.391760354 | I93: 4.107518971

Sheet 3.4 Operational data
B1: =(LOOKUP(dms_Model,dms_Model_List,dms_Worksheet_List)) -> REGULATORY REPORTING STATEMENT
B2: =INDEX(dms_TradingNameFull_List,MATCH(dms_TradingName,dms_TradingName_List)) -> ElectraNet
B3: =IF(SUM(dms_SingleYear_Model)>0,CRY,CONCATENATE(FRCP_y1," to ",dms_MultiYear_FinalYear_Result)) -> 2023-24 to 2027-28
B4: 3.4 OPERATIONAL DATA
B6: There are THREE tables on this worksheet. Each table has been grouped for ease of navigation. See the Instructions sheet on how to group or ungroup tables.
B8: 3.4.1 - ENERGY DELIVERY
D9: Forecast (0's)
C10: Units | D10: =dms_y1 -> 2021-22 | E10: =dms_y2 -> 2022-23 | F10: =dms_y3 -> 2023-24 | G10: =dms_y4 -> 2024-25 | H10: =dms_y5 -> 2025-26 | I10: =dms_y6 -> 2026-27 | J10: =dms_y7 -> 2027-28
B11: Energy grouping by downstream connection type
A12: TOPED0101 | B12: To Other connected transmission networks | C12: GWh | D12: 2532 | E12: 2410.3 | F12: 2922.5 | G12: 3341.5 | H12: 2793.4 | I12: 3138.6 | J12: 3853.1
A13: TOPED0102 | B13: To Distribution networks | C13: GWh | D13: 9246.193851 | E13: 8853.243851 | F13: 8574.883851 | G13: 8285.643851 | H13: 8259.043851 | I13: 8243.493851 | J13: 8234.723851
A14: TOPED0103 | B14: To Directly connected end–users (330 kV) | C14: GWh
A15: TOPED0104 | B15: To Directly connected end–users (275 kV) | C15: GWh | D15: 1104.390505 | E15: 1104.390505 | F15: 1104.390505 | G15: 1104.390505 | H15: 1104.390505 | I15: 1104.390505 | J15: 1104.390505
A16: TOPED0105 | B16: To Directly connected end–users (220 kV) | C16: GWh
A17: TOPED0106 | B17: To Directly connected end–users (132 kV) | C17: GWh | D17: 1005.965644 | E17: 1005.965644 | F17: 1005.965644 | G17: 1005.965644 | H17: 1005.965644 | I17: 1005.965644 | J17: 1005.965644
A18: TOPED0107 | B18: To Directly connected end–users (110 kV) | C18: GWh
A19: TOPED0108 | B19: To Directly connected end–users (44 kV) | C19: GWh
A20: TOPED0109 | B20: To Directly connected end–users (33 kV) | C20: GWh | D20: 2.6 | E20: 2.6 | F20: 2.6 | G20: 2.6 | H20: 2.6 | I20: 2.6 | J20: 2.6
A21: TOPED0110 | B21: To Directly connected end–users (22 kV) | C21: GWh
A22: TOPED0111 | B22: To Directly connected end–users (11 kV) | C22: GWh
A23: TOPED0112 | B23: To Directly connected end–users (6.6 kV) | C23: GWh
A24: TOPED0113 | B24: Pumping and Power Station Auxillaries | C24: GWh
A25: TOPED01 | B25: Total energy transported | C25: GWh | D25: =SUM(D12:D24) -> 13891.15 | E25: 13376.5 | F25: 13610.34 | G25: 13740.1 | H25: 13165.4 | I25: 13495.05 | J25: 14200.78
B28: 3.4.2 - CONNECTION POINTS
D29: Forecast (0's)
C30: Units | D30: =dms_y1 -> 2021-22 | E30: =dms_y2 -> 2022-23 | F30: =dms_y3 -> 2023-24 | G30: =dms_y4 -> 2024-25 | H30: =dms_y5 -> 2025-26 | I30: =dms_y6 -> 2026-27 | J30: =dms_y7 -> 2027-28
B31: Number of entry points at each transmission voltage level
A32: TOPCP0101 | B32: 500kV | C32: number
A33: TOPCP0102 | B33: 330kV | C33: number | F33: 1 | G33: 1 | H33: 1 | I33: 1 | J33: 1
A34: TOPCP0103 | B34: 275kV | C34: number | D34: 11 | E34: 11 | F34: 11 | G34: 11 | H34: 11 | I34: 11 | J34: 11
A35: TOPCP0104 | B35: 220kV | C35: number
A36: TOPCP0105 | B36: 132 kV | C36: number | D36: 18 | E36: 18 | F36: 18 | G36: 18 | H36: 18 | I36: 18 | J36: 18
A37: TOPCP0106 | B37: 110kV | C37: number
A38: TOPCP0107 | B38: 66 kV | C38: number | D38: 3 | E38: 3 | F38: 3 | G38: 3 | H38: 3 | I38: 3 | J38: 3
A39: TOPCP0108 | B39: 33 kV | C39: number
A40: TOPCP0109 | B40: 22 kV | C40: number
A41: TOPCP0110 | B41: 11 kV | C41: number
A42: TOPCP0111 | B42: 6.6 kV | C42: number
B43: Number of exit points at each transmission voltage level
A44: TOPCP0201 | B44: 500kV | C44: number
A45: TOPCP0202 | B45: 330kV | C45: number | F45: 1 | G45: 1 | H45: 1 | I45: 1 | J45: 1
A46: TOPCP0203 | B46: 275kV | C46: number | D46: 14 | E46: 14 | F46: 14 | G46: 14 | H46: 14 | I46: 14 | J46: 14
A47: TOPCP0204 | B47: 220kV | C47: number
A48: TOPCP0205 | B48: 132 kV | C48: number | D48: 58 | E48: 58 | F48: 58 | G48: 58 | H48: 58 | I48: 58 | J48: 58
A49: TOPCP0206 | B49: 110kV | C49: number
A50: TOPCP0207 | B50: 66 kV | C50: number | D50: 3 | E50: 3 | F50: 3 | G50: 3 | H50: 3 | I50: 3 | J50: 3
A51: TOPCP0208 | B51: 44 kV | C51: number
A52: TOPCP0209 | B52: 33kV | C52: number
A53: TOPCP0210 | B53: 22kV | C53: number
A54: TOPCP0211 | B54: 11kV | C54: number
A55: TOPCP0212 | B55: 6.6kV | C55: number
B59: 3.4.3 - SYSTEM DEMAND
D60: Forecast (0's)
C61: Units | D61: =dms_y1 -> 2021-22 | E61: =dms_y2 -> 2022-23 | F61: =dms_y3 -> 2023-24 | G61: =dms_y4 -> 2024-25 | H61: =dms_y5 -> 2025-26 | I61: =dms_y6 -> 2026-27 | J61: =dms_y7 -> 2027-28
B62: Annual system maximum demand characteristics – MW measure
A63: TOPSD0101 | B63: Transmission System coincident maximum demand | C63: MW
A64: TOPSD0102 | B64: Transmission System coincident weather adjusted maximum demand 10% POE | C64: MW | D64: 3277.32 | E64: 3258.59 | F64: 3260.26 | G64: 3262.77 | H64: 3268.58 | I64: 3262.27 | J64: 3300.24
A65: TOPSD0103 | B65: Transmission System coincident weather adjusted maximum demand 50% POE | C65: MW | D65: 2885.75 | E65: 2880.21 | F65: 2871.51 | G65: 2861.92 | H65: 2871.38 | I65: 2882.47 | J65: 2911.13
A66: TOPSD0104 | B66: Transmission System non-coincident summated maximum demand | C66: MW
A67: TOPSD0105 | B67: Transmission System non-coincident weather adjusted summated maximum demand 10% POE | C67: MW | D67: 3590.240729 | E67: 3630.402522 | F67: 3648.671942 | G67: 3650.017749 | H67: 3636.565891 | I67: 3668.540578 | J67: 3680.730226
A68: TOPSD0106 | B68: Transmission System non-coincident weather adjusted summated maximum demand 50% POE | C68: MW | D68: 3255.027543 | E68: 3290.514692 | F68: 3307.514345 | G68: 3310.532996 | H68: 3301.954288 | I68: 3334.089886 | J68: 3346.429924
B69: Annual system maximum demand characteristics – MVA measure
A70: TOPSD0201 | B70: Transmission System coincident maximum demand | C70: MVA
A71: TOPSD0202 | B71: Transmission System coincident weather adjusted maximum demand 10% POE | C71: MVA | D71: 3338.045945 | E71: 3319.0574 | F71: 3320.5306 | G71: 3323.003857 | H71: 3329.221677 | I71: 3323.688195 | J71: 3362.457111
A72: TOPSD0203 | B72: Transmission System coincident weather adjusted maximum demand 50% POE | C72: MVA | D72: 2940.853894 | E72: 2935.306861 | F72: 2926.227264 | G72: 2916.375614 | H72: 2926.299531 | I72: 2938.458835 | J72: 2967.753031
A73: TOPSD0204 | B73: Transmission System non-coincident summated maximum demand | C73: MVA
A74: TOPSD0205 | B74: Transmission System non-coincident weather adjusted summated maximum demand 10% POE | C74: MVA | D74: 3656.764828 | E74: 3697.769389 | F74: 3716.122896 | G74: 3717.40057 | H74: 3704.034779 | I74: 3737.607559 | J74: 3750.120452
A75: TOPSD0206 | B75: Transmission System non-coincident weather adjusted summated maximum demand 50% POE | C75: MVA | D75: 3317.182855 | E75: 3353.460459 | F75: 3370.539769 | G75: 3373.524661 | H75: 3365.10921 | I75: 3398.850944 | J75: 3411.51977
B76: Power factor
B77: Power factor conversion between MVA and MW
A78: TOPSD0301 | B78: Average overall network power factor conversion between MVA and MW | C78: Factor | D78: 0.9818079363 | E78: 0.9817817553 | F78: 0.9818491056 | G78: 0.9818736722 | H78: 0.9817850287 | I78: 0.9815210719 | J78: 0.981496534
A79: TOPSD0302 | B79: Average power factor conversion for 500 kV lines | C79: Factor
A80: TOPSD0303 | B80: Average power factor conversion for 330 kV lines | C80: Factor
A81: TOPSD0304 | B81: Average power factor conversion for 275 kV lines | C81: Factor | D81: 0.9883509206 | E81: 0.9881495104 | F81: 0.988167125 | G81: 0.9881745354 | H81: 0.9880598844 | I81: 0.9875254942 | J81: 0.9874319969
A82: TOPSD0305 | B82: Average power factor conversion for 220 kV lines | C82: Factor
A83: TOPSD0306 | B83: Average power factor conversion for 132 kV lines | C83: Factor | D83: 0.963334957 | E83: 0.9636664255 | F83: 0.9638585194 | G83: 0.9638248991 | H83: 0.963491698 | I83: 0.9634960609 | J83: 0.9635082296
A84: TOPSD0307 | B84: Average power factor conversion for 110 kV lines | C84: Factor
A85: TOPSD0308 | B85: Average power factor conversion for 88 kV lines | C85: Factor
A86: TOPSD0309 | B86: Average power factor conversion for 66 kV lines | C86: Factor | D86: 0.9964332471 | E86: 0.9964332469 | F86: 0.9964332472 | G86: 0.996433247 | H86: 0.9964332472 | I86: 0.996433247 | J86: 0.9964332471
A87: TOPSD0310 | B87: Average power factor conversion for 33 kV lines | C87: Factor
A88: TOPSD0311 | B88: Average power factor conversion for 22 kV lines | C88: Factor
A89: TOPSD0311 | B89: Average power factor conversion for 11 kV lines | C89: Factor
A90: TOPSD0312 | B90: Average power factor conversion for 6.6 kV lines | C90: Factor

Sheet 3.5 Physical assets
B1: =(LOOKUP(dms_Model,dms_Model_List,dms_Worksheet_List)) -> REGULATORY REPORTING STATEMENT
B2: =INDEX(dms_TradingNameFull_List,MATCH(dms_TradingName,dms_TradingName_List)) -> ElectraNet
B3: =IF(SUM(dms_SingleYear_Model)>0,CRY,CONCATENATE(FRCP_y1," to ",dms_MultiYear_FinalYear_Result)) -> 2023-24 to 2027-28
B4: 3.5 PHYSICAL ASSETS
B6: There is ONE table on this worksheet. It has been sub-grouped for ease of navigation. See the Instructions sheet on how to group or ungroup tables.
B8: 3.5.1 - TRANSMISSION SYSTEM CAPACITIES
D9: Forecast (0's)
C10: Units | D10: =dms_y1 -> 2021-22 | E10: =dms_y2 -> 2022-23 | F10: =dms_y3 -> 2023-24 | G10: =dms_y4 -> 2024-25 | H10: =dms_y5 -> 2025-26 | I10: =dms_y6 -> 2026-27 | J10: =dms_y7 -> 2027-28
B11: Overhead network length of circuit at each voltage
A12: TPA0101 | B12: 500 kV | C12: km | D12: 0 | E12: 0 | F12: 0 | G12: 0 | H12: 0 | I12: 0 | J12: 0
A13: TPA0102 | B13: 330 kV | C13: km | D13: 0 | E13: 0 | F13: 419.9 | G13: 419.9 | H13: 419.9 | I13: 419.9 | J13: 419.9
A14: TPA0103 | B14: 275 kV | C14: km | D14: 2610.3 | E14: 2652.3 | F14: 2652.3 | G14: 2652.3 | H14: 2652.3 | I14: 2652.3 | J14: 2652.3
A15: TPA0104 | B15: 220 kV | C15: km | D15: 0 | E15: 0 | F15: 0 | G15: 0 | H15: 0 | I15: 0 | J15: 0
A16: TPA0105 | B16: 132 kV | C16: km | D16: 2862.8 | E16: 3180.1 | F16: 3180.1 | G16: 3180.1 | H16: 3180.1 | I16: 3180.1 | J16: 3180.1
A17: TPA0106 | B17: 110 kV | C17: km | D17: 0 | E17: 0 | F17: 0 | G17: 0 | H17: 0 | I17: 0 | J17: 0
A18: TPA0107 | B18: 88 kV | C18: km | D18: 0 | E18: 0 | F18: 0 | G18: 0 | H18: 0 | I18: 0 | J18: 0
A19: TPA0108 | B19: 66 kV | C19: km | D19: 15.64 | E19: 15.64 | F19: 15.64 | G19: 15.64 | H19: 15.64 | I19: 15.64 | J19: 15.64
A20: TPA0109 | B20: 33 kV | C20: km | D20: 0 | E20: 0 | F20: 0 | G20: 0 | H20: 0 | I20: 0 | J20: 0
A21: TPA0109 | B21: 22 kV | C21: km | D21: 0 | E21: 0 | F21: 0 | G21: 0 | H21: 0 | I21: 0 | J21: 0
A22: TPA0109 | B22: 11 kV | C22: km | D22: 0 | E22: 0 | F22: 0 | G22: 0 | H22: 0 | I22: 0 | J22: 0
A23: TPA01 | B23: Total | D23: =SUM(D12:D22) -> 5488.74 | E23: 5848.04 | F23: 6267.94 | G23: 6267.94 | H23: 6267.94 | I23: 6267.94 | J23: 6267.94
B25: Underground cable circuit length at each voltage
A26: TPA0201 | B26: 500 kV | C26: km | D26: 0 | E26: 0 | F26: 0 | G26: 0 | H26: 0 | I26: 0 | J26: 0
A27: TPA0202 | B27: 330 kV | C27: km | D27: 0 | E27: 0 | F27: 0 | G27: 0 | H27: 0 | I27: 0 | J27: 0
A28: TPA0203 | B28: 275 kV | C28: km | D28: 26.28 | E28: 26.28 | F28: 26.28 | G28: 26.28 | H28: 26.28 | I28: 26.28 | J28: 26.28
A29: TPA0204 | B29: 220 kV | C29: km | D29: 0 | E29: 0 | F29: 0 | G29: 0 | H29: 0 | I29: 0 | J29: 0
A30: TPA0205 | B30: 132 kV | C30: km | D30: 0 | E30: 0 | F30: 0 | G30: 0 | H30: 0 | I30: 0 | J30: 0
A31: TPA0206 | B31: 110 kV | C31: km | D31: 0 | E31: 0 | F31: 0 | G31: 0 | H31: 0 | I31: 0 | J31: 0
A32: TPA0207 | B32: 88 kV | C32: km | D32: 0 | E32: 0 | F32: 0 | G32: 0 | H32: 0 | I32: 0 | J32: 0
A33: TPA0208 | B33: 66 kV | C33: km | D33: 0.919 | E33: 0.919 | F33: 0.919 | G33: 0.919 | H33: 0.919 | I33: 0.919 | J33: 0.919
A34: TPA0209 | B34: 33 kV | C34: km | D34: 0 | E34: 0 | F34: 0 | G34: 0 | H34: 0 | I34: 0 | J34: 0
A35: TPA0210 | B35: 22 kV | C35: km | D35: 0 | E35: 0 | F35: 0 | G35: 0 | H35: 0 | I35: 0 | J35: 0
A36: TPA0211 | B36: 11 kV | C36: km | D36: 0 | E36: 0 | F36: 0 | G36: 0 | H36: 0 | I36: 0 | J36: 0
A37: TPA02 | B37: Total | D37: =SUM(D26:D36) -> 27.199 | E37: 27.199 | F37: 27.199 | G37: 27.199 | H37: 27.199 | I37: 27.199 | J37: 27.199
B39: Estimated overhead network weighted average MVA capacity by voltage class
A40: TPA0301 | B40: 500 kV | C40: MVA | D40: 0 | E40: 0 | F40: 0 | G40: 0 | H40: 0 | I40: 0 | J40: 0
A41: TPA0302 | B41: 330 kV | C41: MVA | D41: 0 | E41: 0 | F41: 814 | G41: 814 | H41: 814 | I41: 814 | J41: 814
A42: TPA0303 | B42: 275 kV | C42: MVA | D42: 572.5475315 | E42: 572.5475315 | F42: 574.5570944 | G42: 574.5570944 | H42: 574.5570944 | I42: 574.5570944 | J42: 574.5570944
A43: TPA0304 | B43: 220 kV | C43: MVA | D43: 0 | E43: 0 | F43: 0 | G43: 0 | H43: 0 | I43: 0 | J43: 0
A44: TPA0305 | B44: 132 kV | C44: MVA | D44: 119.4502756 | E44: 119.4502756 | F44: 153.7922393 | G44: 153.7922393 | H44: 153.7922393 | I44: 153.7922393 | J44: 153.7922393
A45: TPA0306 | B45: 110 kV | C45: MVA | D45: 0 | E45: 0 | F45: 0 | G45: 0 | H45: 0 | I45: 0 | J45: 0
A46: TPA0307 | B46: 88 kV | C46: MVA | D46: 0 | E46: 0 | F46: 0 | G46: 0 | H46: 0 | I46: 0 | J46: 0
A47: TPA0308 | B47: 66 kV | C47: MVA | D47: 139.409378 | E47: 139.409378 | F47: 139 | G47: 139 | H47: 139 | I47: 139 | J47: 139
A48: TPA0309 | B48: 33 kV | C48: MVA | D48: 0 | E48: 0 | F48: 0 | G48: 0 | H48: 0 | I48: 0 | J48: 0
A49: TPA0310 | B49: 22 kV | C49: MVA | D49: 0 | E49: 0 | F49: 0 | G49: 0 | H49: 0 | I49: 0 | J49: 0
A50: TPA0311 | B50: 11 kV | C50: MVA | D50: 0 | E50: 0 | F50: 0 | G50: 0 | H50: 0 | I50: 0 | J50: 0
B52: Estimated underground network weighted average MVA capacity by voltage class
A53: TPA0401 | B53: 500 kV | C53: MVA | D53: 0 | E53: 0 | F53: 0 | G53: 0 | H53: 0 | I53: 0 | J53: 0
A54: TPA0402 | B54: 330 kV | C54: MVA | D54: 0 | E54: 0 | F54: 0 | G54: 0 | H54: 0 | I54: 0 | J54: 0
A55: TPA0403 | B55: 275 kV | C55: MVA | D55: 660 | E55: 660 | F55: 660 | G55: 660 | H55: 660 | I55: 660 | J55: 660
A56: TPA0404 | B56: 220 kV | C56: MVA | D56: 0 | E56: 0 | F56: 0 | G56: 0 | H56: 0 | I56: 0 | J56: 0
A57: TPA0405 | B57: 132 kV | C57: MVA | D57: 0 | E57: 0 | F57: 0 | G57: 0 | H57: 0 | I57: 0 | J57: 0
A58: TPA0406 | B58: 110 kV | C58: MVA | D58: 0 | E58: 0 | F58: 0 | G58: 0 | H58: 0 | I58: 0 | J58: 0
A59: TPA0407 | B59: 88 kV | C59: MVA | D59: 0 | E59: 0 | F59: 0 | G59: 0 | H59: 0 | I59: 0 | J59: 0
A60: TPA0408 | B60: 66 kV | C60: MVA | D60: 0 | E60: 0 | F60: 0 | G60: 0 | H60: 0 | I60: 0 | J60: 0
A61: TPA0409 | B61: 33 kV | C61: MVA | D61: 0 | E61: 0 | F61: 0 | G61: 0 | H61: 0 | I61: 0 | J61: 0
A62: TPA0410 | B62: 22 kV | C62: MVA | D62: 0 | E62: 0 | F62: 0 | G62: 0 | H62: 0 | I62: 0 | J62: 0
A63: TPA0411 | B63: 11 kV | C63: MVA | D63: 0 | E63: 0 | F63: 0 | G63: 0 | H63: 0 | I63: 0 | J63: 0
B65: Installed transmission system transformer capacity
A66: TPA0501 | B66: Transmission substations (eg 500 kV to 330 kV) | C66: MVA | D66: 4358 | E66: 4358 | F66: 5558 | G66: 5558 | H66: 5558 | I66: 5558 | J66: 5558
A67: TPA0502 | B67: Terminal points to DNSP systems | C67: MVA | D67: 7481.5 | E67: 7476.5 | F67: 7476.5 | G67: 7476.5 | H67: 7481.5 | I67: 7481.5 | J67: 7481.5
A68: TPA0503 | B68: Transformer capacity for directly connected end–users owned by the TNSP | C68: MVA | D68: 365 | E68: 365 | F68: 365 | G68: 365 | H68: 365 | I68: 365 | J68: 365
A69: TPA0504 | B69: Transformer capacity for directly connected end–users owned by the end–user | C69: MVA | D69: 440 | E69: 440 | F69: 440 | G69: 440 | H69: 440 | I69: 440 | J69: 440
A70: TPA0505 | B70: Interconnector capacity | C70: MVA | D70: 870 | E70: 970 | F70: 1520 | G70: 1520 | H70: 1520 | I70: 1520 | J70: 1520
A71: TPA0506 | B71: Other | C71: MVA | D71: 0 | E71: 0 | F71: 0 | G71: 0 | H71: 0 | I71: 0 | J71: 0
B73: Cold spare capacity
A74: TPA06 | B74: Cold spare capacity included in 3.5.1.5 | C74: MVA | D74: 876.5 | E74: 876.5 | F74: 876.5 | G74: 876.5 | H74: 876.5 | I74: 876.5 | J74: 876.5

Sheet 3.7 Operating environment
B1: =(LOOKUP(dms_Model,dms_Model_List,dms_Worksheet_List)) -> REGULATORY REPORTING STATEMENT
B2: =INDEX(dms_TradingNameFull_List,MATCH(dms_TradingName,dms_TradingName_List)) -> ElectraNet
B3: =IF(SUM(dms_SingleYear_Model)>0,CRY,CONCATENATE(FRCP_y1," to ",dms_MultiYear_FinalYear_Result)) -> 2023-24 to 2027-28
B4: 3.7 OPERATING ENVIRONMENT FACTORS
A7: TEF01 | B7: 3.7.1 - TERRAIN FACTORS
D8: Forecast (0's)
C9: Units | D9: =dms_y1 -> 2021-22 | E9: =dms_y2 -> 2022-23 | F9: =dms_y3 -> 2023-24 | G9: =dms_y4 -> 2024-25 | H9: =dms_y5 -> 2025-26 | I9: =dms_y6 -> 2026-27 | J9: =dms_y7 -> 2027-28
A10: TEF0101 | B10: Total number of vegetation maintenance spans | C10: Number of spans | D10: 1622
A11: TEF0102 | B11: Average vegetation maintenance span cycle | C11: Years | D11: 1.367206235
A12: TEF0103 | B12: Average number of trees per vegetation maintenance span | C12: Trees | D12: 14.2
A13: TEF0104 | B13: Average number of defects per vegetation maintenance span | C13: Defects | D13: 1.79
A14: TEF0105 | B14: Tropical proportion | C14: Number of spans | D14: 0
A15: TEF0106 | B15: Standard vehicle access | C15: km | D15: 3415.37
A16: TEF0107 | B16: Altitude | C16: km | D16: 10.2
A17: TEF0108 | B17: Bushfire risk | C17: Number of spans | D17: 1352
A19: TEF02 | B19: 3.7.2 - NETWORK CHARACTERISTICS
D20: Forecast (0's)
C21: Units | D21: =dms_y1 -> 2021-22 | E21: =dms_y2 -> 2022-23 | F21: =dms_y3 -> 2023-24 | G21: =dms_y4 -> 2024-25 | H21: =dms_y5 -> 2025-26 | I21: =dms_y6 -> 2026-27 | J21: =dms_y7 -> 2027-28
A22: TEF0201 | B22: Route line length | C22: km | D22: 4527.7 | E22: 4580.9 | F22: 4811.1 | G22: 4811.1 | H22: 4811.1 | I22: 4811.1 | J22: 4811.1
A23: TEF0202 | B23: Variability of dispatch | C23: % | D23: 0.6099089627 | E23: 0.604505125 | F23: 0.743572684 | G23: 0.9861745192 | H23: 0.9491702777 | I23: 0.9428286724 | J23: 0.9106153677
A24: TEF0203 | B24: Concentrated load distance | C24: km | D24: 45 | E24: 45 | F24: 288 | G24: 288 | H24: 288 | I24: 124 | J24: 124
A25: TEF0204 | B25: Total number of spans | C25: number | D25: 13344 | E25: 13317 | F25: 13700 | G25: 13700 | H25: 13700 | I25: 13700 | J25: 13700

Sheet 5.4 MD & Utilisation - Spatial
B1: =(LOOKUP(dms_Model,dms_Model_List,dms_Worksheet_List)) -> REGULATORY REPORTING STATEMENT
B2: =INDEX(dms_TradingNameFull_List,MATCH(dms_TradingName,dms_TradingName_List)) -> ElectraNet
B3: =IF(SUM(dms_SingleYear_Model)>0,CRY,CONCATENATE(FRCP_y1," to ",dms_MultiYear_FinalYear_Result)) -> 2023-24 to 2027-28
B4: 5.4 MAXIMUM DEMAND AND UTILISATION AT SPATIAL LEVEL
B6: There is ONE table on this worksheet. It has been sub-grouped into blocks of approximately 500 rows for ease of navigation. See the Instructions sheet on how to group or ungroup data.
B8: 5.4.1 - NON-COINCIDENT & COINCIDENT MAXIMUM DEMAND
B9: CONNECTION POINT | C9: FORECASTING ELEMENTS | D9: UNIT | E9: MAX DEMAND | G9: TNSP NAME | H9: SERVICE | I9: SERVICE SUBCATEGORY | J9: DATA TYPE | K9: DATA TYPE SUBCATEGORY | L9: LOCATION | M9: LOCATION SUBCATEGORY | N9: MEASUREMENT | O9: DENOMINATION | Q9: =dms_y1 -> 2021-22 | R9: =dms_y2 -> 2022-23 | S9: =dms_y3 -> 2023-24 | T9: =dms_y4 -> 2024-25 | U9: =dms_y5 -> 2025-26 | V9: =dms_y6 -> 2026-27 | W9: =dms_y7 -> 2027-28
B10: ACR | C10: CONNECTION POINT RATING | D10: MVA | E10: Non-coincident | G10: TNSP NAME | H10: DEMAND FORECASTING | I10: NON-COINCIDENT MAXIMUM DEMAND | J10: DESCRIPTOR METRIC | K10: CONNECTION POINT RATING | L10: CONNECTION POINT | M10: =B10 -> ACR | N10: RATING | O10: MVA | Q10: 600 | R10: 600 | S10: 600 | T10: 600 | U10: 600 | V10: 600 | W10: 600
E11: Coincident | G11: TNSP NAME | H11: DEMAND FORECASTING | I11: COINCIDENT MAXIMUM DEMAND | J11: DESCRIPTOR METRIC | K11: CONNECTION POINT RATING | L11: CONNECTION POINT | M11: =M10 -> ACR | N11: RATING | O11: MVA | Q11: 600 | R11: 600 | S11: 600 | T11: 600 | U11: 600 | V11: 600 | W11: 600
C12: WINTER/SUMMER PEAKING | E12: Non-coincident | G12: TNSP NAME | H12: DEMAND FORECASTING | I12: NON-COINCIDENT MAXIMUM DEMAND | J12: DESCRIPTOR METRIC | K12: WINTER/SUMMER PEAKING | L12: CONNECTION POINT | M12: =#REF! ->  | N12: WINTER/SUMMER | O12: WINTER/SUMMER | Q12: Summer | R12: Summer | S12: Summer | T12: Summer | U12: Summer | V12: Summer | W12: Summer
E13: Coincident | G13: TNSP NAME | H13: DEMAND FORECASTING | I13: COINCIDENT MAXIMUM DEMAND | J13: DESCRIPTOR METRIC | K13: WINTER/SUMMER PEAKING | L13: CONNECTION POINT | M13: =M12 ->  | N13: WINTER/SUMMER | O13: WINTER/SUMMER | Q13: Summer | R13: Summer | S13: Summer | T13: Summer | U13: Summer | V13: Summer | W13: Summer
C14: ADJUSTMENTS - EMBEDDED GENERATION | D14: MW | E14: Non-coincident | G14: TNSP NAME | H14: DEMAND FORECASTING | I14: NON-COINCIDENT MAXIMUM DEMAND | J14: DESCRIPTOR METRIC | K14: ADJUSTMENTS - EMBEDDED GENERATION | L14: CONNECTION POINT | N14: GENERATED LOAD | O14: MW | Q14: 3.192077721 | R14: 3.192077721 | S14: 3.192077721 | T14: 3.192077721 | U14: 3.192077721 | V14: 3.192077721 | W14: 3.192077721
E15: Coincident | G15: TNSP NAME | H15: DEMAND FORECASTING | I15: COINCIDENT MAXIMUM DEMAND | J15: DESCRIPTOR METRIC | K15: ADJUSTMENTS - EMBEDDED GENERATION | L15: CONNECTION POINT | N15: GENERATED LOAD | O15: MW | Q15: 1.48840806 | R15: 1.48840806 | S15: 1.48840806 | T15: 1.48840806 | U15: 1.48840806 | V15: 1.48840806 | W15: 1.48840806
C16: WEATHER CORRECTED MD 10% POE | D16: MW | E16: Non-coincident | G16: TNSP NAME | H16: DEMAND FORECASTING | I16: NON-COINCIDENT MAXIMUM DEMAND | J16: DESCRIPTOR METRIC | K16: WEATHER CORRECTED MD 10% POE | L16: CONNECTION POINT | N16: MAXIMUM DEMAND | O16: MW | Q16: 346.5388614 | R16: 349.4409667 | S16: 351.5966731 | T16: 352.6216267 | U16: 352.3097284 | V16: 353.8509065 | W16: 355.4020133
E17: Coincident | G17: TNSP NAME | H17: DEMAND FORECASTING | I17: COINCIDENT MAXIMUM DEMAND | J17: DESCRIPTOR METRIC | K17: WEATHER CORRECTED MD 10% POE | L17: CONNECTION POINT | N17: MAXIMUM DEMAND | O17: MW | Q17: 346.5388614 | R17: 349.4409667 | S17: 351.5966731 | T17: 352.6216267 | U17: 352.3097284 | V17: 353.8509065 | W17: 355.4020133
C18: WEATHER CORRECTED MD 10% POE | D18: MVA | E18: Non-coincident | G18: TNSP NAME | H18: DEMAND FORECASTING | I18: NON-COINCIDENT MAXIMUM DEMAND | J18: DESCRIPTOR METRIC | K18: WEATHER CORRECTED MD 10% POE | L18: CONNECTION POINT | N18: MAXIMUM DEMAND | O18: MVA | Q18: 349.3984219 | R18: 352.3228496 | S18: 354.4952334 | T18: 355.5277813 | U18: 355.2124375 | V18: 356.7658681 | W18: 358.329342
E19: Coincident | G19: TNSP NAME | H19: DEMAND FORECASTING | I19: COINCIDENT MAXIMUM DEMAND | J19: DESCRIPTOR METRIC | K19: WEATHER CORRECTED MD 10% POE | L19: CONNECTION POINT | N19: MAXIMUM DEMAND | O19: MVA | Q19: 349.3984219 | R19: 352.3228496 | S19: 354.4952334 | T19: 355.5277813 | U19: 355.2124375 | V19: 356.7658681 | W19: 358.329342
C20: WEATHER CORRECTED MD 50% POE | D20: MW | E20: Non-coincident | G20: TNSP NAME | H20: DEMAND FORECASTING | I20: NON-COINCIDENT MAXIMUM DEMAND | J20: DESCRIPTOR METRIC | K20: WEATHER CORRECTED MD 50% POE | L20: CONNECTION POINT | N20: MAXIMUM DEMAND | O20: MW | Q20: 306.1420445 | R20: 308.4604995 | S20: 310.4506068 | T20: 311.6289121 | U20: 311.8379469 | V20: 313.3786561 | W20: 314.9504223
E21: Coincident | G21: TNSP NAME | H21: DEMAND FORECASTING | I21: COINCIDENT MAXIMUM DEMAND | J21: DESCRIPTOR METRIC | K21: WEATHER CORRECTED MD 50% POE | L21: CONNECTION POINT | N21: MAXIMUM DEMAND | O21: MW | Q21: 306.1420445 | R21: 308.4604995 | S21: 310.4506068 | T21: 311.6289121 | U21: 311.8379469 | V21: 313.3786561 | W21: 314.9504223
C22: WEATHER CORRECTED MD 50% POE | D22: MVA | E22: Non-coincident | G22: TNSP NAME | H22: DEMAND FORECASTING | I22: NON-COINCIDENT MAXIMUM DEMAND | J22: DESCRIPTOR METRIC | K22: WEATHER CORRECTED MD 50% POE | L22: CONNECTION POINT | N22: MAXIMUM DEMAND | O22: MVA | Q22: 308.6716637 | R22: 311.0078239 | S22: 313.0136681 | T22: 314.2010668 | U22: 314.4111964 | V22: 315.9637585 | W22: 317.5476051
E23: Coincident | G23: TNSP NAME | H23: DEMAND FORECASTING | I23: COINCIDENT MAXIMUM DEMAND | J23: DESCRIPTOR METRIC | K23: WEATHER CORRECTED MD 50% POE | L23: CONNECTION POINT | N23: MAXIMUM DEMAND | O23: MVA | Q23: 308.6716637 | R23: 311.0078239 | S23: 313.0136681 | T23: 314.2010668 | U23: 314.4111964 | V23: 315.9637585 | W23: 317.5476051
B24: Angas Creek | C24: CONNECTION POINT RATING | D24: MVA | E24: Non-coincident | G24: TNSP NAME | H24: DEMAND FORECASTING | I24: NON-COINCIDENT MAXIMUM DEMAND | J24: DESCRIPTOR METRIC | K24: CONNECTION POINT RATING | L24: CONNECTION POINT | M24: =B24 -> Angas Creek | N24: RATING | O24: MVA | Q24: 56.6 | R24: 56.6 | S24: 56.6 | T24: 56.6 | U24: 56.6 | V24: 56.6 | W24: 56.6
E25: Coincident | G25: TNSP NAME | H25: DEMAND FORECASTING | I25: COINCIDENT MAXIMUM DEMAND | J25: DESCRIPTOR METRIC | K25: CONNECTION POINT RATING | L25: CONNECTION POINT | M25: =M24 -> Angas Creek | N25: RATING | O25: MVA | Q25: 56.6 | R25: 56.6 | S25: 56.6 | T25: 56.6 | U25: 56.6 | V25: 56.6 | W25: 56.6
C26: WINTER/SUMMER PEAKING | E26: Non-coincident | G26: TNSP NAME | H26: DEMAND FORECASTING | I26: NON-COINCIDENT MAXIMUM DEMAND | J26: DESCRIPTOR METRIC | K26: WINTER/SUMMER PEAKING | L26: CONNECTION POINT | M26: =#REF! ->  | N26: WINTER/SUMMER | O26: WINTER/SUMMER | Q26: Summer | R26: Summer | S26: Summer | T26: Summer | U26: Summer | V26: Summer | W26: Summer
E27: Coincident | G27: TNSP NAME | H27: DEMAND FORECASTING | I27: COINCIDENT MAXIMUM DEMAND | J27: DESCRIPTOR METRIC | K27: WINTER/SUMMER PEAKING | L27: CONNECTION POINT | M27: =M26 ->  | N27: WINTER/SUMMER | O27: WINTER/SUMMER | Q27: Summer | R27: Summer | S27: Summer | T27: Summer | U27: Summer | V27: Summer | W27: Summer
C28: ADJUSTMENTS - EMBEDDED GENERATION | D28: MW | E28: Non-coincident | G28: TNSP NAME | H28: DEMAND FORECASTING | I28: NON-COINCIDENT MAXIMUM DEMAND | J28: DESCRIPTOR METRIC | K28: ADJUSTMENTS - EMBEDDED GENERATION | L28: CONNECTION POINT | N28: GENERATED LOAD | O28: MW | Q28: 0 | R28: 0 | S28: 0 | T28: 0 | U28: 0 | V28: 0 | W28: 0
E29: Coincident | G29: TNSP NAME | H29: DEMAND FORECASTING | I29: COINCIDENT MAXIMUM DEMAND | J29: DESCRIPTOR METRIC | K29: ADJUSTMENTS - EMBEDDED GENERATION | L29: CONNECTION POINT | N29: GENERATED LOAD | O29: MW | Q29: 0 | R29: 0 | S29: 0 | T29: 0 | U29: 0 | V29: 0 | W29: 0
C30: WEATHER CORRECTED MD 10% POE | D30: MW | E30: Non-coincident | G30: TNSP NAME | H30: DEMAND FORECASTING | I30: NON-COINCIDENT MAXIMUM DEMAND | J30: DESCRIPTOR METRIC | K30: WEATHER CORRECTED MD 10% POE | L30: CONNECTION POINT | N30: MAXIMUM DEMAND | O30: MW | Q30: 20.2882151 | R30: 20.53684439 | S30: 20.71979228 | T30: 20.82579703 | U30: 20.8535994 | V30: 20.98219436 | W30: 21.10831135
E31: Coincident | G31: TNSP NAME | H31: DEMAND FORECASTING | I31: COINCIDENT MAXIMUM DEMAND | J31: DESCRIPTOR METRIC | K31: WEATHER CORRECTED MD 10% POE | L31: CONNECTION POINT | N31: MAXIMUM DEMAND | O31: MW | Q31: 20.2882151 | R31: 20.53684439 | S31: 20.71979228 | T31: 20.82579703 | U31: 20.8535994 | V31: 20.98219436 | W31: 21.10831135
C32: WEATHER CORRECTED MD 10% POE | D32: MVA | E32: Non-coincident | G32: TNSP NAME | H32: DEMAND FORECASTING | I32: NON-COINCIDENT MAXIMUM DEMAND | J32: DESCRIPTOR METRIC | K32: WEATHER CORRECTED MD 10% POE | L32: CONNECTION POINT | N32: MAXIMUM DEMAND | O32: MVA | Q32: 20.76846321 | R32: 21.02297788 | S32: 21.21025638 | T32: 21.31877039 | U32: 21.34723089 | V32: 21.47886986 | W32: 21.60797219
E33: Coincident | G33: TNSP NAME | H33: DEMAND FORECASTING | I33: COINCIDENT MAXIMUM DEMAND | J33: DESCRIPTOR METRIC | K33: WEATHER CORRECTED MD 10% POE | L33: CONNECTION POINT | N33: MAXIMUM DEMAND | O33: MVA | Q33: 20.76846321 | R33: 21.02297788 | S33: 21.21025638 | T33: 21.31877039 | U33: 21.34723089 | V33: 21.47886986 | W33: 21.60797219
C34: WEATHER CORRECTED MD 50% POE | D34: MW | E34: Non-coincident | G34: TNSP NAME | H34: DEMAND FORECASTING | I34: NON-COINCIDENT MAXIMUM DEMAND | J34: DESCRIPTOR METRIC | K34: WEATHER CORRECTED MD 50% POE | L34: CONNECTION POINT | N34: MAXIMUM DEMAND | O34: MW | Q34: 18.27582919 | R34: 18.51141102 | S34: 18.70032935 | T34: 18.83295487 | U34: 18.90715122 | V34: 19.05486222 | W34: 19.19954497
E35: Coincident | G35: TNSP NAME | H35: DEMAND FORECASTING | I35: COINCIDENT MAXIMUM DEMAND | J35: DESCRIPTOR METRIC | K35: WEATHER CORRECTED MD 50% POE | L35: CONNECTION POINT | N35: MAXIMUM DEMAND | O35: MW | Q35: 18.27582919 | R35: 18.51141102 | S35: 18.70032935 | T35: 18.83295487 | U35: 18.90715122 | V35: 19.05486222 | W35: 19.19954497
C36: WEATHER CORRECTED MD 50% POE | D36: MVA | E36: Non-coincident | G36: TNSP NAME | H36: DEMAND FORECASTING | I36: NON-COINCIDENT MAXIMUM DEMAND | J36: DESCRIPTOR METRIC | K36: WEATHER CORRECTED MD 50% POE | L36: CONNECTION POINT | N36: MAXIMUM DEMAND | O36: MVA | Q36: 18.70844154 | R36: 18.9495999 | S36: 19.14299016 | T36: 19.2787551 | U36: 19.35470778 | V36: 19.50591528 | W36: 19.65402287
E37: Coincident | G37: TNSP NAME | H37: DEMAND FORECASTING | I37: COINCIDENT MAXIMUM DEMAND | J37: DESCRIPTOR METRIC | K37: WEATHER CORRECTED MD 50% POE | L37: CONNECTION POINT | N37: MAXIMUM DEMAND | O37: MVA | Q37: 18.70844154 | R37: 18.9495999 | S37: 19.14299016 | T37: 19.2787551 | U37: 19.35470778 | V37: 19.50591528 | W37: 19.65402287
B38: Ardrossan West | C38: CONNECTION POINT RATING | D38: MVA | E38: Non-coincident | Q38: 50 | R38: 50 | S38: 50 | T38: 50 | U38: 50 | V38: 50 | W38: 50
E39: Coincident | Q39: 50 | R39: 50 | S39: 50 | T39: 50 | U39: 50 | V39: 50 | W39: 50
C40: WINTER/SUMMER PEAKING | E40: Non-coincident | Q40: Summer | R40: Summer | S40: Summer | T40: Summer | U40: Summer | V40: Summer | W40: Summer
E41: Coincident | Q41: Summer | R41: Summer | S41: Summer | T41: Summer | U41: Summer | V41: Summer | W41: Summer
C42: ADJUSTMENTS - EMBEDDED GENERATION | D42: MW | E42: Non-coincident | Q42: 0 | R42: 0 | S42: 0 | T42: 0 | U42: 0 | V42: 0 | W42: 0
E43: Coincident | Q43: 0 | R43: 0 | S43: 0 | T43: 0 | U43: 0 | V43: 0 | W43: 0
C44: WEATHER CORRECTED MD 10% POE | D44: MW | E44: Non-coincident | Q44: 10.55152162 | R44: 10.58294929 | S44: 10.58160413 | T44: 10.54247038 | U44: 10.46563952 | V44: 10.44117063 | W44: 10.41684939
E45: Coincident | Q45: 10.55152162 | R45: 10.58294929 | S45: 10.58160413 | T45: 10.54247038 | U45: 10.46563952 | V45: 10.44117063 | W45: 10.41684939
C46: WEATHER CORRECTED MD 10% POE | D46: MVA | E46: Non-coincident | Q46: 10.62632054 | R46: 10.657971 | S46: 10.6566163 | T46: 10.61720514 | U46: 10.53982963 | V46: 10.51518728 | W46: 10.49069363
E47: Coincident | Q47: 10.62632054 | R47: 10.657971 | S47: 10.6566163 | T47: 10.61720514 | U47: 10.53982963 | V47: 10.51518728 | W47: 10.49069363
C48: WEATHER CORRECTED MD 50% POE | D48: MW | E48: Non-coincident | Q48: 9.405533894 | R48: 9.44983748 | S48: 9.471189659 | T48: 9.46507618 | U48: 9.430784145 | V48: 9.434303971 | W48: 9.437252488
E49: Coincident | Q49: 9.405533894 | R49: 9.44983748 | S49: 9.471189659 | T49: 9.46507618 | U49: 9.430784145 | V49: 9.434303971 | W49: 9.437252488
C50: WEATHER CORRECTED MD 50% POE | D50: MVA | E50: Non-coincident | Q50: 9.472208995 | R50: 9.516826646 | S50: 9.538330189 | T50: 9.532173372 | U50: 9.497638244 | V50: 9.501183022 | W50: 9.50415244
E51: Coincident | Q51: 9.472208995 | R51: 9.516826646 | S51: 9.538330189 | T51: 9.532173372 | U51: 9.497638244 | V51: 9.501183022 | W51: 9.50415244
B52: Baroota | C52: CONNECTION POINT RATING | D52: MVA | E52: Non-coincident | Q52: 11.8 | R52: 11.8 | S52: 11.8 | T52: 11.8 | U52: 11.8 | V52: 11.8 | W52: 11.8
E53: Coincident | Q53: 11.8 | R53: 11.8 | S53: 11.8 | T53: 11.8 | U53: 11.8 | V53: 11.8 | W53: 11.8
C54: WINTER/SUMMER PEAKING | E54: Non-coincident | Q54: Summer | R54: Summer | S54: Summer | T54: Summer | U54: Summer | V54: Summer | W54: Summer
E55: Coincident | Q55: Summer | R55: Summer | S55: Summer | T55: Summer | U55: Summer | V55: Summer | W55: Summer
C56: ADJUSTMENTS - EMBEDDED GENERATION | D56: MW | E56: Non-coincident | Q56: 0 | R56: 0 | S56: 0 | T56: 0 | U56: 0 | V56: 0 | W56: 0
E57: Coincident | Q57: -8.88e-16 | R57: -8.88e-16 | S57: -8.88e-16 | T57: -8.88e-16 | U57: -8.88e-16 | V57: -8.88e-16 | W57: -8.88e-16
C58: WEATHER CORRECTED MD 10% POE | D58: MW | E58: Non-coincident | Q58: 6.821286633 | R58: 6.889921196 | S58: 6.934214928 | T58: 6.95192021 | U58: 6.944077639 | V58: 6.970057208 | W58: 6.995060094
E59: Coincident | Q59: 6.821286633 | R59: 6.889921196 | S59: 6.934214928 | T59: 6.95192021 | U59: 6.944077639 | V59: 6.970057208 | W59: 6.995060094
C60: WEATHER CORRECTED MD 10% POE | D60: MVA | E60: Non-coincident | Q60: 6.82264805 | R60: 6.891296311 | S60: 6.935598884 | T60: 6.953307699 | U60: 6.945463563 | V60: 6.971448317 | W60: 6.996456194
E61: Coincident | Q61: 6.82264805 | R61: 6.891296311 | S61: 6.935598884 | T61: 6.953307699 | U61: 6.945463563 | V61: 6.971448317 | W61: 6.996456194
C62: WEATHER CORRECTED MD 50% POE | D62: MW | E62: Non-coincident | Q62: 6.104540849 | R62: 6.158671579 | S62: 6.195017491 | T62: 6.211941956 | U62: 6.210234986 | V62: 6.233014129 | W62: 6.254713015
E63: Coincident | Q63: 6.104540849 | R63: 6.158671579 | S63: 6.195017491 | T63: 6.211941956 | U63: 6.210234986 | V63: 6.233014129 | W63: 6.254713015
C64: WEATHER CORRECTED MD 50% POE | D64: MVA | E64: Non-coincident | Q64: 6.105759215 | R64: 6.159900749 | S64: 6.196253915 | T64: 6.213181758 | U64: 6.211474447 | V64: 6.234258136 | W64: 6.255961353
E65: Coincident | Q65: 6.105759215 | R65: 6.159900749 | S65: 6.196253915 | T65: 6.213181758 | U65: 6.211474447 | V65: 6.234258136 | W65: 6.255961353
B66: Berri | C66: CONNECTION POINT RATING | D66: MVA | E66: Non-coincident | Q66: 200 | R66: 200 | S66: 200 | T66: 200 | U66: 200 | V66: 200 | W66: 200
E67: Coincident | Q67: 200 | R67: 200 | S67: 200 | T67: 200 | U67: 200 | V67: 200 | W67: 200
C68: WINTER/SUMMER PEAKING | E68: Non-coincident | Q68: Summer | R68: Summer | S68: Summer | T68: Summer | U68: Summer | V68: Summer | W68: Summer
E69: Coincident | Q69: Summer | R69: Summer | S69: Summer | T69: Summer | U69: Summer | V69: Summer | W69: Summer
C70: ADJUSTMENTS - EMBEDDED GENERATION | D70: MW | E70: Non-coincident | Q70: 0 | R70: 0 | S70: 0 | T70: 0 | U70: 0 | V70: 0 | W70: 0
E71: Coincident | Q71: 0 | R71: 0 | S71: 0 | T71: 0 | U71: 0 | V71: 0 | W71: 0
C72: WEATHER CORRECTED MD 10% POE | D72: MW | E72: Non-coincident | Q72: 93.33495509 | R72: 93.51180575 | S72: 93.38660371 | T72: 92.92361106 | U72: 92.13183672 | V72: 91.80286164 | W72: 91.474679
E73: Coincident | Q73: 93.33495509 | R73: 93.51180575 | S73: 93.38660371 | T73: 92.92361106 | U73: 92.13183672 | V73: 91.80286164 | W73: 91.474679
C74: WEATHER CORRECTED MD 10% POE | D74: MVA | E74: Non-coincident | Q74: 95.03172922 | R74: 95.21179493 | S74: 95.08431678 | T74: 94.61290721 | U74: 93.80673888 | V74: 93.47178322 | W74: 93.13763442
E75: Coincident | Q75: 95.03172922 | R75: 95.21179493 | S75: 95.08431678 | T75: 94.61290721 | U75: 93.80673888 | V75: 93.47178322 | W75: 93.13763442
C76: WEATHER CORRECTED MD 50% POE | D76: MW | E76: Non-coincident | Q76: 85.26703139 | R76: 85.44458711 | S76: 85.40177069 | T76: 85.10767581 | U76: 84.56534212 | V76: 84.36535365 | W76: 84.16073136
E77: Coincident | Q77: 85.26703139 | R77: 85.44458711 | S77: 85.40177069 | T77: 85.10767581 | U77: 84.56534212 | V77: 84.36535365 | W77: 84.16073136
C78: WEATHER CORRECTED MD 50% POE | D78: MVA | E78: Non-coincident | Q78: 86.81713546 | R78: 86.99791903 | S78: 86.95432423 | T78: 86.65488288 | U78: 86.10268988 | V78: 85.89906575 | W78: 85.69072355
E79: Coincident | Q79: 86.81713546 | R79: 86.99791903 | S79: 86.95432423 | T79: 86.65488288 | U79: 86.10268988 | V79: 85.89906575 | W79: 85.69072355
B80: Blanche | C80: CONNECTION POINT RATING | D80: MVA | E80: Non-coincident | Q80: 134.8 | R80: 134.8 | S80: 134.8 | T80: 134.8 | U80: 134.8 | V80: 134.8 | W80: 134.8
E81: Coincident | Q81: 134.8 | R81: 134.8 | S81: 134.8 | T81: 134.8 | U81: 134.8 | V81: 134.8 | W81: 134.8
C82: WINTER/SUMMER PEAKING | E82: Non-coincident | Q82: Summer | R82: Summer | S82: Summer | T82: Summer | U82: Summer | V82: Summer | W82: Summer
E83: Coincident | Q83: Summer | R83: Summer | S83: Summer | T83: Summer | U83: Summer | V83: Summer | W83: Summer
C84: ADJUSTMENTS - EMBEDDED GENERATION | D84: MW | E84: Non-coincident | Q84: 0 | R84: 0 | S84: 0 | T84: 0 | U84: 0 | V84: 0 | W84: 0
E85: Coincident | Q85: 0 | R85: 0 | S85: 0 | T85: 0 | U85: 0 | V85: 0 | W85: 0
C86: WEATHER CORRECTED MD 10% POE | D86: MW | E86: Non-coincident | Q86: 35.14993717 | R86: 35.14872009 | S86: 35.07050563 | T86: 34.8819765 | U86: 34.56747573 | V86: 34.45424775 | W86: 34.34461133
E87: Coincident | Q87: 35.14993717 | R87: 35.14872009 | S87: 35.07050563 | T87: 34.8819765 | U87: 34.56747573 | V87: 34.45424775 | W87: 34.34461133
C88: WEATHER CORRECTED MD 10% POE | D88: MVA | E88: Non-coincident | Q88: 36.73399607 | R88: 36.73272414 | S88: 36.65098488 | T88: 36.45395955 | U88: 36.12528556 | V88: 36.00695487 | W88: 35.8923776
E89: Coincident | Q89: 36.73399607 | R89: 36.73272414 | S89: 36.65098488 | T89: 36.45395955 | U89: 36.12528556 | V89: 36.00695487 | W89: 35.8923776
C90: WEATHER CORRECTED MD 50% POE | D90: MW | E90: Non-coincident | Q90: 32.79139617 | R90: 32.74086226 | S90: 32.64512166 | T90: 32.49570812 | U90: 32.25082909 | V90: 32.13761786 | W90: 32.02585466
E91: Coincident | Q91: 32.79139617 | R91: 32.74086226 | S91: 32.64512166 | T91: 32.49570812 | U91: 32.25082909 | V91: 32.13761786 | W91: 32.02585466
C92: WEATHER CORRECTED MD 50% POE | D92: MVA | E92: Non-coincident | Q92: 34.26916561 | R92: 34.21635435 | S92: 34.11629913 | T92: 33.96015215 | U92: 33.70423746 | V92: 33.58592428 | W92: 33.46912438
E93: Coincident | Q93: 34.26916561 | R93: 34.21635435 | S93: 34.11629913 | T93: 33.96015215 | U93: 33.70423746 | V93: 33.58592428 | W93: 33.46912438
B94: Brinkworth | C94: CONNECTION POINT RATING | D94: MVA | E94: Non-coincident | Q94: 24.6 | R94: 24.6 | S94: 24.6 | T94: 24.6 | U94: 24.6 | V94: 24.6 | W94: 24.6
E95: Coincident | Q95: 24.6 | R95: 24.6 | S95: 24.6 | T95: 24.6 | U95: 24.6 | V95: 24.6 | W95: 24.6
C96: WINTER/SUMMER PEAKING | E96: Non-coincident | Q96: Summer | R96: Summer | S96: Summer | T96: Summer | U96: Summer | V96: Summer | W96: Summer
E97: Coincident | Q97: Summer | R97: Summer | S97: Summer | T97: Summer | U97: Summer | V97: Summer | W97: Summer
C98: ADJUSTMENTS - EMBEDDED GENERATION | D98: MW | E98: Non-coincident | Q98: 0 | R98: 0 | S98: 0 | T98: 0 | U98: 0 | V98: 0 | W98: 0
E99: Coincident | Q99: 0 | R99: 0 | S99: 0 | T99: 0 | U99: 0 | V99: 0 | W99: 0
C100: WEATHER CORRECTED MD 10% POE | D100: MW | E100: Non-coincident | Q100: 5.145786542 | R100: 5.152774923 | S100: 5.148217999 | T100: 5.132104218 | U100: 5.0990662 | V100: 5.091441832 | W100: 5.083756339
E101: Coincident | Q101: 5.145786542 | R101: 5.152774923 | S101: 5.148217999 | T101: 5.132104218 | U101: 5.0990662 | V101: 5.091441832 | W101: 5.083756339
C102: WEATHER CORRECTED MD 10% POE | D102: MVA | E102: Non-coincident | Q102: 5.205310505 | R102: 5.212379724 | S102: 5.207770088 | T102: 5.19146991 | U102: 5.158049725 | V102: 5.150337162 | W102: 5.142562767
E103: Coincident | Q103: 5.205310505 | R103: 5.212379724 | S103: 5.207770088 | T103: 5.19146991 | U103: 5.158049725 | V103: 5.150337162 | W103: 5.142562767
C104: WEATHER CORRECTED MD 50% POE | D104: MW | E104: Non-coincident | Q104: 4.592082256 | R104: 4.607887365 | S104: 4.614952196 | T104: 4.608482287 | U104: 4.588384846 | V104: 4.58672516 | W104: 4.584757793
E105: Coincident | Q105: 4.592082256 | R105: 4.607887365 | S105: 4.614952196 | T105: 4.608482287 | U105: 4.588384846 | V105: 4.58672516 | W105: 4.584757793
C106: WEATHER CORRECTED MD 50% POE | D106: MVA | E106: Non-coincident | Q106: 4.645201237 | R106: 4.661189171 | S106: 4.668335725 | T106: 4.661790975 | U106: 4.641461056 | V106: 4.639782172 | W106: 4.637792047
E107: Coincident | Q107: 4.645201237 | R107: 4.661189171 | S107: 4.668335725 | T107: 4.661790975 | U107: 4.641461056 | V107: 4.639782172 | W107: 4.637792047
B108: Bungama Industrial | C108: CONNECTION POINT RATING | D108: MVA | E108: Non-coincident | Q108: 64 | R108: 64 | S108: 64 | T108: 64 | U108: 64 | V108: 64 | W108: 64
E109: Coincident | Q109: 64 | R109: 64 | S109: 64 | T109: 64 | U109: 64 | V109: 64 | W109: 64
C110: WINTER/SUMMER PEAKING | E110: Non-coincident | Q110: Summer | R110: Summer | S110: Summer | T110: Summer | U110: Summer | V110: Summer | W110: Summer
E111: Coincident | Q111: Summer | R111: Summer | S111: Summer | T111: Summer | U111: Summer | V111: Summer | W111: Summer
C112: ADJUSTMENTS - EMBEDDED GENERATION | D112: MW | E112: Non-coincident | Q112: 0 | R112: 0 | S112: 0 | T112: 0 | U112: 0 | V112: 0 | W112: 0
E113: Coincident | Q113: 0 | R113: 0 | S113: 0 | T113: 0 | U113: 0 | V113: 0 | W113: 0
C114: WEATHER CORRECTED MD 10% POE | D114: MW | E114: Non-coincident | Q114: 19.09979928 | R114: 19.14579209 | S114: 19.12835099 | T114: 19.04092581 | U114: 18.88609644 | V114: 18.82594438 | W114: 18.76559248
E115: Coincident | Q115: 19.09979928 | R115: 19.14579209 | S115: 19.12835099 | T115: 19.04092581 | U115: 18.88609644 | V115: 18.82594438 | W115: 18.76559248
C116: WEATHER CORRECTED MD 10% POE | D116: MVA | E116: Non-coincident | Q116: 19.35717164 | R116: 19.4037842 | S116: 19.38610809 | T116: 19.29750483 | U116: 19.14058911 | V116: 19.0796265 | W116: 19.01846135
E117: Coincident | Q117: 19.35717164 | R117: 19.4037842 | S117: 19.38610809 | T117: 19.29750483 | U117: 19.14058911 | V117: 19.0796265 | W117: 19.01846135
C118: WEATHER CORRECTED MD 50% POE | D118: MW | E118: Non-coincident | Q118: 17.77813582 | R118: 17.80226523 | S118: 17.77893293 | T118: 17.70272853 | U118: 17.57527109 | V118: 17.51914714 | W118: 17.46196643
E119: Coincident | Q119: 17.77813582 | R119: 17.80226523 | S119: 17.77893293 | T119: 17.70272853 | U119: 17.57527109 | V119: 17.51914714 | W119: 17.46196643
C120: WEATHER CORRECTED MD 50% POE | D120: MVA | E120: Non-coincident | Q120: 18.01769858 | R120: 18.04215314 | S120: 18.01850643 | T120: 17.94127517 | U120: 17.81210022 | V120: 17.75522 | W120: 17.69726877
E121: Coincident | Q121: 18.01769858 | R121: 18.04215314 | S121: 18.01850643 | T121: 17.94127517 | U121: 17.81210022 | V121: 17.75522 | W121: 17.69726877
B122: Bungama Rural | C122: CONNECTION POINT RATING | D122: MVA | E122: Non-coincident | Q122: 64 | R122: 64 | S122: 64 | T122: 64 | U122: 64 | V122: 64 | W122: 64
E123: Coincident | Q123: 64 | R123: 64 | S123: 64 | T123: 64 | U123: 64 | V123: 64 | W123: 64
C124: WINTER/SUMMER PEAKING | E124: Non-coincident | Q124: Summer | R124: Summer | S124: Summer | T124: Summer | U124: Summer | V124: Summer | W124: Summer
E125: Coincident | Q125: Summer | R125: Summer | S125: Summer | T125: Summer | U125: Summer | V125: Summer | W125: Summer
C126: ADJUSTMENTS - EMBEDDED GENERATION | D126: MW | E126: Non-coincident | Q126: 0 | R126: 0 | S126: 0 | T126: 0 | U126: 0 | V126: 0 | W126: 0
E127: Coincident | Q127: 0 | R127: 0 | S127: 0 | T127: 0 | U127: 0 | V127: 0 | W127: 0
C128: WEATHER CORRECTED MD 10% POE | D128: MW | E128: Non-coincident | Q128: 19.23442827 | R128: 19.28074527 | S128: 19.26318124 | T128: 19.17513982 | U128: 19.0192191 | V128: 18.95864305 | W128: 18.89786574
E129: Coincident | Q129: 19.23442827 | R129: 19.28074527 | S129: 19.26318124 | T129: 19.17513982 | U129: 19.0192191 | V129: 18.95864305 | W129: 18.89786574
C130: WEATHER CORRECTED MD 10% POE | D130: MVA | E130: Non-coincident | Q130: 19.49361477 | R130: 19.54055589 | S130: 19.52275519 | T130: 19.43352739 | U130: 19.27550562 | V130: 19.2141133 | W130: 19.15251702
E131: Coincident | Q131: 19.49361477 | R131: 19.54055589 | S131: 19.52275519 | T131: 19.43352739 | U131: 19.27550562 | V131: 19.2141133 | W131: 19.15251702
C132: WEATHER CORRECTED MD 50% POE | D132: MW | E132: Non-coincident | Q132: 17.90344878 | R132: 17.92774828 | S132: 17.90425151 | T132: 17.82750997 | U132: 17.69915412 | V132: 17.64263457 | W132: 17.58505081
E133: Coincident | Q133: 17.90344878 | R133: 17.92774828 | S133: 17.90425151 | T133: 17.82750997 | U133: 17.69915412 | V133: 17.64263457 | W133: 17.58505081
C134: WEATHER CORRECTED MD 50% POE | D134: MVA | E134: Non-coincident | Q134: 18.14470015 | R134: 18.16932709 | S134: 18.1455137 | T134: 18.06773806 | U134: 17.93765259 | V134: 17.88037143 | W134: 17.82201173
E135: Coincident | Q135: 18.14470015 | R135: 18.16932709 | S135: 18.1455137 | T135: 18.06773806 | U135: 17.93765259 | V135: 17.88037143 | W135: 17.82201173
B136: Clare North | C136: CONNECTION POINT RATING | D136: MVA | E136: Non-coincident | Q136: 50 | R136: 50 | S136: 50 | T136: 50 | U136: 50 | V136: 50 | W136: 50
E137: Coincident | Q137: 50 | R137: 50 | S137: 50 | T137: 50 | U137: 50 | V137: 50 | W137: 50
C138: WINTER/SUMMER PEAKING | E138: Non-coincident | Q138: Summer | R138: Summer | S138: Summer | T138: Summer | U138: Summer | V138: Summer | W138: Summer
E139: Coincident | Q139: Summer | R139: Summer | S139: Summer | T139: Summer | U139: Summer | V139: Summer | W139: Summer
C140: ADJUSTMENTS - EMBEDDED GENERATION | D140: MW | E140: Non-coincident | Q140: 0 | R140: 0 | S140: 0 | T140: 0 | U140: 0 | V140: 0 | W140: 0
E141: Coincident | Q141: 0 | R141: 0 | S141: 0 | T141: 0 | U141: 0 | V141: 0 | W141: 0
C142: WEATHER CORRECTED MD 10% POE | D142: MW | E142: Non-coincident | Q142: 12.16585719 | R142: 12.10370031 | S142: 12.00314668 | T142: 11.86040321 | U142: 11.67742108 | V142: 11.55470687 | W142: 11.4333122
E143: Coincident | Q143: 12.16585719 | R143: 12.10370031 | S143: 12.00314668 | T143: 11.86040321 | U143: 11.67742108 | V143: 11.55470687 | W143: 11.4333122
C144: WEATHER CORRECTED MD 10% POE | D144: MVA | E144: Non-coincident | Q144: 12.53270857 | R144: 12.46867741 | S144: 12.36509167 | T144: 12.21804388 | U144: 12.02954408 | V144: 11.90312953 | W144: 11.77807429
E145: Coincident | Q145: 12.53270857 | R145: 12.46867741 | S145: 12.36509167 | T145: 12.21804388 | U145: 12.02954408 | V145: 11.90312953 | W145: 11.77807429
C146: WEATHER CORRECTED MD 50% POE | D146: MW | E146: Non-coincident | Q146: 10.95489889 | R146: 10.88956983 | S146: 10.79679994 | T146: 10.67332061 | U146: 10.52015368 | V146: 10.41093675 | W146: 10.30220296
E147: Coincident | Q147: 10.95489889 | R147: 10.88956983 | S147: 10.79679994 | T147: 10.67332061 | U147: 10.52015368 | V147: 10.41093675 | W147: 10.30220296
C148: WEATHER CORRECTED MD 50% POE | D148: MVA | E148: Non-coincident | Q148: 11.28523483 | R148: 11.21793582 | S148: 11.12236853 | T148: 10.99516578 | U148: 10.83738024 | V148: 10.72486996 | W148: 10.6128574
E149: Coincident | Q149: 11.28523483 | R149: 11.21793582 | S149: 11.12236853 | T149: 10.99516578 | U149: 10.83738024 | V149: 10.72486996 | W149: 10.6128574
B150: Dalrymple | C150: CONNECTION POINT RATING | D150: MVA | E150: Non-coincident | Q150: 63 | R150: 63 | S150: 63 | T150: 63 | U150: 63 | V150: 63 | W150: 63
E151: Coincident | Q151: 63 | R151: 63 | S151: 63 | T151: 63 | U151: 63 | V151: 63 | W151: 63
C152: WINTER/SUMMER PEAKING | E152: Non-coincident | Q152: Summer | R152: Summer | S152: Summer | T152: Summer | U152: Summer | V152: Summer | W152: Summer
E153: Coincident | Q153: Summer | R153: Summer | S153: Summer | T153: Summer | U153: Summer | V153: Summer | W153: Summer
C154: ADJUSTMENTS - EMBEDDED GENERATION | D154: MW | E154: Non-coincident | Q154: 0 | R154: 0 | S154: 0 | T154: 0 | U154: 0 | V154: 0 | W154: 0
E155: Coincident | Q155: 0 | R155: 0 | S155: 0 | T155: 0 | U155: 0 | V155: 0 | W155: 0
C156: WEATHER CORRECTED MD 10% POE | D156: MW | E156: Non-coincident | Q156: 7.401151122 | R156: 7.38759803 | S156: 7.351444564 | T156: 7.289545237 | U156: 7.202299568 | V156: 7.1517582 | W156: 7.101825604
E157: Coincident | Q157: 7.401151122 | R157: 7.38759803 | S157: 7.351444564 | T157: 7.289545237 | U157: 7.202299568 | V157: 7.1517582 | W157: 7.101825604
C158: WEATHER CORRECTED MD 10% POE | D158: MVA | E158: Non-coincident | Q158: 7.5296924 | R158: 7.515903921 | S158: 7.479122551 | T158: 7.416148173 | U158: 7.327387244 | V158: 7.275968086 | W158: 7.225168274
E159: Coincident | Q159: 7.5296924 | R159: 7.515903921 | S159: 7.479122551 | T159: 7.416148173 | U159: 7.327387244 | V159: 7.275968086 | W159: 7.225168274
C160: WEATHER CORRECTED MD 50% POE | D160: MW | E160: Non-coincident | Q160: 6.500325792 | R160: 6.479705747 | S160: 6.443707817 | T160: 6.389633186 | U160: 6.317368529 | V160: 6.271216157 | W160: 6.225292465
E161: Coincident | Q161: 6.500325792 | R161: 6.479705747 | S161: 6.443707817 | T161: 6.389633186 | U161: 6.317368529 | V161: 6.271216157 | W161: 6.225292465
C162: WEATHER CORRECTED MD 50% POE | D162: MVA | E162: Non-coincident | Q162: 6.613221769 | R162: 6.5922436 | S162: 6.555620467 | T162: 6.500606682 | U162: 6.427086951 | V162: 6.380133017 | W162: 6.333411734
E163: Coincident | Q163: 6.613221769 | R163: 6.5922436 | S163: 6.555620467 | T163: 6.500606682 | U163: 6.427086951 | V163: 6.380133017 | W163: 6.333411734
B164: Playford (Davenport West) | C164: CONNECTION POINT RATING | D164: MVA | E164: Non-coincident | Q164: 46 | R164: 46 | S164: 46 | T164: 46 | U164: 46 | V164: 46 | W164: 46
E165: Coincident | Q165: 46 | R165: 46 | S165: 46 | T165: 46 | U165: 46 | V165: 46 | W165: 46
C166: WINTER/SUMMER PEAKING | E166: Non-coincident | Q166: Summer | R166: Summer | S166: Summer | T166: Summer | U166: Summer | V166: Summer | W166: Summer
E167: Coincident | Q167: Summer | R167: Summer | S167: Summer | T167: Summer | U167: Summer | V167: Summer | W167: Summer
C168: ADJUSTMENTS - EMBEDDED GENERATION | D168: MW | E168: Non-coincident | Q168: 0 | R168: 0 | S168: 0 | T168: 0 | U168: 0 | V168: 0 | W168: 0
E169: Coincident | Q169: 0 | R169: 0 | S169: 0 | T169: 0 | U169: 0 | V169: 0 | W169: 0
C170: WEATHER CORRECTED MD 10% POE | D170: MW | E170: Non-coincident | Q170: 32.27222149 | R170: 32.17401944 | S170: 31.98767588 | T170: 31.68722907 | U170: 31.2776939 | V170: 31.02798212 | W170: 30.78043523
E171: Coincident | Q171: 32.27222149 | R171: 32.17401944 | S171: 31.98767588 | T171: 31.68722907 | U171: 31.2776939 | V171: 31.02798212 | W171: 30.78043523
C172: WEATHER CORRECTED MD 10% POE | D172: MVA | E172: Non-coincident | Q172: 33.08998584 | R172: 32.98929539 | S172: 32.79822997 | T172: 32.49016996 | U172: 32.07025734 | V172: 31.81421797 | W172: 31.56039835
E173: Coincident | Q173: 33.08998584 | R173: 32.98929539 | S173: 32.79822997 | T173: 32.49016996 | U173: 32.07025734 | V173: 31.81421797 | W173: 31.56039835
C174: WEATHER CORRECTED MD 50% POE | D174: MW | E174: Non-coincident | Q174: 28.96692842 | R174: 28.83673045 | S174: 28.63245278 | T174: 28.34573718 | U174: 27.97957906 | V174: 27.72962265 | W174: 27.48025684
E175: Coincident | Q175: 28.96692842 | R175: 28.83673045 | S175: 28.63245278 | T175: 28.34573718 | U175: 27.97957906 | V175: 27.72962265 | W175: 27.48025684
C176: WEATHER CORRECTED MD 50% POE | D176: MVA | E176: Non-coincident | Q176: 29.70093805 | R176: 29.56744092 | S176: 29.35798694 | T176: 29.06400609 | U176: 28.68856968 | V176: 28.43227948 | W176: 28.17659484
E177: Coincident | Q177: 29.70093805 | R177: 29.56744092 | S177: 29.35798694 | T177: 29.06400609 | U177: 28.68856968 | V177: 28.43227948 | W177: 28.17659484
B178: Dorrien | C178: CONNECTION POINT RATING | D178: MVA | E178: Non-coincident | Q178: 216 | R178: 216 | S178: 216 | T178: 216 | U178: 216 | V178: 216 | W178: 216
E179: Coincident | Q179: 216 | R179: 216 | S179: 216 | T179: 216 | U179: 216 | V179: 216 | W179: 216
C180: WINTER/SUMMER PEAKING | E180: Non-coincident | Q180: Summer | R180: Summer | S180: Summer | T180: Summer | U180: Summer | V180: Summer | W180: Summer
E181: Coincident | Q181: Summer | R181: Summer | S181: Summer | T181: Summer | U181: Summer | V181: Summer | W181: Summer
C182: ADJUSTMENTS - EMBEDDED GENERATION | D182: MW | E182: Non-coincident | Q182: 25.80696 | R182: 25.80696 | S182: 25.80696 | T182: 25.80696 | U182: 25.80696 | V182: 25.80696 | W182: 25.80696
E183: Coincident | Q183: 0 | R183: 0 | S183: 0 | T183: 0 | U183: 0 | V183: 0 | W183: 0
C184: WEATHER CORRECTED MD 10% POE | D184: MW | E184: Non-coincident | Q184: 61.95391494 | R184: 62.0052002 | S184: 61.85764229 | T184: 61.48767787 | U184: 60.90139907 | V184: 60.62229458 | W184: 60.3447916
E185: Coincident | Q185: 61.95391494 | R185: 62.0052002 | S185: 61.85764229 | T185: 61.48767787 | U185: 60.90139907 | V185: 60.62229458 | W185: 60.3447916
C186: WEATHER CORRECTED MD 10% POE | D186: MVA | E186: Non-coincident | Q186: 64.67522924 | R186: 64.72876719 | S186: 64.57472782 | T186: 64.18851278 | U186: 63.5764818 | V186: 63.2851177 | W186: 62.99542544
E187: Coincident | Q187: 64.67522924 | R187: 64.72876719 | S187: 64.57472782 | T187: 64.18851278 | U187: 63.5764818 | V187: 63.2851177 | W187: 62.99542544
C188: WEATHER CORRECTED MD 50% POE | D188: MW | E188: Non-coincident | Q188: 55.83819526 | R188: 55.79860716 | S188: 55.61715507 | T188: 55.27432671 | U188: 54.77273548 | V188: 54.49529613 | W188: 54.21686665
E189: Coincident | Q189: 55.83819526 | R189: 55.79860716 | S189: 55.61715507 | T189: 55.27432671 | U189: 54.77273548 | V189: 54.49529613 | W189: 54.21686665
C190: WEATHER CORRECTED MD 50% POE | D190: MVA | E190: Non-coincident | Q190: 58.29087769 | R190: 58.2495507 | S190: 58.06012836 | T190: 57.70224132 | U190: 57.1786178 | V190: 56.88899197 | W190: 56.59833253
E191: Coincident | Q191: 58.29087769 | R191: 58.2495507 | S191: 58.06012836 | T191: 57.70224132 | U191: 57.1786178 | V191: 56.88899197 | W191: 56.59833253
B192: East Terrace (Eastern Suburbs) | C192: CONNECTION POINT RATING | D192: MVA | E192: Non-coincident | Q192: 250 | R192: 250 | S192: 250 | T192: 250 | U192: 250 | V192: 250 | W192: 250
E193: Coincident | Q193: 250 | R193: 250 | S193: 250 | T193: 250 | U193: 250 | V193: 250 | W193: 250
C194: WINTER/SUMMER PEAKING | E194: Non-coincident | Q194: Summer | R194: Summer | S194: Summer | T194: Summer | U194: Summer | V194: Summer | W194: Summer
E195: Coincident | Q195: Summer | R195: Summer | S195: Summer | T195: Summer | U195: Summer | V195: Summer | W195: Summer
C196: ADJUSTMENTS - EMBEDDED GENERATION | D196: MW | E196: Non-coincident | Q196: 4.641 | R196: 4.641 | S196: 4.641 | T196: 4.641 | U196: 4.641 | V196: 4.641 | W196: 4.641
E197: Coincident | Q197: 0 | R197: 0 | S197: 0 | T197: 0 | U197: 0 | V197: 0 | W197: 0
C198: WEATHER CORRECTED MD 10% POE | D198: MW | E198: Non-coincident | Q198: 92.45460791 | R198: 93.05914349 | S198: 93.51823167 | T198: 93.70150182 | U198: 93.52722882 | V198: 93.88985577 | W198: 94.25851947
E199: Coincident | Q199: 92.45460791 | R199: 93.05914349 | S199: 93.51823167 | T199: 93.70150182 | U199: 93.52722882 | V199: 93.88985577 | W199: 94.25851947
C200: WEATHER CORRECTED MD 10% POE | D200: MVA | E200: Non-coincident | Q200: 93.51323798 | R200: 94.12469565 | S200: 94.58904051 | T200: 94.77440916 | U200: 94.59814069 | V200: 94.96491979 | W200: 95.33780482
E201: Coincident | Q201: 93.51323798 | R201: 94.12469565 | S201: 94.58904051 | T201: 94.77440916 | U201: 94.59814069 | V201: 94.96491979 | W201: 95.33780482
C202: WEATHER CORRECTED MD 50% POE | D202: MW | E202: Non-coincident | Q202: 82.03253085 | R202: 82.50211175 | S202: 82.9615203 | T202: 83.210117 | U202: 83.20006418 | V202: 83.52121731 | W202: 83.84765845
... 4679 more rows

Sheet 7.1 Policies and Procedures
B1: =(LOOKUP(dms_Model,dms_Model_List,dms_Worksheet_List)) -> REGULATORY REPORTING STATEMENT
B2: =INDEX(dms_TradingNameFull_List,MATCH(dms_TradingName,dms_TradingName_List)) -> ElectraNet
B3: =IF(SUM(dms_SingleYear_Model)>0,CRY,CONCATENATE(FRCP_y1," to ",dms_MultiYear_FinalYear_Result)) -> 2023-24 to 2027-28
B4: 7.1 PLANS, POLICIES, PROCEDURES AND STRATEGIES
B7: Instructions
B8: =CONCATENATE(dms_TradingName, " must list and provide a brief description of key internal plans, "&"policies, procedures or strategies that are used by it to plan and conduct its day to day operations and that have been relied upon in the development of its regulatory proposal. "&dms_TradingName," must identify any internal plans, policies, procedures and strategies that have changed in the current regulatory control period "&"or that are expected to change before the next regulatory control period where the change has been identified as a step change.") -> ElectraNet must list and provide a brief description of key internal plans, policies, procedures or strategies that are used by it to plan and conduct its day to day operations and that have been relied upon in the development of its regulatory proposal. ElectraNet must identify any internal plans, policies, procedures and strategies that have changed in the current regulatory control period or that are expected to change before the next regulatory control period where the change has been identified as a step change.
B10: 7.1.1 - PLANS, POLICIES, PROCEDURES AND STRATEGIES
C11: Brief description | D11: Relevance to regulatory proposal | E11: Expenditure impact
C12: Description of the plan, policy, procedure or strategy. | D12: Identify the element of the proposal/supporting documents that the policy, plan, procedure or strategy is relevant to e.g. replacement capex, capacity utilisation thresholds, opex | E12: Is this policy, plan or procedure identified in the response to section 4 'Step Changes' of the notice (yes or no)?
B13: Corporate
B14: Health Safety Environment and Sustainability Organisational policy | C14: This Policy supports the ElectraNet Vision of ElectraNet to be an Australian leader in enabling the transition to a low carbon economy by expanding our role as a provider of network solutions. This policy sets out ElectraNet’s commitments and expectations for decisions, activities and behaviours concerning the management of health, safety, environment and sustainability. | D14: Capital and operational expenditure | E14: No
B15: Bushfire Risk Management Guideline | C15: This document establishes ElectraNet's approach for bushfire risk management in planning and operating the network | D15: Capital and operational expenditure | E15: No
B17: Governance framework
B18: Corporate Governance Policy | C18: This policy provides the foundation for corporate governance within ElectraNet, demonstrating ElectraNet's commitment to governance practices that ensure accountability, adequate controls, and reporting. | D18: Capital and operational expenditure | E18: No
B19: Risk Management Policy | C19: This policy sets out a structured approach to risk management acknowledging that the effective management of risk is a key prerequisite to the achievement of ElectraNet's strategic and operational objectives. | D19: Capital and operational expenditure | E19: No
B35: Accounting policies, procedures and methodologies (including a capitalisation policy, depreciation policy and an approved expenditure allocation methodology)
B36: Cost Allocation Methodology | C36: This AER approved policy details the principles for attributing costs to, and allocating costs between or within, the categories of transmission services under the Rules. | D36: Capital and operational expenditure | E36: No
B37: Capitalisation Policy | C37: This policy establishes a framework for the capitalisation of property, plant, equipment, and intangible assets. | D37: Capital and operational expenditure | E37: No
B38: Asset Disposal Policy Depreciation and Amortisation of Asset Policy | C38: This policy establishes a framework for the disposal of assets within ElectraNet for accounting, taxation, and regulatory purposes. This policy is to establish a framework for the depreciation and amortisation of assets at ElectraNet for accounting, regulatory and taxation purposes. | D38: Capital expenditure Depreciation | E38: No No
B39: Asset management plan or equivalent documentation
B40: Asset Management Policies
B41: Asset Management Organisational Policy | C41: This policy sets out ElectraNet’s commitments and expectations for decisions, activities and behaviours concerning asset management. | D41: Capital and operational expenditure | E41: No
B42: Regulated Investment Planning Policy Asset Management Strategic Planning Framework | C42: The purpose of this policy is to ensure a consistent framework for regulated asset management investment decisions that promote and support the achievement of ElectraNet’s Asset Management Objectives. This framework ensures that planning for regulated transmission network capex and opex investments is performed in a systematic manner. | D42: Capital and operational expenditure Capital and operational expenditure | E42: No No
B43: Asset Management Strategies
B44: Asset class strategy - Instrument Transformers | C44: Provides the strategy and the plan for the management of these assets | D44: Capital and operational expenditure | E44: No
B45: Asset class strategy - Line conductors | C45: Provides the strategy and the plan for the management of these assets | D45: Capital and operational expenditure | E45: No
B46: Asset class strategy - Disconnectors and Earth Switches | C46: Provides the strategy and the plan for the management of these assets | D46: Capital and operational expenditure | E46: No
B47: Asset class strategy - Secondary Systems - Protection Asset class strategy - Line Insulators Asset class strategy - Circuit Breakers | C47: Provides the strategy and the plan for the management of these assets Provides the strategy and the plan for the management of these assets Provides the strategy and the plan for the management of these assets | D47: Capital and operational expenditure Captial and operational expenditure Capital and operational expenditure | E47: No No No
B48: Asset Management Plans
B49: Strategic Asset Management Plan (SAMP) | C49: A SAMP is defined by ISO 55000 as documented “information that specifies how organisational objectives are to be converted into asset management objectives, the approach for developing asset management plans, and the role of the asset management system in supporting achievement of the asset management objectives.” It is a high level strategic plan that documents the relationship between the organisational objectives and the asset management objectives, defines “the framework required to achieve the asset management objectives” and “should be used to develop the asset management plan(s).” | D49: Capital and operational expenditure | E49: No
B72: Capital expenditure policies and procedures (including capex approval policies and procedures and replacement policy)
B73: Expenditure Forecasting Methodology | C73: This document sets out ElectraNet's (capital and operating) expenditure forecasting methodology | D73: Capital and operational expenditure | E73: No
B74: Transmission Asset Life Cycle (TALC) | C74: This document sets out a framework for understanding substation and transmission line asset lifecycle indicators. It defines processes for asset condition and provides information to asset cost / risk optimisation decision support tools and informs asset replacement decision making. | D74: Capital and operational expenditure | E74: No
B77: Internal standards for network planning, design, maintenance and operation
B78: Guideline for Undertaking Cost-Benefit Analyses | C78: This guideline sets out the economic evaluation framework used to assess and identify preferred options to address identified needs. | D78: Capital expenditure | E78: No
B79: Risk Cost Assumptions Procedure | C79: Sets out the assumptions and principles for conducting risk cost analyses. | D79: Capital expenditure | E79: No
B157: Procurement and contracting out policies
B158: Procurement policy | C158: Establishes high level direction and precedents in relation to procuring goods and services. | D158: Capital and operational expenditure | E158: No
B159: Procurement Business Guideline | C159: Establishes high level direction and precedents in relation to procurement and defines how procurement activities are undertaken. | D159: Capital and operational expenditure | E159: No
B162: Information technology policies or strategies
B163: IT Strategy 2020 - 2028 | C163: Describes ElectraNet's proposed ICT strategy to 2023 and the overall IT Systems. | D163: Capital and operational expenditure | E163: No
B199: Demand management policies or strategies
B203: Self insurance guidelines or policy
B208: Land and easement acquisition polices
B213: Asset security plans and policies
B214: Cyber Security Framework | C214: Defines the high level strategies to support ElectraNet’s cyber security objectives. | D214: Capital and operational expenditure | E214: No
B224: Disaster recovery policy
B225: Crisis Management plan | C225: The purpose of the ElectraNet Crisis Management Plan (CMP) is to: •Provide documented guidelines to support the response to incidents and crises •Outline roles and responsibilities for incident/crisis management •Ensure a timely and appropriate transition from response activities to the resumption of business as usual during recovery, including the identification of lessons learned and opportunities for improvement. The CMP applies to all ElectraNet employees and is supported by Business Continuity Plans, IT Recovery Response Procedure and network incident response procedures. | D225: Capital and operational expenditure | E225: No

Sheet 7.2 Contingent projects
B1: =(LOOKUP(dms_Model,dms_Model_List,dms_Worksheet_List)) -> REGULATORY REPORTING STATEMENT
B2: =INDEX(dms_TradingNameFull_List,MATCH(dms_TradingName,dms_TradingName_List)) -> ElectraNet
B3: =IF(SUM(dms_SingleYear_Model)>0,CRY,CONCATENATE(FRCP_y1," to ",dms_MultiYear_FinalYear_Result)) -> 2023-24 to 2027-28
B4: 7.2 CONTINGENT PROJECTS
B7: Instructions
B8: =CONCATENATE(dms_TradingName," is required to populate all input cells (yellow) in table 7.2.1 presented below. Additional rows may be added by ",dms_TradingName," if required." ) -> ElectraNet is required to populate all input cells (yellow) in table 7.2.1 presented below. Additional rows may be added by ElectraNet if required.
B10: 7.2.1 - PROPOSED CONTINGENT PROJECTS FOR THE FORTHCOMING REGULATORY CONTROL PERIOD
B11: Proposed contingent project name | C11: Proposed contingent capital expenditure ($0's, nominal) | D11: Proposed trigger events | E11: =CONCATENATE("Proposed MAR for ", FRCP_y1," ($0's, nominal)") -> Proposed MAR for 2023-24 ($0's, nominal) | F11: =CONCATENATE("5 per cent of the ", FRCP_y1," ($0's, nominal) MAR") -> 5 per cent of the 2023-24 ($0's, nominal) MAR
B12: Eyre Peninsula Upgrade | C12: $50,000,000-$150,000,000 | D12: 1. Customer commitment for additional load to connect to the transmission network causing the Cultana 275/132 kV transformers to exceed their thermal limit of 200 MW and/or causing a need for augmentation of power transfer capacity between Davenport and Cultana. 2. Successful completion of a RIT-T including an assessment of credible options showing the upgrade of the 132 kV Eyre Peninsula Link to 275 kV and/or augmentation of power transfer capacity between Davenport and Cultana is the preferred option a. demonstrating positive net market benefits; and/or b. addressing a reliability corrective action 3. ElectraNet board commitment to proceed with the project subject to the AER amending the revenue determination pursuant to the Rules. | E12: 349965795.1 | F12: =+E12*0.05 -> 17498289.75
B13: Interconnector Upgrade | C13: $100,000,000-$150,000,000 | D13: 1. Successful completion of a RIT-T with an identified need to increase inter-regional transfer capability between South Australia and adjoining regions a. demonstrating positive net market benefits; and/or b. addressing a reliability corrective action 2. ElectraNet board commitment to proceed with the project subject to the AER amending the revenue determination pursuant to the Rules. | E13: =+$E$12 -> 349965795.1 | F13: 17498289.75
B14: Power Quality Management | C14: $30,000,000-$60,000,000 | D14: 1. Successful completion of a RIT-T including an assessment of credible options showing a transmission investment is justified to address voltage quality requirements on the South Australian transmission network. 2. ElectraNet board commitment to proceed with the project subject to the AER amending the revenue determination pursuant to the Rules. | E14: 349965795.1 | F14: 17498289.75
E15: 349965795.1 | F15: 17498289.75
E16: 349965795.1 | F16: 17498289.75
E17: 349965795.1 | F17: 17498289.75
E18: 349965795.1 | F18: 17498289.75
E19: 349965795.1 | F19: 17498289.75
E20: 349965795.1 | F20: 17498289.75
E21: 349965795.1 | F21: 17498289.75
E22: 349965795.1 | F22: 17498289.75
E23: 349965795.1 | F23: 17498289.75
E24: 349965795.1 | F24: 17498289.75
E25: 349965795.1 | F25: 17498289.75
E26: 349965795.1 | F26: 17498289.75
E27: 349965795.1 | F27: 17498289.75
E28: 349965795.1 | F28: 17498289.75
E29: 349965795.1 | F29: 17498289.75
E30: 349965795.1 | F30: 17498289.75
E31: 349965795.1 | F31: 17498289.75

Sheet 7.3 Obligations
B1: =(LOOKUP(dms_Model,dms_Model_List,dms_Worksheet_List)) -> REGULATORY REPORTING STATEMENT
B2: =INDEX(dms_TradingNameFull_List,MATCH(dms_TradingName,dms_TradingName_List)) -> ElectraNet
B3: =IF(SUM(dms_SingleYear_Model)>0,CRY,CONCATENATE(FRCP_y1," to ",dms_MultiYear_FinalYear_Result)) -> 2023-24 to 2027-28
B4: 7.3 OBLIGATIONS, REQUIREMENTS & STANDARDS
B6: There is ONE table on this worksheet. It has been sub-grouped for ease of navigation. See the Instructions sheet on how to group or ungroup data.
B8: Instructions
B9: =CONCATENATE("Outline those obligations and requirements that ",dms_TradingName, " identifies as having a material impact on expenditure requirements.") -> Outline those obligations and requirements that ElectraNet identifies as having a material impact on expenditure requirements.
B12: 7.3.1 - OBLIGATIONS OR REQUIREMENTS
C13: Brief description | D13: Relevance to regulatory proposal | E13: Expenditure impact
C14: Description of relevant obligations or requirements within the instrument (e.g. safety obligations, reliability targets) | D14: Identify what element of the proposal/supporting documents the obligation or requirement is relevant to e.g. replacement capex, capacity utilisation thresholds, opex | E14: Is the obligation or requirement identified in the response to section 4 'Step Changes' of the notice (yes or no)?
B15: Legislation
B16: National Electricity (South Australia) Act 1996 (SA) and Regulations and National Electricity Law (NEL) | C16: Electricity transmission entities have a large number of obligations under the NEL. The most significant obligations are to: register with AEMO as a "Registered Participant"; comply with the transmission determination that applies to the electricity transmission network services provided; provide the AER with necessary information or prepare, maintain or keep the information as is requested by the AER in either a "relevant notice" or a "regulatory information instrument"; provide information to the AER for the purpose of the preparation of ElectraNet's financial and operational performance ; comply with the guidelines established by AEMO in relation to the shedding and restoration of loads and AEMO directions in order to ensure the safety and security of the transmission network and broader national electricity system ; comply with a wide range of obligations relating to the determination and resolution of access disputes, comply with access determinations; and comply with the general obligation not to prevent or hinder the access of another person to a regulated network service. In addition the Act and Regulations cover such system operations functions that ElectraNet exercises. | D16: Regulatory Proposal and Forecast Operating Expenditure | E16: No
B17: Electricity Act 1996 (SA) | C17: This Act sets out a requirement for ElectraNet to comply with the terms of its transmission licence, requires vegetation clearance to be undertaken, and sets out obligations in relation to the access of land. | D17: Forecast Capital and Operating Expenditure | E17: No
B18: Electricity (General) Regulations 2012 (SA) | C18: These Regulations set out a range of obligations for electricity entities covering safety, design parameters, inspection and maintenance requirements for electricity transmission infrastructure. | D18: Forecast Capital and Operating Expenditure | E18: No
B19: Electricity (Principles of Vegetation Clearance ) Regulations 2021 | C19: These Regulations define clearance obligations and provide further detail on the principles and processes which ElectraNet must comply with in relation to vegetation impacting its transmission lines. | D19: Forecast Operating Expenditure | E19: No
B20: Work Health and Safety Act 2012 (SA) | C20: This Act sets out obligations for ElectraNet to maintain appropriate health and safety standards at its place of business to ensure the safety of workers and other persons and sets out safety related duties that must be complied with. | D20: Forecast Capital and Operating Expenditure | E20: No
B21: Work Health and Safety Regulations 2012 (SA) | C21: These Regulations set out detailed requirements in relation to the identification and management of hazards and risks to safety, high risk construction work and undertaking construction projects relevant to ElectraNet's business. | D21: Forecast Capital and Operating Expenditure | E21: No
B22: Return to Work Act 2014 and associated regulations | C22: This Act and Regulations set out obligations for employers in relation to worker recovery and return to work and as a self-insured employer is relevant to ElectraNet's obligation to pay self-insured fees. | D22: Forecast Operating Expenditure | E22: No
B23: Native Vegetation Act 1991 (SA) and associated regulations | C23: This Act sets out requirements for the clearing, conservation and management of native vegetation relevant to constructing and maintaining ElectraNet's transmission network. | D23: Forecast Capital and Operating Expenditure | E23: No
B24: Planning, Development and Infrastructure Act 2016 and associated regulations | C24: This Act sets out the framework for obtaining development approval for ElectraNet's electricity transmission infrastructure and may contain conditions of approval that impact on ongoing operations. | D24: Forecast Capital and Operating Expenditure | E24: No
B25: Environment Protection Act 1993 (SA) and associated regulations | C25: This Act sets out the environmental requirements that ElectraNet must take into account and comply with when constructing, operating and maintaining its network infrastructure or in undertaking related operations. | D25: Forecast Capital and Operating Expenditure | E25: No
B26: Land Tax Act 1936 (SA) | C26: This Act requires the payment of a tax based on site values of land owned by ElectraNet. | D26: Forecast Operating Expenditure | E26: No
B27: Environmental Protection and Biodiversity Conservation Act 1999 (Cth) and associated regulations | C27: This Act aims to protect the environment, particularly related to environmentally sensitive species and habitats and matters of national environmental significance and is relevant when undertaking development activities or in relation to ongoing site management. | D27: Forecast Capital and Operating Expenditure | E27: No
B28: Fair Work Act and Regulations 2009 (Cth) | C28: This Act and Regulations are focused on providing a balanced framework for cooperative and productive workplace relations that promotes national economic prosperity and social inclusion for all Australians. | D28: Escalation Rates & Project Cost Escalation Forecast Capital and Operating Expenditure | E28: No
B29: Security of Critical Infrastructure Act 2018 and Security Legislation Amendment (Critical Infrastructure) Bill 2020 and associated regulations and rules (Cth) | C29: The Act, associated regulations and rules is to provide a framework for managing risks to national security relating to critical infrastructure, | D29: Forecast Capital and Operating Expenditure | E29: Yes
B30: Workplace Health and Safety Act (2011) (Cwth) | C30: This Act establishes a national framework for workplace health and safety and works in concert with the State Act and Regulations identified separately above. | D30: Forecast Capital and Operating Expenditure | E30: No
B227: Licences
B228: Electricity Transmission Licence | C228: Licence issued by the Essential Services Commission enabling ElectraNet to operate the transmission network in South Australia with conditions covering compliance with codes, guidelines and reporting obligations. | D228: Forecast Operating Expenditure | E228: No
B229: System Control Licence | C229: Licence issued by the Essential Services Commission to enable ElectraNet to exercise system control over the transmission network. | D229: Forecast Operating Expenditure | E229: No
B232: Rules
B233: National Electricity Rules | C233: The National Electricity Rules govern the registration of ElectraNet as a network services provider, set out the process and requirements for lodgement and the content of ElectraNet's revenue proposal, the process for making a revenue determination, technical and operational requirements that ElectraNet must meet in relation to the transmission system, network augmentation processes, connection processes, obligations to co-operate with AEMO in relation to power system security and comply with the directions of AEMO to ensure the safety and security of the national electricity market, comply with confidentiality obligations and manage NER disputes in accordance with the framework set out in the Rules. | D233: Regulatory Proposal and Forecast Capital and Operating Expenditure
B237: Orders
B241: Codes
B242: Electricity Transmission Code (SA) | C242: This Code made by the Essential Services Commission of South Australia sets out quality of supply, reliability standards and design requirements. These obligations impacting on the planning, development and operation of the transmision network. | D242: Forecast Capital and Operating Expenditure
B243: Applicable Codes made under the Work Health and Safety Act 2012 (SA) | C243: Compliance with these Codes relating to work, health and safety are relevant to ElectraNet's buiness and operations. | D243: Forecast Capital and Operating Expenditure
B257: Guidelines
B258: AER's Better Regulation Guidelines and Schemes | C258: Guidelines relate to confidentiality, expenditure forecast assessment, cost allocation, capital expenditure incentives, rate of return and consumer engagement. Schemes include STPIS and EBSS. | D258: Regulatory Proposal
B296: Default agreements
B301: Other

Sheet 7.4 Shared Assets
B1: =(LOOKUP(dms_Model,dms_Model_List,dms_Worksheet_List)) -> REGULATORY REPORTING STATEMENT
B2: =INDEX(dms_TradingNameFull_List,MATCH(dms_TradingName,dms_TradingName_List)) -> ElectraNet
B3: =IF(SUM(dms_SingleYear_Model)>0,CRY,CONCATENATE(FRCP_y1," to ",dms_MultiYear_FinalYear_Result)) -> 2023-24 to 2027-28
B4: 7.4 SHARED ASSETS
B6: 7.4.1 - TOTAL UNREGULATED REVENUE EARNED WITH SHARED ASSETS
B7: Name of shared asset unregulated service | C7: Description of shared assets used to provide the service | G7: Shared asset unregulated revenue ($0's, nominal) | L7: =CONCATENATE("Shared asset unregulated revenue ($0's, real ", dms_DollarReal,")") -> Shared asset unregulated revenue ($0's, real June 2023)
D8: =PRCP_y1 -> 2013-14 | E8: =PRCP_y2 -> 2014-15 | F8: =PRCP_y3 -> 2015-16 | G8: =PRCP_y4 -> 2016-17 | H8: =PRCP_y5 -> 2017-18 | I8: =CRCP_y1 -> 2018-19 | J8: =CRCP_y2 -> 2019-20 | K8: =CRCP_y3 -> 2020-21 | L8: =dms_y1 -> 2021-22 | M8: =dms_y2 -> 2022-23 | N8: =dms_y3 -> 2023-24 | O8: =dms_y4 -> 2024-25 | P8: =dms_y5 -> 2025-26 | Q8: =dms_y6 -> 2026-27 | R8: =dms_y7 -> 2027-28 | S8: =CONCATENATE("Total ",FRCP_y1, " to ", dms_MultiYear_FinalYear_Result) -> Total 2023-24 to 2027-28
B9: Telecommunications Revenue | C9: Non-regulated telecommunications revenue associated with telecommunications services on transmission towers, radio towers, leasing spare available capacity bandwidth and network monitoring. | G9: 1006367.38 | H9: 1200466.09 | I9: 1330647.12 | J9: 1234555.68 | K9: 1396570.98 | L9: 1764279.592 | M9: 1960067.608 | N9: 2040542.009 | O9: 2124320.444 | P9: 2211538.566 | Q9: 2302337.599 | R9: 2396864.562 | S9: =SUM(N9:R9) -> 11075603.18
S10: =SUM(N10:R10) -> 0
S11: 0
S12: 0
S13: 0
S14: 0
S15: 0
S16: 0
S17: 0
S18: 0
S19: 0
S20: 0
S21: 0
S22: 0
S23: 0
B25: 7.4.2 - SHARED ASSET UNREGULATED SERVICES - APPORTIONMENT METHODOLOGY
B26: Name of shared asset unregulated service for which revenues were apportioned | C26: Apportionment methodology

Sheet 7.9 STPIS
B1: =(LOOKUP(dms_Model,dms_Model_List,dms_Worksheet_List)) -> REGULATORY REPORTING STATEMENT
B2: =INDEX(dms_TradingNameFull_List,MATCH(dms_TradingName,dms_TradingName_List)) -> ElectraNet
B3: =IF(SUM(dms_SingleYear_Model)>0,CRY,CONCATENATE(FRCP_y1," to ",dms_MultiYear_FinalYear_Result)) -> 2023-24 to 2027-28
B4: 7.9 SERVICE TARGET PERFORMANCE INCENTIVE SCHEME (STPIS)
B6: There are FOUR tables on this worksheet. Each table has been grouped (and sub-grouped) for ease of navigation. See the Instructions sheet on how to group or ungroup tables.
B8: 7.9.1 - Historical performance and proposed floor, caps and targets for the service component of the STPIS
B9: Parameter | C9: Performance actuals | I9: Average of actual performance | J9: Floor | K9: Target | L9: Cap | M9: Weighting (% of MAR)
C10: =(LEFT(PRCP_y3,2)&RIGHT(PRCP_y3,2)) -> 2016 | D10: =LEFT(PRCP_y4,2)&RIGHT(PRCP_y4,2) -> 2017 | E10: =LEFT(PRCP_y5,2)&RIGHT(PRCP_y5,2) -> 2018 | F10: =(LEFT(CRCP_y1,2)&RIGHT(CRCP_y1,2)) -> 2019 | G10: =(LEFT(CRCP_y2,2)&RIGHT(CRCP_y2,2)) -> 2020 | H10: =(LEFT(CRCP_y3,2)&RIGHT(CRCP_y3,2)) -> 2021
B11: Unplanned outage circuit event rate:
B12: Transmission line outage - fault | C12: 0.320855615 | D12: 0.07339449541 | E12: 0.1517857143 | F12: 0.1052631579 | G12: 0.1594 | I12: =+AVERAGE(C12:H12) -> 0.1621397965 | J12: 0.341 | K12: 0.1621 | L12: 0.0684 | M12: 0.002
B13: Transformer outage – fault | C13: 0.3529411765 | D13: 0.1343283582 | E13: 0.2686567164 | F13: 0.2388059701 | G13: 0.1343 | I13: =+AVERAGE(C13:H13) -> 0.2258064442 | J13: 0.3658 | K13: 0.2258 | L13: 0.0946 | M13: 0.002
B14: Reactive plant – fault | C14: 0.5135135135 | D14: 0.1891891892 | E14: 0.1578947368 | F14: 0.3157894737 | G14: 0.1053 | I14: 0.2563373826 | J14: 0.5905 | K14: 0.2563 | L14: 0.0963 | M14: 0.001
B15: Transmission line outage – forced outage | C15: 0.08021390374 | D15: 0.08256880734 | E15: 0.08928571429 | F15: 0.1754385965 | G15: 0.0089 | I15: 0.08728140437 | J15: 0.1974 | K15: 0.0873 | L15: 0.0135 | M15: 0.001
B16: Transformer outage – forced outage | C16: 0.03676470588 | D16: 0.0671641791 | E16: 0.08208955224 | F16: 0.07462686567 | G16: 0.0522 | I16: 0.06256906058 | J16: 0.0868 | K16: 0.0626 | L16: 0.0365 | M16: 0.001
B17: Reactive plant – forced outage | C17: 0.1891891892 | D17: 0.1891891892 | E17: 0.07894736842 | F17: 0.05263157895 | G17: 0.1579 | I17: 0.1335714651 | J17: 0.2287 | K17: 0.1336 | L17: 0.049 | M17: 0.0005
B18: Loss of supply event frequency (number of events):
B19: > (x) system minutes | C19: 5 | D19: 4 | E19: 3 | F19: 4 | G19: 1 | I19: 3.4 | J19: 7 | K19: 3 | L19: 1 | M19: 0.0015
B20: > (y) system minutes | C20: 2 | D20: 1 | E20: 2 | F20: 3 | G20: 0 | I20: 1.6 | J20: 4 | K20: 2 | L20: 0 | M20: 0.0015
B21: Average outage duration (minutes): | C21: 250.5714286 | D21: 97.4 | E21: 463 | F21: 192 | G21: 205 | I21: 241.5942857 | J21: 462 | K21: 242 | L21: 86 | M21: 0.002
B22: Proper operation of equipment (number of events):
B23: Failure of protection system | C23: 17 | D23: 9 | E23: 18 | F23: 6 | G23: 3 | I23: 10.6 | J23: 18 | K23: 11 | L23: 3 | M23: 0
B24: Material failure of SCADA | C24: 2 | D24: 0 | E24: 2 | F24: 0 | G24: 0 | I24: 0.8 | J24: 2 | K24: 1 | L24: 0 | M24: 0
B25: Incorrect operational isolation of primary or secondary equipment | C25: 10 | D25: 7 | E25: 13 | F25: 6 | G25: 4 | I25: 8 | J25: 13 | K25: 8 | L25: 4 | M25: 0
B29: 7.9.2 - Proposed priority projects for the network capability incentive parameter
B30: Project ranking | C30: Transmission Circuit / Injection Point | D30: Scope of works | E30: =CONCATENATE(("If applicable, the present value of quantified benefits associated with the project ($0's, "),CRCP_y5,")") -> If applicable, the present value of quantified benefits associated with the project ($0's, 2022-23) | F30: =CONCATENATE(("Project cost ($0's, "),CRCP_y5,")") -> Project cost ($0's, 2022-23)
F31: =FRCP_y1 -> 2023-24 | G31: =FRCP_y2 -> 2024-25 | H31: =FRCP_y3 -> 2025-26 | I31: =FRCP_y4 -> 2026-27 | J31: =FRCP_y5 -> 2027-28 | K31: Opex | L31: Capex
B32: 1 | C32: F1938 Robertstown – Tungkillo 275 kV;F1945 Robertstown – Para 275 kV | D32: Lines will be uprated from T100 rating to T120 rating by increasing spans and removing secondary system limitations. | E32: 36453624.18 | G32: 2429032 | K32: 0 | L32: 2429032
B33: 2 | C33: F1935 Corraberra Hill - Cultana 275 kV;F1936 Davenport - Cultana No2 275 kV;F1965 Davenport - Corraberra Hill 275 kV | D33: Lines will be uprated from T80 rating to T100 rating by increasing spans and removing secondary system limitations. | E33: 7997162.72 | G33: 1529272 | K33: 0 | L33: 1529272
B34: 3 | C34: All transmission lines | D34: Under favorable weather conditions, higher ratings can be applied to transmission lines to allow more access to the network by market participants. ElectraNet has developed a strategy to apply a 10 band static rating, which is expected to provide increased ratings for a majority of the time, with a small downside risk of lower rating than currently applied for a small period of time when the temperature is extremely high | E34: 10604396.06 | F34: 1190312 | G34: 1190312 | H34: 1190312 | I34: 1190312 | J34: 1190312 | K34: 4166092.7 | L34: 1785468.3
B35: 4 | C35: T400 North West Bend 132 kV Substation | D35: 1.An additional 15 MVAr capacitor bank will be added to the Riverland 132 kV network North West Bend (Monash is an alternative site) including an automated capacitor switching control system installed to manage voltage and reactive power support; 2. Upgrade the existing runback control scheme to include bi-directionality and allow it to run forward if required. | E35: 10132955.55 | G35: 5024726 | K35: 0 | L35: 5024726
B36: 5
B37: 6
B38: 7
B39: 8
B40: 9
B41: 10
B42: 11
B43: 12
B44: 13
B45: 14
B46: 15
B47: 16
B52: 7.9.3 – Network limit information
B53: Limit identification | C53: Define limit | D53: Reason for the limit | E53: Is limit addressed by priority project | F53: Supporting information reference
B54: Robertstown – Tungkillo 275 kV;Robertstown – Para 275 kV (constraints S>>NIL_RBPA_RBTU,S>>NIL_RBTU_RBPA) | C54: 597/617/677 MVA (Summer/Autumn/Winter) | D54: Design thermal limit of the lines and protection settings | E54: 1 | F54: TAPR 2021
B55: F1935 Corraberra Hill - Cultana 275 kV;F1936 Davenport - Cultana No2 275 kV;F1965 Davenport - Corraberra Hill 275 kV | C55: 457 MVA | D55: The limit constraints prevent the overload of one Davenport – Cultana line upon the trip of the other circuit. | E55: 2 | F55: TAPR 2021
B56: 3-band rating on all transmission lines | C56: 3-band rating | D56: -temperature band static rating, with a fixed pre-defined rating for each temperature band | E56: 3 | F56: TAPR 2021
B57: Constraint SVML^NIL_MH-CAP_ON,S>NIL_MHNW1_MHNW2 (Murray link limit) | C57: 100 - 170 MW | D57: Export limit of Murray link is currently capped at around 100 – 170 MW subject to availability of existing capacitor bank at the Riverland 132 kV network and combined instantaneous MW load at Berri, North West Bend, Morgan-Whyalla Pump 1, Morgan-Whyalla Pump 2 and Morgan-Whyalla Pump 3 connection points | E57: 4 | F57: TAPR 2021
B58: Loss of a major line in 275 kV mid-north overloads the 132 kV mid-north network corridor (Robertstown - Waterloo - Templers) | C58: 183/189/205 MVA (Summer/Autumn/Winter) | D58: With the development of renewable energy (RE) projects in the mid north region and commissioning of PEC (from 2024), there will be heavy flows from the mid north (Robertstown) to Adelaide load center. A trip in the 275 kV network (Robertstown-Para 275kV or one of the Robertstown 275/132kV transformers) will divert more flows to the 132 kV path from Robertstown to Templers | E58: 3 | F58: TAPR 2021
B59: Heywood interconnector limit | C59: 650 MW/750 MW (post PEC) | D59: Stability import limit on the Heywood interconnector | F59: TAPR 2021
B60: Loss of Tailem Bend - Tungkillo - Cherry Gardens (275kV) overloads Tailem Bend - Mobilong (132kV) | C60: 207 MVA | D60: Plant limits on Tailem Bend - Mobilong 132 kV | F60: TAPR 2021
B61: Loss of Munno Para - Para 275kV overloads Munno - Elizabeth Down 66kV | C61: 92 MVA | D61: At times of high generation in the north of South Australia and high demand in the metro area, an outage on the Munno Para – Para 275kV will overload the Munno Para to Elizabeth Downs 66 kV line of SA Power Network. | F61: TAPR 2021
B62: Loss of Templers West 275/132 kV transformer overloads Para 275/132 kV transformer | C62: 160 MVA | D62: Loss of Templers West 275/132 kV transformer overloads Para 275/132 kV transformer | F62: TAPR 2021
B63: Project EnergyConnect (PEC) interconnector limit | C63: 800 MW | D63: Stability export limit on the PEC interconnector | F63: ElectraNET market modelling forecast
B66: 7.9.4 - Market impact component
D68: Market impact parameter
D69: Planned outage count(DI) | F69: Unplanned outage count (DI)
B70: Year | C70: Month | D70: without exclusions | E70: with exclusions | F70: without exclusions | G70: with exclusions | H70: Market impact parameters
B71: =LEFT(PRCP_y2,4) -> 2014 | C71: January | D71: 268 | E71: 7 | F71: 133 | G71: 0 | H71: 0.5833333333
B72: 2014 | C72: February | D72: 143 | E72: 0 | F72: 53 | G72: 0 | H72: 0
B73: 2014 | C73: March | D73: 265 | E73: 0 | F73: 93 | G73: 0 | H73: 0
B74: 2014 | C74: April | D74: 20 | E74: 0 | F74: 17 | G74: 0 | H74: 0
B75: 2014 | C75: May | D75: 85 | E75: 0 | F75: 86 | G75: 0 | H75: 0
B76: 2014 | C76: June | D76: 248 | E76: 0 | F76: 35 | G76: 0 | H76: 0
B77: 2014 | C77: July | D77: 113 | E77: 0 | F77: 25 | G77: 0 | H77: 0
B78: 2014 | C78: August | D78: 38 | E78: 15 | F78: 84 | G78: 0 | H78: 1.25
B79: 2014 | C79: September | D79: 290 | E79: 0 | F79: 64 | G79: 0 | H79: 0
B80: 2014 | C80: October | D80: 383 | E80: 39 | F80: 113 | G80: 9 | H80: 3.25
B81: 2014 | C81: November | D81: 115 | E81: 0 | F81: 24 | G81: 0 | H81: 0
B82: 2014 | C82: December | D82: 99 | E82: 26 | F82: 274 | G82: 0 | H82: 2.166666667
B83: =CONCATENATE("Total ",LEFT(PRCP_y2,4)) -> Total 2014 | D83: =+SUM(D71:D82) -> 2067 | E83: =+SUM(E71:E82) -> 87 | F83: =+SUM(F71:F82) -> 1001 | G83: =+SUM(G71:G82) -> 9 | H83: =+SUM(H71:H82) -> 7.25
B84: =LEFT(PRCP_y3,4) -> 2015 | C84: January | D84: 29 | E84: 0 | F84: 546 | G84: 283 | H84: 0
B85: 2015 | C85: February | D85: 85 | E85: 0 | F85: 102 | G85: 0 | H85: 0
B86: 2015 | C86: March | D86: 600 | E86: 537 | F86: 42 | G86: 0 | H86: 44.75
B87: 2015 | C87: April | D87: 1180 | E87: 593 | F87: 155 | G87: 37 | H87: 49.41666667
B88: 2015 | C88: May | D88: 1759 | E88: 967 | F88: 224 | G88: 0 | H88: 80.58333333
B89: 2015 | C89: June | D89: 118 | E89: 83 | F89: 18 | G89: 0 | H89: 6.916666667
B90: 2015 | C90: July | D90: 3927 | E90: 2749 | F90: 149 | G90: 42 | H90: 229.0833333
B91: 2015 | C91: August | D91: 998 | E91: 477 | F91: 353 | G91: 236 | H91: 39.75
B92: 2015 | C92: September | D92: 2137 | E92: 1593 | F92: 148 | G92: 33 | H92: 132.75
B93: 2015 | C93: October | D93: 10781 | E93: 1690 | F93: 171 | G93: 0 | H93: 140.8333333
B94: 2015 | C94: November | D94: 7919 | E94: 870 | F94: 591 | G94: 81 | H94: 72.5
B95: 2015 | C95: December | D95: 1180 | E95: 445 | F95: 188 | G95: 81 | H95: 37.08333333
B96: =CONCATENATE("Total ", LEFT(PRCP_y3,4)) -> Total 2015 | D96: =+SUM(D84:D95) -> 30713 | E96: =+SUM(E84:E95) -> 10004 | F96: =+SUM(F84:F95) -> 2687 | G96: =+SUM(G84:G95) -> 793 | H96: =+SUM(H84:H95) -> 833.6666667
B97: =LEFT(PRCP_y4,4) -> 2016 | C97: January | D97: 693 | E97: 217 | F97: 6 | G97: 0 | H97: 18.08333333
B98: 2016 | C98: February | D98: 414 | E98: 0 | F98: 4 | G98: 3 | H98: 0
B99: 2016 | C99: March | D99: 1845 | E99: 737 | F99: 246 | G99: 184 | H99: 61.41666667
B100: 2016 | C100: April | D100: 1938 | E100: 671 | F100: 8 | G100: 0 | H100: 55.91666667
B101: 2016 | C101: May | D101: 1542 | E101: 746 | F101: 122 | G101: 23 | H101: 62.16666667
B102: 2016 | C102: June | D102: 3865 | E102: 1318 | F102: 26 | G102: 0 | H102: 109.8333333
B103: 2016 | C103: July | D103: 4816 | E103: 4390 | F103: 95 | G103: 4 | H103: 365.8333333
B104: 2016 | C104: August | D104: 5976 | E104: 1228 | F104: 203 | G104: 7 | H104: 102.3333333
B105: 2016 | C105: September | D105: 5178 | E105: 411 | F105: 2497 | G105: 0 | H105: 34.25
B106: 2016 | C106: October | D106: 4103.5 | E106: 430.5 | F106: 8558 | G106: 334 | H106: 35.875
B107: 2016 | C107: November | D107: 8088 | E107: 645 | F107: 1014 | G107: 31 | H107: 53.75
B108: 2016 | C108: December | D108: 4857 | E108: 305 | F108: 202 | G108: 0 | H108: 25.41666667
B109: =CONCATENATE("Total ", LEFT(PRCP_y4,4)) -> Total 2016 | D109: =+SUM(D97:D108) -> 43315.5 | E109: =+SUM(E97:E108) -> 11098.5 | F109: =+SUM(F97:F108) -> 12981 | G109: =+SUM(G97:G108) -> 586 | H109: =+SUM(H97:H108) -> 924.875
B110: =LEFT(PRCP_y5,4) -> 2017 | C110: January | D110: 824 | E110: 23 | F110: 135 | G110: 0 | H110: 1.916666667
B111: 2017 | C111: February | D111: 886 | E111: 19 | F111: 172 | G111: 0 | H111: 1.583333333
B112: 2017 | C112: March | D112: 5065 | E112: 2 | F112: 96 | G112: 38 | H112: 0.1666666667
B113: 2017 | C113: April | D113: 963 | E113: 106 | F113: 0 | G113: 0 | H113: 8.833333333
B114: 2017 | C114: May | D114: 732 | E114: 0 | F114: 0 | G114: 0 | H114: 0
B115: 2017 | C115: June | D115: 1234 | E115: 414 | F115: 0 | G115: 0 | H115: 34.5
B116: 2017 | C116: July | D116: 1599 | E116: 204 | F116: 75 | G116: 0 | H116: 17
B117: 2017 | C117: August | D117: 2755 | E117: 172 | F117: 0 | G117: 0 | H117: 14.33333333
B118: 2017 | C118: September | D118: 3340 | E118: 392 | F118: 856 | G118: 200 | H118: 32.66666667
B119: 2017 | C119: October | D119: 4737 | E119: 336 | F119: 17 | G119: 0 | H119: 28
B120: 2017 | C120: November | D120: 1358 | E120: 422 | F120: 105 | G120: 0 | H120: 35.16666667
B121: 2017 | C121: December | D121: 3521 | E121: 0 | F121: 0 | G121: 0 | H121: 0
B122: =CONCATENATE("Total ", LEFT(PRCP_y5,4)) -> Total 2017 | D122: =+SUM(D110:D121) -> 27014 | E122: =+SUM(E110:E121) -> 2090 | F122: =+SUM(F110:F121) -> 1456 | G122: =+SUM(G110:G121) -> 238 | H122: =+SUM(H110:H121) -> 174.1666667
B123: =LEFT(CRCP_y1,4) -> 2018 | C123: January | D123: 207 | E123: 67 | F123: 2972 | G123: 0 | H123: 5.583333333
B124: 2018 | C124: February | D124: 14 | E124: 1 | F124: 982 | G124: 0 | H124: 0.08333333333
B125: 2018 | C125: March | D125: 195 | E125: 62 | F125: 3338 | G125: 0 | H125: 5.166666667
B126: 2018 | C126: April | D126: 101 | E126: 73 | F126: 14351 | G126: 49 | H126: 6.083333333
B127: 2018 | C127: May | D127: 233 | E127: 7 | F127: 9283 | G127: 7 | H127: 0.5833333333
B128: 2018 | C128: June | D128: 88 | E128: 53 | F128: 3628 | G128: 3 | H128: 4.416666667
B129: 2018 | C129: July | D129: 9553 | E129: 3624 | F129: 208 | G129: 206 | H129: 302
B130: 2018 | C130: August | D130: 12913 | E130: 1113 | F130: 756 | G130: 0 | H130: 92.75
B131: 2018 | C131: September | D131: 6473 | E131: 468 | F131: 7397 | G131: 0 | H131: 39
B132: 2018 | C132: October | D132: 10761 | E132: 403 | F132: 415 | G132: 0 | H132: 33.58333333
B133: 2018 | C133: November | D133: 3762 | E133: 754 | F133: 95 | G133: 2 | H133: 62.83333333
B134: 2018 | C134: December | D134: 4315 | E134: 328 | F134: 169 | G134: 0 | H134: 27.33333333
B135: =CONCATENATE("Total ", LEFT(CRCP_y1,4)) -> Total 2018 | D135: =+SUM(D123:D134) -> 48615 | E135: =+SUM(E123:E134) -> 6953 | F135: =+SUM(F123:F134) -> 43594 | G135: =+SUM(G123:G134) -> 267 | H135: =+SUM(H123:H134) -> 579.4166667
B136: =LEFT(CRCP_y2,4) -> 2019 | C136: January | D136: 828 | E136: 17 | F136: 514 | G136: 0 | H136: 1.416666667
B137: 2019 | C137: February | D137: 624 | E137: 14 | F137: 0 | G137: 0 | H137: 1.166666667
B138: 2019 | C138: March | D138: 2096 | E138: 356 | F138: 3 | G138: 3 | H138: 29.66666667
B139: 2019 | C139: April | D139: 2497 | E139: 140.5 | F139: 140 | G139: 27 | H139: 11.70833333
B140: 2019 | C140: May | D140: 4031 | E140: 914 | F140: 144 | G140: 51 | H140: 76.16666667
B141: 2019 | C141: June | D141: 2639 | E141: 543 | F141: 31 | G141: 0 | H141: 45.25
B142: 2019 | C142: July | D142: 4800 | E142: 621 | F142: 320 | G142: 0 | H142: 51.75
B143: 2019 | C143: August | D143: 5105 | E143: 1161 | F143: 0 | G143: 0 | H143: 96.75
B144: 2019 | C144: September | D144: 9320 | E144: 1528 | F144: 0 | G144: 0 | H144: 127.3333333
B145: 2019 | C145: October | D145: 14353 | E145: 1944 | F145: 8 | G145: 0 | H145: 162
B146: 2019 | C146: November | D146: 7226 | E146: 362 | F146: 529 | G146: 98 | H146: 30.16666667
B147: 2019 | C147: December | D147: 4470 | E147: 76 | F147: 126 | G147: 0 | H147: 6.333333333
B148: =CONCATENATE("Total ", LEFT(CRCP_y2,4)) -> Total 2019 | D148: =+SUM(D136:D147) -> 57989 | E148: =+SUM(E136:E147) -> 7676.5 | F148: =+SUM(F136:F147) -> 1815 | G148: =+SUM(G136:G147) -> 179 | H148: =+SUM(H136:H147) -> 639.7083333
B149: =LEFT(CRCP_y3,4) -> 2020 | C149: January | D149: 7919 | E149: 92 | F149: 1506 | G149: 0 | H149: 7.666666667
B150: 2020 | C150: February | D150: 10461 | E150: 4 | F150: 22013 | G150: 0 | H150: 0.3333333333
B151: 2020 | C151: March | D151: 9545 | E151: 112 | F151: 530 | G151: 0 | H151: 9.333333333
B152: 2020 | C152: April | D152: 5459 | E152: 16 | F152: 0 | G152: 0 | H152: 1.333333333
B153: 2020 | C153: May | D153: 5610 | E153: 733 | F153: 0 | G153: 0 | H153: 61.08333333
B154: 2020 | C154: June | D154: 3531 | E154: 174 | F154: 0 | G154: 0 | H154: 14.5
B155: 2020 | C155: July | D155: 2165 | E155: 121 | F155: 156 | G155: 156 | H155: 10.08333333
B156: 2020 | C156: August | D156: 6726 | E156: 428 | F156: 783 | G156: 783 | H156: 35.66666667
B157: 2020 | C157: September | D157: 11630 | E157: 593 | F157: 1152 | G157: 1152 | H157: 49.41666667
B158: 2020 | C158: October | D158: 15803 | E158: 306 | F158: 762 | G158: 762 | H158: 25.5
B159: 2020 | C159: November | D159: 15653 | E159: 142 | F159: 601 | G159: 601 | H159: 11.83333333
B160: 2020 | C160: December | D160: 15758 | E160: 441 | F160: 609 | G160: 609 | H160: 36.75
B161: =CONCATENATE("Total ", LEFT(CRCP_y3,4)) -> Total 2020 | D161: =+SUM(D149:D160) -> 110260 | E161: =+SUM(E149:E160) -> 3162 | F161: =+SUM(F149:F160) -> 28112 | G161: =+SUM(G149:G160) -> 4063 | H161: =+SUM(H149:H160) -> 263.5
B162: =LEFT(CRCP_y4,4) -> 2021 | C162: January | H162: =+E162/12 -> 0
B163: 2021 | C163: February | H163: 0
B164: 2021 | C164: March | H164: 0
B165: 2021 | C165: April | H165: 0
B166: 2021 | C166: May | H166: 0
B167: 2021 | C167: June | H167: 0
B168: 2021 | C168: July | H168: 0
B169: 2021 | C169: August | H169: 0
B170: 2021 | C170: September | H170: 0
B171: 2021 | C171: October | H171: 0
B172: 2021 | C172: November | H172: 0
B173: 2021 | C173: December | H173: 0
B174: =CONCATENATE("Total ", LEFT(CRCP_y4,4)) -> Total 2021 | D174: =+SUM(D162:D173) -> 0 | E174: =+SUM(E162:E173) -> 0 | F174: =+SUM(F162:F173) -> 0 | G174: =+SUM(G162:G173) -> 0 | H174: =+SUM(H162:H173) -> 0

Sheet 8.2 Capex
B1: =(LOOKUP(dms_Model,dms_Model_List,dms_Worksheet_List)) -> REGULATORY REPORTING STATEMENT
B2: =INDEX(dms_TradingNameFull_List,MATCH(dms_TradingName,dms_TradingName_List)) -> ElectraNet
B3: =IF(SUM(dms_SingleYear_Model)>0,CRY,CONCATENATE(FRCP_y1," to ",dms_MultiYear_FinalYear_Result)) -> 2023-24 to 2027-28
B4: 8.2 - CAPEX
B6: 8.2.7 - IMMEDIATE EXPENSING OF CAPEX
B7: ESTIMATED - AS COMMISSIONED
C8: $0's, (nominal) | D8: =CONCATENATE("($0's, real ", dms_DollarReal,")") -> ($0's, real June 2023)
B9: Asset class | C9: =dms_y1 -> 2021-22 | D9: =dms_y2 -> 2022-23
B10: Commercial Buildings
B11: Communications - Civil
B12: Communications - Other
B13: Computers, software, and office machines
B14: Easement
B15: Land
B16: Network Switching Centres
B17: Office furniture, movable plant, and misc
B18: Refurbishment
B19: Substation Primary Plant
B20: Substation Demountable Buildings
B21: Substation Establishment
B22: Substation Fences
B23: Substation Secondary Systems - Electro-mechanical
B24: Substation Secondary Systems - Electronic
B25: Transmission lines - Overhead
B26: Transmission lines - Underground
B27: Refurbishment 2008-13
B28: Transmission Line Refit - insulators replacement 2013-18
B29: Transmission Line Refit - insulators replacement 2018-23
B30: Transmission Line Refit - insulators replacement 2023-28
B31: Right of Use Assets
B32: Synchronous Condensers
B33: Communications - Other Post 2018
B60: Total | C60: =SUM(C10:C59) -> 0 | D60: =SUM(D10:D59) -> 0
